Date,Category,Description,Amount
01/01/2014,General Retail and Wholesale       ,CURRYS SS               FAREHAM S,9.99
02/01/2014,Restaurants and Bars               ,CAFFE NERO               KINGSWAY  ,4.25
02/01/2014,Travel - Air/Rail/Road             ,LONDON  SOUTH EAS       HAYES     ,8.90
02/01/2014,Hotels and Accommodation           ,MONTAGUE                 LONDON    ,35.43
02/01/2014,Travel - Air/Rail/Road             ,VERIFONE TAXI FARE       0333666100,14.74
02/01/2014,Travel - Air/Rail/Road             ,NCP LIMITED PD          NEWPORT   ,7.50
02/01/2014,Automotive Fuel                    ,TEX ABBEYWAYSERVIC       886747 GL7,39.25
02/01/2014,Travel - Air/Rail/Road             ,E COAST MAIN LN CO LTD   PETERBOROU,13.00
02/01/2014,Mail and Courier Services          ,POST OFFICE COUNTER      SWADLINCOT,3.90
02/01/2014,Restaurants and Bars               ,PRET A MANGER            HIGH HOLBU,6.60
02/01/2014,Restaurants and Bars               ,GOURMET BURGER KIT       0207 27824,12.25
02/01/2014,Travel - Air/Rail/Road             ,LUL TICKET MACHINE       PADDINGTON,7.30
02/01/2014,Travel - Air/Rail/Road             ,NORTHERN RAIL LTD        NEWTON LE ,8.20
02/01/2014,Professional Services              ,UPT - EMT NOTTINGHAM RAI NOTTINGHAM,6.00
02/01/2014,Travel - Air/Rail/Road             ,FIRST CAPITAL CONN       BEDFORD   ,46.00
02/01/2014,Travel - Air/Rail/Road             ,A WILMSLOW TAXI SERVICE  WILMSLOW  ,5.50
02/01/2014,Travel - Air/Rail/Road             ,NORTHERN RAIL LTD        WILMSLOW 2,7.90
02/01/2014,Travel - Air/Rail/Road             ,LUL TICKET MACHINE       WATERLOO A,20.00
03/01/2014,Travel - Air/Rail/Road             ,PAY N DISPLAY            OFF ST SOU,7.30
03/01/2014,Hotels and Accommodation           ,HILTON LEICESTER         LEICESTER ,7.00
03/01/2014,Mail Order / Direct Selling        ,SENTINEL GOLD            0800 02349,89.95
03/01/2014,Mail Order / Direct Selling        ,SENTINEL GOLD            0800 02349,89.95
03/01/2014,Travel - Air/Rail/Road             ,NCP ADAPTIS ATW          CARDIFF   ,7.70
03/01/2014,Mail and Courier Services          ,POST OFFICE COUNTER      MANCHESTER,11.00
03/01/2014,Travel - Air/Rail/Road             ,WEST COAST TRAINS        WIGAN 2363,8.00
03/01/2014,Financial Services                 ,STAYSURE.CO.UK LIMITED   NORTHAMPTO,34.40
03/01/2014,Mail Order / Direct Selling        ,SENTINEL GOLD            0800 02349,89.95
03/01/2014,Travel - Air/Rail/Road             ,E COAST MAIN LN CO LTD   PETERBOROU,13.00
03/01/2014,Mail Order / Direct Selling        ,SENTINEL GOLD            0800 02349,89.95
03/01/2014,Hotels and Accommodation           ,HILTON                   LEICESTER ,8.50
03/01/2014,Hotels and Accommodation           ,HILTON LEICESTER         LEICESTER ,7.00
03/01/2014,Mail Order / Direct Selling        ,SENTINEL GOLD            0800 02349,89.95
03/01/2014,Travel - Air/Rail/Road             ,LUL TICKET MACHINE       TOTTENHAM ,4.50
03/01/2014,Travel - Air/Rail/Road             ,LUL TICKET OFFICE.       MOORGATE ,20.00
03/01/2014,Mail Order / Direct Selling        ,SENTINEL GOLD            0800 02349,89.95
03/01/2014,Travel - Air/Rail/Road             ,FIRST CAPITAL CONN       BEDFORD   ,46.00
03/01/2014,Mail Order / Direct Selling        ,SENTINEL GOLD            0800 02349,89.95
03/01/2014,Books and Periodicals              ,Amazon  Mktplce EU-UK    AMAZON.CO.,16.78
03/01/2014,Books and Periodicals              ,Amazon  Mktplce EU-UK    AMAZON.CO.,17.99
03/01/2014,Automotive Fuel                    ,W M MORRISON PLC         BARRY     ,25.84
03/01/2014,Estate and Garden Services         ,BLOOMS GLOUCESTER        GLOUCESTER,7.08
03/01/2014,Estate and Garden Services         ,BLOOMS GLOUCESTER        GLOUCESTER,10.74
03/01/2014,Travel - Air/Rail/Road             ,SEVERN RIVER CROSSIN PLC BRISTOL   ,6.40
03/01/2014,Travel - Air/Rail/Road             ,FRENCHGATE SHOPPING PKNG DONCASTER ,11.00
03/01/2014,Hotels and Accommodation           ,ALLERTON COURT HOTEL     NORTHALLER,12.85
03/01/2014,Travel - Air/Rail/Road             ,ECML YORK PARKING        YORK      ,14.50
03/01/2014,Automotive Fuel                    ,MRH WESTCLIFFE           SCUNTHORPE,12.68
04/01/2014,Mail and Courier Services          ,POST OFFICE COUNTER      HUDDERSFIE,25.80
04/01/2014,Travel - Air/Rail/Road             ,EAST MIDLANDS TRAI       KETTRING 1,180.00
04/01/2014,Mail Order / Direct Selling        ,Amazon EU                AMAZON.CO.,17.70
04/01/2014,Miscellaneous Industrial/Commercial,Amazon Web Services      aws.amazon,32.65
04/01/2014,Miscellaneous Industrial/Commercial,MAILCHIMP                MAILCHIMP.,150.66
05/01/2014,Restaurants and Bars               ,ROSSO RESTAURANT         MANCHESTER,31.41
05/01/2014,Travel - Air/Rail/Road             ,FGW TICKET OFFICE        CHLTNHAM 4,7.40
05/01/2014,Travel - Air/Rail/Road             ,NETWORK RAIL APCOA PRE   INTERNET  ,40.00
05/01/2014,Travel - Air/Rail/Road             ,LONDON  SOUTH EAS       HEADCORN  ,5.50
05/01/2014,Travel - Air/Rail/Road             ,NEW SOUTHERN RAILW       LND SE19 8,10.00
05/01/2014,Travel - Air/Rail/Road             ,NEW SOUTHERN RAILW       LND SE19 8,5.00
05/01/2014,Restaurants and Bars               ,ROSSO RESTAURANT         MANCHESTER,31.41
05/01/2014,Travel - Air/Rail/Road             ,FGW TUNTN                TAUNTON   ,9.80
05/01/2014,Restaurants and Bars               ,ROSSO RESTAURANT         MANCHESTER,31.41
05/01/2014,Restaurants and Bars               ,VOLARE                   SOUTHPORT ,19.70
06/01/2014,General Retail and Wholesale       ,TESCO STORE 2877         MARTLESHAM,99.00
06/01/2014,Hotels and Accommodation           ,COPTHORNE HOTEL          BIRMINGHAM,12.30
06/01/2014,Travel - Air/Rail/Road             ,VERIFONE TAXI FARE       0333666100,15.84
06/01/2014,Travel - Air/Rail/Road             ,NCP LIMITED PD          NEWPORT   ,7.50
06/01/2014,Travel - Air/Rail/Road             ,WEST COAST TRAINS        CREWE 1243,8.00
06/01/2014,Travel - Air/Rail/Road             ,WWW.WIGHTLINK.CO.UK      INTERNET  ,40.00
06/01/2014,Travel - Air/Rail/Road             ,WWW.WIGHTLINK.CO.UK      INTERNET  ,40.00
06/01/2014,Travel - Air/Rail/Road             ,OYSTER RENEW WEB         0845 33098,20.00
06/01/2014,Travel - Air/Rail/Road             ,PARK MOBILE              BHAM B4  ,7.60
06/01/2014,Travel - Air/Rail/Road             ,LUL TICKET MACHINE       MARYLEBONE,20.00
06/01/2014,Travel - Air/Rail/Road             ,RINGGO                   CHILTERN  ,7.20
06/01/2014,General Retail and Wholesale       ,WAITROSE 207             BLOOMSBURY,4.90
06/01/2014,Travel - Air/Rail/Road             ,Q PARK THE SHAMBLES      YORK      ,6.20
06/01/2014,Restaurants and Bars               ,SPAGHETTI HOUSE LT       LONDON  WC,18.20
06/01/2014,Travel - Air/Rail/Road             ,EC MAINLINE CO TO       DARLNGTN 7,22.00
06/01/2014,Catering and Catering Supplies     ,MARKS  SPENCER SSP LT   KINGS CROS,6.39
06/01/2014,Medical Supplies and Services      ,BOOTS 1521               LONDON    ,5.19
06/01/2014,Travel - Air/Rail/Road             ,FIRST CAPITAL CONN       HUNTINGDON,121.10
06/01/2014,Travel - Air/Rail/Road             ,APCOA FCC                HUNTINGDON,22.40
06/01/2014,Travel - Air/Rail/Road             ,OYSTER RENEW WEB         0845 33098,30.00
06/01/2014,Travel - Air/Rail/Road             ,FIRST GTR WESTERN-       OXFORD    ,58.00
06/01/2014,Travel - Air/Rail/Road             ,APCOA NWR LIVERPOOL LI   LIVERPOOL ,14.00
06/01/2014,Travel - Air/Rail/Road             ,XC TRAINS LTD            BIRMINGHAM,36.50
06/01/2014,Travel - Air/Rail/Road             ,WEST COAST TRAINS        PRESTON 27,10.00
06/01/2014,Travel - Air/Rail/Road             ,FGW PLYMTH               PLYMOUTH  ,9.30
06/01/2014,Travel - Air/Rail/Road             ,LUL TICKET MACHINE       HOLBORN   ,30.00
06/01/2014,Travel - Air/Rail/Road             ,THE CHILTERN RLYWY       WARWICK 26,14.00
06/01/2014,Travel - Air/Rail/Road             ,ECML NEWARK PARKING      NEWARK    ,10.00
06/01/2014,Travel - Air/Rail/Road             ,WEST COAST TRAINS        MANCHSTR 8,24.10
06/01/2014,General Retail and Wholesale       ,TESCO STORES 6430        NOTTINGHAM,3.84
06/01/2014,Travel - Air/Rail/Road             ,NCP LIMITED              NOTTM MOUN,4.10
06/01/2014,Automotive Fuel                    ,TEX EPINAL WAY           886872LE11,8.08
06/01/2014,Travel - Air/Rail/Road             ,NCP LIMITED              NOTTM MOUN,4.10
06/01/2014,Travel - Air/Rail/Road             ,WEST COAST TRAINS        MANCHSTR 8,32.50
06/01/2014,Travel - Air/Rail/Road             ,CCP LONDON LTD           SALFORD   ,8.00
06/01/2014,General Retail and Wholesale       ,TESCO STORES 6430        NOTTINGHAM,2.82
06/01/2014,Travel - Air/Rail/Road             ,NCP LIMITED              NOTTM MOUN,16.40
06/01/2014,Leisure Activities                 ,BRISTOL CITY COUNCIL -   BRISTOL   ,10.00
06/01/2014,Restaurants and Bars               ,VERDI                    LONDON WC1,29.26
06/01/2014,Restaurants and Bars               ,CHOP AND WOK             BIRMINGHAM,5.95
06/01/2014,Restaurants and Bars               ,SOLOMAN CUTLER           BIRMINGHAM,10.80
06/01/2014,Travel - Air/Rail/Road             ,WEST COAST TRAINS        MANCHSTR 8,32.50
06/01/2014,Travel - Air/Rail/Road             ,LONDON MIDLAND           METEOR PAR,36.00
06/01/2014,Travel - Air/Rail/Road             ,LONDON MIDLAND           METEOR PAR,6.50
06/01/2014,General Retail and Wholesale       ,WM MORRISONS STORE       NEW STREET,3.09
06/01/2014,Automotive Fuel                    ,TEXACO DENE SSTN        611604 HD8,19.86
06/01/2014,Travel - Air/Rail/Road             ,FGW CHIP1                CHIPPENHAM,7.10
06/01/2014,Restaurants and Bars               ,CHINA CITY RESTAURANT    LONDON    ,27.75
06/01/2014,Travel - Air/Rail/Road             ,RINGO                    COLCHESTER,9.20
06/01/2014,Travel - Air/Rail/Road             ,ECML NEWCASTLE PARKING   NEWCASTLE ,7.00
06/01/2014,Travel - Air/Rail/Road             ,A WILMSLOW TAXI SERVICE  WILMSLOW  ,4.50
06/01/2014,Travel - Air/Rail/Road             ,NORTHERN RAIL LTD-       MANCHESTER,5.20
06/01/2014,Travel - Air/Rail/Road             ,LONDON MIDLAND           METEOR PAR,7.00
06/01/2014,Travel - Air/Rail/Road             ,APCOA NWR LIVERPOOL LI   LIVERPOOL ,12.00
06/01/2014,Mail and Courier Services          ,POST OFFICE COUNTER      EVESHAM   ,6.22
06/01/2014,Travel - Air/Rail/Road             ,NCP LIMITED              NOTTM MOUN,4.10
06/01/2014,Travel - Air/Rail/Road             ,LUL TICKET MACHINE       PADDINGTON,20.00
06/01/2014,Restaurants and Bars               ,HARE  TORTOISE BRUNSW   LONDON  SW,17.40
07/01/2014,Automotive Fuel                    ,TESCO PFS 2805           LONDON    ,22.26
07/01/2014,Travel - Air/Rail/Road             ,CARPARK MACHINE          SWTRAINS S,14.00
07/01/2014,Travel - Air/Rail/Road             ,LUL TICKET OFFICE.       WATERLOO E,50.00
07/01/2014,Travel - Air/Rail/Road             ,TICKETOFFICESALE         SWTRAINS S,130.60
07/01/2014,Restaurants and Bars               ,AYOUSH                   LONDON    ,41.06
07/01/2014,Restaurants and Bars               ,AKBAR BALTI YORK LTD   YORK      ,25.00
07/01/2014,Hotels and Accommodation           ,NOVOTEL YORK             YORK .   ,20.00
07/01/2014,Restaurants and Bars               ,CAFFE NERO               KINGSWAY  ,3.85
07/01/2014,Travel - Air/Rail/Road             ,LONDON  SOUTH EAS       HAYES     ,8.90
07/01/2014,Travel - Air/Rail/Road             ,LONDON  SOUTH EAS       BROMLEY   ,16.40
07/01/2014,Travel - Air/Rail/Road             ,CARPARK MACHINE          SWTRAINS G,9.50
07/01/2014,Travel - Air/Rail/Road             ,SOUTHERN RAIL WEB        CROYDON 45,51.10
07/01/2014,Restaurants and Bars               ,LOCH FYNE RESTAURANT     WALMGATE  ,20.18
07/01/2014,Catering and Catering Supplies     ,GOSS PLYMOUTH STATION   PLYMOUTH  ,6.48
07/01/2014,Restaurants and Bars               ,INDIAN DINING            LONDON WC2,22.91
07/01/2014,Restaurants and Bars               ,AKBAR BALTI YORK LTD   YORK      ,25.00
07/01/2014,Restaurants and Bars               ,MUSEUM TAVERN            BLOOMSBURY,10.49
07/01/2014,Restaurants and Bars               ,AKBAR BALTI YORK LTD   YORK      ,25.00
07/01/2014,Restaurants and Bars               ,POSTERN GATE             YORK      ,9.59
07/01/2014,General Retail and Wholesale       ,YSP                      WAKEFIELD ,5.00
07/01/2014,Travel - Air/Rail/Road             ,FGW TICKET OFFICE        BRDFD-ON-A,9.80
07/01/2014,Travel - Air/Rail/Road             ,NEWCASTLE AIRPORT UNAT   NEWCASTLE ,19.30
07/01/2014,Restaurants and Bars               ,THE PROVIDORES RESTAUR   LONDON W1U,26.60
07/01/2014,Automotive Fuel                    ,GRANGE ROAD SERV STN     DARLINGTON,21.47
07/01/2014,Restaurants and Bars               ,THE CRAVEN HEIFERINN L   BARNOLDSWI,29.10
07/01/2014,Restaurants and Bars               ,THAI EDGE                BHAM B1  ,30.20
07/01/2014,Restaurants and Bars               ,WAGAMAMA TAVISTOCK       COVENT GDN,24.40
07/01/2014,Restaurants and Bars               ,NOTES:MUSIC AND CO       0207240270,6.40
07/01/2014,Travel - Air/Rail/Road             ,ARRIVA TRAINS WALE       CREWE RAIL,13.10
07/01/2014,Travel - Air/Rail/Road             ,NEW SOUTHERN RAILW       SEAFORD 40,4.20
07/01/2014,Restaurants and Bars               ,LOCH FYNE RESTAURANT     WALMGATE  ,20.18
07/01/2014,Travel - Air/Rail/Road             ,Q PARK THE SHAMBLES      YORK      ,10.20
07/01/2014,Travel - Air/Rail/Road             ,APCOA CONNECT - FGW      UXBRIDGE  ,10.40
07/01/2014,Catering and Catering Supplies     ,MARKS  SPENCER SSP LT   KINGS CROS,9.38
07/01/2014,General Retail and Wholesale       ,SAINSBURYS SMKTS        HOLBORN   ,2.79
07/01/2014,Medical Supplies and Services      ,BOOTS 1521               LONDON    ,5.39
07/01/2014,Restaurants and Bars               ,AKBAR BALTI YORK LTD   YORK      ,25.00
07/01/2014,Travel - Air/Rail/Road             ,KINGS X N              KINGS X N,20.00
07/01/2014,Restaurants and Bars               ,THAI EDGE                BHAM B1  ,30.20
07/01/2014,General Retail and Wholesale       ,CO-OP GROUP 108005       STOKE ON T,4.00
07/01/2014,Travel - Air/Rail/Road             ,FGW SELF SERVICE         DIDCOT    ,24.20
07/01/2014,Travel - Air/Rail/Road             ,FGW ON TRAINSALES        BRISTOL   ,5.90
07/01/2014,Automotive Fuel                    ,CO-OP GROUP PETROL       CLITHEROE ,48.46
07/01/2014,Restaurants and Bars               ,AKBAR BALTI YORK LTD   YORK      ,25.00
07/01/2014,Restaurants and Bars               ,LOCH FYNE RESTAURANT     WALMGATE  ,20.18
07/01/2014,Restaurants and Bars               ,THAI EDGE                BHAM B1  ,30.20
07/01/2014,Restaurants and Bars               ,PREZZO                   TORQUAY   ,12.75
07/01/2014,Hotels and Accommodation           ,CP BIRMINGHAM            BIRMINGHAM,17.82
07/01/2014,Restaurants and Bars               ,AYOUSH                   LONDON    ,41.06
07/01/2014,Travel - Air/Rail/Road             ,LONDON MIDLAND SEL       LONDON NW1,20.00
07/01/2014,Travel - Air/Rail/Road             ,LONDON MIDLAND           METEOR PAR,22.50
07/01/2014,Automotive Fuel                    ,LONDON BRIDGE SERVICE    YORK      ,12.06
07/01/2014,Travel - Air/Rail/Road             ,LUL TICKET OFFICE.       EAST ACTON,20.00
07/01/2014,Travel - Air/Rail/Road             ,LONDON  SOUTH EAS       HEADCORN  ,11.40
07/01/2014,Restaurants and Bars               ,THAI EDGE                BHAM B1  ,30.20
07/01/2014,General Retail and Wholesale       ,TESCO STORES 2401        DROYLSDEN ,19.60
07/01/2014,Hotels and Accommodation           ,WAVERLEY HOUSE HTL       WAVERLEYHS,24.01
07/01/2014,Hotels and Accommodation           ,MERCURE HOLLAND HOUSE HOT BRISTOL  ,24.10
07/01/2014,General Retail and Wholesale       ,WAITROSE                 COLMORE RO,3.25
07/01/2014,Restaurants and Bars               ,PRET A MANGER            52 NEW STR,8.89
07/01/2014,Restaurants and Bars               ,PIZZAEXPRESS ONLIN       UXBRIDGE  ,16.90
07/01/2014,Hotels and Accommodation           ,HOLIDAY INN              BRENTFORD ,12.00
07/01/2014,Travel - Air/Rail/Road             ,LUL TICKET MACHINE       HOLBORN   ,15.00
07/01/2014,Travel - Air/Rail/Road             ,APCOA CONNECT - FGW      UXBRIDGE  ,5.70
07/01/2014,Hotels and Accommodation           ,RAMADA FARNHAM           FARNHAM   ,30.05
07/01/2014,Travel - Air/Rail/Road             ,RCP PARKING LTD          NORWICH   ,12.00
07/01/2014,Hotels and Accommodation           ,KILHEY COURT             WIGAN     ,31.35
07/01/2014,General Retail and Wholesale       ,SAINSBURYS SMKTS        NOTTINGHAM,3.00
07/01/2014,Travel - Air/Rail/Road             ,NCP LIMITED              NOTTM MOUN,16.40
07/01/2014,Restaurants and Bars               ,AKBAR BALTI YORK LTD   YORK      ,25.00
07/01/2014,Restaurants and Bars               ,IL CUCCIOLO              LONDON W1D,16.95
07/01/2014,Travel - Air/Rail/Road             ,APCOA FCC                SANDY     ,15.00
07/01/2014,Travel - Air/Rail/Road             ,APCOA - NWR MANCHESTER   MANCHESTER,8.50
07/01/2014,Miscellaneous Industrial/Commercial,BRISTOL CITY COUNCIL     BRISTOL   ,10.20
07/01/2014,Travel - Air/Rail/Road             ,NEW SOUTHERN RAILW       MERSTHAM 7,5.80
07/01/2014,Travel - Air/Rail/Road             ,FIRST CAPITAL CONN       BEDFORD   ,24.70
07/01/2014,Travel - Air/Rail/Road             ,NCP LIMITED              NEWPORT QU,14.86
07/01/2014,Restaurants and Bars               ,PRET A MANGER            HIGH HOLBU,7.63
07/01/2014,Restaurants and Bars               ,LL CASTELLETTO           LONDON    ,13.40
07/01/2014,Travel - Air/Rail/Road             ,Q PARK THE SHAMBLES      YORK      ,10.20
07/01/2014,Hotels and Accommodation           ,HOLIDAY INNS             STONEHENGE,23.05
07/01/2014,Restaurants and Bars               ,MCDONALDS REST.          BIRMINGHAM,4.39
07/01/2014,Travel - Air/Rail/Road             ,LONDON OVERGROUND-       HARROW 143,30.00
07/01/2014,Travel - Air/Rail/Road             ,FGW BPW                 BRISTOL   ,7.60
07/01/2014,Hotels and Accommodation           ,VINCENT HOTEL            SOUTHPORT ,-10.00
07/01/2014,Travel - Air/Rail/Road             ,APCOA CONNECT - FGW      UXBRIDGE  ,-10.40
07/01/2014,Travel - Air/Rail/Road             ,APCOA CONNECT - FGW      UXBRIDGE  ,-10.40
07/01/2014,Travel - Air/Rail/Road             ,FGW DIDCOT               DIDCOT    ,18.60
07/01/2014,General Retail and Wholesale       ,WAITROSE 688             BARRY     ,11.77
07/01/2014,Restaurants and Bars               ,TANDOORI REST            BROMSGROVE,17.40
07/01/2014,Restaurants and Bars               ,EAT                      NEW STREET,3.79
07/01/2014,Restaurants and Bars               ,CHINA ROYAL              CHICHESTER,16.00
07/01/2014,General Retail and Wholesale       ,RAC PALL MALL CLUBHOUS   LONDON  SW,123.00
07/01/2014,Hotels and Accommodation           ,THE DERBYSHIRE HOTEL F AN DERBY    ,29.10
07/01/2014,Restaurants and Bars               ,IL FORNELLO              LONDON WC1,40.00
07/01/2014,Professional Services              ,UPT PRINCES DOCKS        LIVERPOOL ,5.00
07/01/2014,Hotels and Accommodation           ,MERCURE MANCHESTER       HOTEL 0161,-182.00
07/01/2014,Restaurants and Bars               ,THAI EDGE                BHAM B1  ,30.20
07/01/2014,General Retail and Wholesale       ,CURRYS SUPERSTORE        SCARBOROUG,-17.49
07/01/2014,General Retail and Wholesale       ,CURRYS SUPERSTORE        SCARBOROUG,29.97
07/01/2014,Travel - Air/Rail/Road             ,NORTHERN RAIL LTD-       BLACKPOOL1,16.50
07/01/2014,Automotive Fuel                    ,CO-OP GROUP PETROL       MINSTER   ,6.13
07/01/2014,Restaurants and Bars               ,MCDONALDS                MINSTER   ,7.68
07/01/2014,Automotive Fuel                    ,BP MOTO HESTON EAST      HOUNSLOW. ,32.33
07/01/2014,Hotels and Accommodation           ,RICHMOND GATE HOTE       RICHMOND  ,37.50
07/01/2014,General Retail and Wholesale       ,APPLE STORE R118         BIRMINGHAM,19.95
07/01/2014,Restaurants and Bars               ,THAI EDGE                BHAM B1  ,30.20
08/01/2014,Hotels and Accommodation           ,THISTLE MARBLE ARCH      LONDON    ,29.50
08/01/2014,Restaurants and Bars               ,THREE TUNS               LONDON    ,10.95
08/01/2014,Restaurants and Bars               ,ZAYNA RESTAURANT         LONDON  W1,30.52
08/01/2014,Hotels and Accommodation           ,NOVOTEL YORK             YORK .   ,5.50
08/01/2014,Restaurants and Bars               ,JINNAH RESTAURANT YOR   YORK      ,17.00
08/01/2014,Hotels and Accommodation           ,NOVOTEL YORK             YORK .   ,23.39
08/01/2014,Travel - Air/Rail/Road             ,APCOA - OFF STREET       UXBRIDGE  ,10.50
08/01/2014,Restaurants and Bars               ,COTE ST CHRISTOPHERS P   LONDON  W1,36.59
08/01/2014,Restaurants and Bars               ,LA VECCHIA SCUOLA        YORK YO1  ,26.65
08/01/2014,Restaurants and Bars               ,HAPPY GARDEN BROMLEY   BROMLEY   ,36.80
08/01/2014,Restaurants and Bars               ,CAFFE NERO               KINGSWAY  ,2.55
08/01/2014,Restaurants and Bars               ,COTE ST CHRISTOPHERS P   LONDON  W1,36.59
08/01/2014,Restaurants and Bars               ,COTE ST CHRISTOPHERS P   LONDON  W1,36.59
08/01/2014,Travel - Air/Rail/Road             ,CARPARK MACHINE          SWTRAINS G,19.00
08/01/2014,Restaurants and Bars               ,COTE ST CHRISTOPHERS P   LONDON  W1,36.59
08/01/2014,Restaurants and Bars               ,JAMIES ITALIAN           YORK      ,32.90
08/01/2014,Restaurants and Bars               ,AKBAR BALTI YORK LTD   YORK      ,25.60
08/01/2014,Restaurants and Bars               ,THISTLE MARBLE ARCH F   LONDON    ,23.60
08/01/2014,Restaurants and Bars               ,TAS RESTAURANT           LONDON    ,31.00
08/01/2014,Restaurants and Bars               ,ONION CAFE               LONDON  WC,5.60
08/01/2014,Restaurants and Bars               ,LA VECCHIA SCUOLA        YORK YO1  ,26.65
08/01/2014,Travel - Air/Rail/Road             ,APCOA - NWR MANCHESTER   MANCHESTER,25.50
08/01/2014,Restaurants and Bars               ,VINOTECA SP              LONDON W1H,36.63
08/01/2014,Restaurants and Bars               ,LA VECCHIA SCUOLA        YORK YO1  ,26.65
08/01/2014,Restaurants and Bars               ,POSTERN GATE             YORK      ,10.69
08/01/2014,Restaurants and Bars               ,JINNAH RESTAURANT YOR   YORK      ,17.00
08/01/2014,Catering and Catering Supplies     ,MARKS  SPENCER SSPLTD   PICADILLY ,5.34
08/01/2014,Travel - Air/Rail/Road             ,UPT EM ALFRETON TRAIN ST ALFRETON  ,10.00
08/01/2014,General Retail and Wholesale       ,SELFRIDGES               LONDON    ,25.50
08/01/2014,Restaurants and Bars               ,AKBAR BALTI YORK LTD   YORK      ,20.17
08/01/2014,Hotels and Accommodation           ,NOVOTEL YORK             YORK .   ,23.39
08/01/2014,Restaurants and Bars               ,COTE ST CHRISTOPHERS P   LONDON  W1,36.59
08/01/2014,Restaurants and Bars               ,ZIZZI                    BOW STREET,24.70
08/01/2014,Travel - Air/Rail/Road             ,LONDON MIDLAND TIC       KIDDERMINS,12.60
08/01/2014,General Retail and Wholesale       ,SELFRIDGES LONDON        LONDON    ,34.09
08/01/2014,Travel - Air/Rail/Road             ,G L TAXIS                ST ALBANS ,11.90
08/01/2014,Hotels and Accommodation           ,THE DERBYSHIRE HOTEL     DERBY     ,47.45
08/01/2014,Travel - Air/Rail/Road             ,LUL TICKET MACHINE       LEYTONSTON,20.00
08/01/2014,Restaurants and Bars               ,THE OLD SIAM             YORK      ,20.00
08/01/2014,Restaurants and Bars               ,ROTI CHAI                LONDON W1H,33.30
08/01/2014,Restaurants and Bars               ,EAT                      LONDON  W2,10.76
08/01/2014,Travel - Air/Rail/Road             ,LUL TICKET OFFICE.       PADDINGTON,8.80
08/01/2014,Travel - Air/Rail/Road             ,FGW WBURY               WESTBURY  ,3.20
08/01/2014,Restaurants and Bars               ,COTE ST CHRISTOPHERS P   LONDON  W1,36.59
08/01/2014,Restaurants and Bars               ,ZIZZI                    BOW STREET,17.35
08/01/2014,Restaurants and Bars               ,LA VECCHIA SCUOLA        YORK YO1  ,26.65
08/01/2014,Restaurants and Bars               ,COTE ST CHRISTOPHERS P   LONDON  W1,36.59
08/01/2014,Travel - Air/Rail/Road             ,ECML DURHAM PARKING      DURHAM    ,11.00
08/01/2014,Restaurants and Bars               ,ZAYNA RESTAURANT         LONDON  W1,30.52
08/01/2014,Hotels and Accommodation           ,THISTLE MARBLE ARCH      LONDON    ,21.00
08/01/2014,Travel - Air/Rail/Road             ,RINGGO                   CHILTERN  ,14.20
08/01/2014,Restaurants and Bars               ,CARLUCCIOS LTD           GARRICK ST,24.49
08/01/2014,Travel - Air/Rail/Road             ,WEST COAST TRAINS        CREWE 1243,47.70
08/01/2014,Restaurants and Bars               ,COTE ST CHRISTOPHERS P   LONDON  W1,36.59
08/01/2014,Travel - Air/Rail/Road             ,NCP LIMITED PD          SAFFRON WA,15.20
08/01/2014,Automotive Fuel                    ,ESSO ABBEY SSTN          TORQUAY DE,19.28
08/01/2014,Restaurants and Bars               ,LA VECCHIA SCUOLA        YORK YO1  ,26.65
08/01/2014,Restaurants and Bars               ,PASTA BROWN              LONDON    ,25.76
08/01/2014,Restaurants and Bars               ,MUMBAI LOUNGE            YORK      ,20.00
08/01/2014,Travel - Air/Rail/Road             ,EC MAINLINE CO INT       YORK 4400 ,6.85
08/01/2014,Hotels and Accommodation           ,NOVOTEL YORK             YORK .   ,23.39
08/01/2014,Restaurants and Bars               ,LA VECCHIA SCUOLA        YORK YO1  ,26.65
08/01/2014,Restaurants and Bars               ,LA VECCHIA SCUOLA        YORK YO1  ,26.65
08/01/2014,Hotels and Accommodation           ,BOMBAY PALACE            LONDON    ,31.00
08/01/2014,Restaurants and Bars               ,PREZZO                   LONDON  W1,19.20
08/01/2014,Travel - Air/Rail/Road             ,CITY OF YORK COUNCIL     YORK      ,11.70
08/01/2014,Restaurants and Bars               ,COTE ST CHRISTOPHERS P   LONDON  W1,36.59
08/01/2014,Restaurants and Bars               ,THISTLE MARBLE ARCH F   LONDON    ,38.30
08/01/2014,Travel - Air/Rail/Road             ,EURO TAXIS LTD           BRISTOL   ,21.12
08/01/2014,Travel - Air/Rail/Road             ,E COAST MAIN LN CO LTD   PETERBOROU,13.00
08/01/2014,Restaurants and Bars               ,JINNAH RESTAURANT YOR   YORK      ,17.00
08/01/2014,Travel - Air/Rail/Road             ,Q PARK THE SHAMBLES      YORK      ,13.50
08/01/2014,Restaurants and Bars               ,CARLUCCIOS LTD           GARRICK ST,24.49
08/01/2014,Restaurants and Bars               ,COTE ST CHRISTOPHERS P   LONDON  W1,36.59
08/01/2014,Catering and Catering Supplies     ,MACHIAVELLI              LONDON  WC,33.47
08/01/2014,Restaurants and Bars               ,CARLUCCIOS LTD           GARRICK ST,24.49
08/01/2014,Restaurants and Bars               ,COTE ST CHRISTOPHERS P   LONDON  W1,36.59
08/01/2014,Restaurants and Bars               ,COTE ST CHRISTOPHERS P   LONDON  W1,36.59
08/01/2014,Automotive Fuel                    ,MRH RETAIL SUTTERTON     BOSTON    ,6.37
08/01/2014,Restaurants and Bars               ,CHAMELI TANDOORI         SPALDING  ,23.30
08/01/2014,Travel - Air/Rail/Road             ,NCP LIMITED              NOTTM MOUN,4.10
08/01/2014,Travel - Air/Rail/Road             ,FGW SELF SERVICE         PADDINGTON,29.60
08/01/2014,Travel - Air/Rail/Road             ,FGW SELF SERVICE         DIDCOT    ,29.60
08/01/2014,Restaurants and Bars               ,LA VECCHIA SCUOLA        YORK YO1  ,26.65
08/01/2014,Restaurants and Bars               ,POSTERN GATE             YORK      ,11.69
08/01/2014,Travel - Air/Rail/Road             ,TICKETOFFICESALE         SWTRAINS A,27.40
08/01/2014,Restaurants and Bars               ,COTE ST CHRISTOPHERS P   LONDON  W1,19.20
08/01/2014,Travel - Air/Rail/Road             ,XC TRAINS LTD            BIRMINGHAM,15.90
08/01/2014,Restaurants and Bars               ,COTE ST CHRISTOPHERS P   LONDON  W1,36.59
08/01/2014,Restaurants and Bars               ,ZAYNA RESTAURANT         LONDON  W1,30.52
08/01/2014,Travel - Air/Rail/Road             ,FCC CONNECT              MIDDLESEX ,11.60
08/01/2014,Restaurants and Bars               ,THE RIDING HOUSE CAFE    LONDON  W1,32.82
08/01/2014,Hotels and Accommodation           ,NOVOTEL YORK             YORK .   ,23.39
08/01/2014,Restaurants and Bars               ,ROTI CHAI                LONDON W1H,26.21
08/01/2014,Restaurants and Bars               ,MAZE                     LONDON    ,40.00
08/01/2014,Restaurants and Bars               ,ROTI CHAI                LONDON W1H,27.78
08/01/2014,Restaurants and Bars               ,MAZE                     LONDON    ,40.00
08/01/2014,Restaurants and Bars               ,THISTLE MARBLE ARCH F   LONDON    ,34.90
08/01/2014,Restaurants and Bars               ,LA VECCHIA SCUOLA        YORK YO1  ,26.65
08/01/2014,Automotive Fuel                    ,W EVES  COSS LT       WHITBY    ,42.84
08/01/2014,Hotels and Accommodation           ,PLATOS                   CARNFORTH ,32.80
08/01/2014,Automotive Fuel                    ,TESCO PFS 3770           BARKINGSID,49.24
08/01/2014,Travel - Air/Rail/Road             ,CCP LONDON LTD           SALFORD   ,16.00
08/01/2014,Hotels and Accommodation           ,BOMBAY PALACE            LONDON    ,31.00
08/01/2014,Restaurants and Bars               ,TAS RESTAURANT           LONDON    ,31.00
08/01/2014,Restaurants and Bars               ,THE RIDING HOUSE CAFE    LONDON  W1,32.82
08/01/2014,Restaurants and Bars               ,VINOTECA SP              LONDON W1H,36.63
08/01/2014,Catering and Catering Supplies     ,MACHIAVELLI              LONDON  WC,33.47
08/01/2014,Travel - Air/Rail/Road             ,NCP LIMITED PD          FELTHAM   ,22.00
08/01/2014,Restaurants and Bars               ,CARLUCCIOS LTD           GARRICK ST,24.49
08/01/2014,Restaurants and Bars               ,COTE ST CHRISTOPHERS P   LONDON  W1,36.59
08/01/2014,Travel - Air/Rail/Road             ,LONDON MIDLAND TIC       WORCESTER ,15.30
08/01/2014,Hotels and Accommodation           ,NOVOTEL YORK             YORK .   ,23.39
08/01/2014,Travel - Air/Rail/Road             ,EC MAINLINE CO TO       DONCSTER 6,30.00
08/01/2014,Travel - Air/Rail/Road             ,THE CHILTERN RAILW       SOLIHULL 4,6.90
08/01/2014,Restaurants and Bars               ,TAS RESTAURANT           LONDON    ,31.00
08/01/2014,Travel - Air/Rail/Road             ,LUL TICKET OFFICE.       HOLBRON   ,40.00
08/01/2014,Restaurants and Bars               ,LA VECCHIA SCUOLA        YORK YO1  ,26.65
08/01/2014,Hotels and Accommodation           ,NOVOTEL YORK             YORK .   ,23.39
08/01/2014,Restaurants and Bars               ,POSTERN GATE             YORK      ,13.59
08/01/2014,Restaurants and Bars               ,SALAAM NAMASTE           LONDON WC1,42.08
08/01/2014,Restaurants and Bars               ,AKBAR BALTI YORK LTD   YORK      ,20.17
08/01/2014,Travel - Air/Rail/Road             ,APCOA CONNECT - FGW      UXBRIDGE  ,7.10
08/01/2014,Travel - Air/Rail/Road             ,APCOA CONNECT - FGW      UXBRIDGE  ,30.60
08/01/2014,Restaurants and Bars               ,BYRON HAMBURGERS         CHARING CR,24.40
08/01/2014,Restaurants and Bars               ,TAS RESTAURANT           LONDON    ,31.00
08/01/2014,Restaurants and Bars               ,AKBAR BALTI YORK LTD   YORK      ,20.17
08/01/2014,Hotels and Accommodation           ,STRAND PALACE HOTEL      STRANDPALA,17.00
08/01/2014,Restaurants and Bars               ,THE OLD SIAM             YORK      ,20.00
08/01/2014,Restaurants and Bars               ,AKBAR BALTI YORK LTD   YORK      ,20.17
08/01/2014,Restaurants and Bars               ,ROTI CHAI                LONDON W1H,22.50
08/01/2014,Restaurants and Bars               ,COTE ST CHRISTOPHERS P   LONDON  W1,19.20
08/01/2014,Restaurants and Bars               ,CARLUCCIOS LTD           GARRICK ST,24.49
08/01/2014,Hotels and Accommodation           ,NOVOTEL YORK             YORK .   ,15.00
08/01/2014,Restaurants and Bars               ,ZAYNA RESTAURANT         LONDON  W1,30.52
08/01/2014,Restaurants and Bars               ,ROTI CHAI                LONDON W1H,29.02
08/01/2014,Travel - Air/Rail/Road             ,LUL TICKET MACHINE       WATERLOO A,20.00
08/01/2014,Restaurants and Bars               ,THISTLE MARBLE ARCH F   LONDON    ,28.10
08/01/2014,General Retail and Wholesale       ,UPPER CRUST              PRESTON   ,2.35
08/01/2014,Travel - Air/Rail/Road             ,WEST COAST TRAINS        CUMBRIA 21,16.00
08/01/2014,Restaurants and Bars               ,COTE ST CHRISTOPHERS P   LONDON  W1,36.69
08/01/2014,Travel - Air/Rail/Road             ,LONDON MIDLAND TIC       BIRMINGHAM,4.10
08/01/2014,Restaurants and Bars               ,THISTLE MARBLE ARCH F   LONDON    ,3.50
08/01/2014,Restaurants and Bars               ,ROTI CHAI                LONDON W1H,36.45
08/01/2014,Restaurants and Bars               ,JINNAH RESTAURANT YOR   YORK      ,17.00
08/01/2014,Travel - Air/Rail/Road             ,NORTHERN RAIL LTD        LESBURY 77,46.00
08/01/2014,Hotels and Accommodation           ,HILTON                   ARUNDEL   ,57.00
08/01/2014,Restaurants and Bars               ,DOG  BACON              WORTHING  ,19.25
08/01/2014,Travel - Air/Rail/Road             ,NEW SOUTHERN RAILW       DORKING 53,14.70
08/01/2014,Restaurants and Bars               ,LA VECCHIA SCUOLA        YORK YO1  ,26.65
08/01/2014,General Retail and Wholesale       ,SELFRIDGES               LONDON    ,20.50
08/01/2014,Restaurants and Bars               ,TAS RESTAURANT           LONDON    ,31.00
08/01/2014,Restaurants and Bars               ,ZAYNA RESTAURANT         LONDON  W1,30.52
08/01/2014,Restaurants and Bars               ,ZAYNA RESTAURANT         LONDON  W1,30.52
08/01/2014,Restaurants and Bars               ,COTE ST CHRISTOPHERS P   LONDON  W1,19.20
08/01/2014,Restaurants and Bars               ,IL FORNELLO              LONDON WC1,23.00
08/01/2014,Restaurants and Bars               ,ZAYNA RESTAURANT         LONDON  W1,30.52
08/01/2014,Statutory Bodies                   ,SOUTH GLOS COUNCIL       BRISTOL   ,10.00
08/01/2014,Restaurants and Bars               ,THE RIDING HOUSE CAFE    LONDON  W1,32.81
08/01/2014,Restaurants and Bars               ,THISTLE MARBLE ARCH F   LONDON    ,26.35
08/01/2014,Restaurants and Bars               ,CARLUCCIOS LTD           GARRICK ST,24.49
08/01/2014,Restaurants and Bars               ,CAFE MAROUSH             LONDON    ,25.75
08/01/2014,Travel - Air/Rail/Road             ,ARRIVA TRAINS WALE       SREWBURY 4,14.20
08/01/2014,Automotive Fuel                    ,PACE YORK ROAD           SHIPTON TH,4.65
08/01/2014,Restaurants and Bars               ,AKBAR BALTI YORK LTD   YORK      ,20.17
08/01/2014,Travel - Air/Rail/Road             ,CITY OF YORK COUNCIL     YORK      ,11.80
08/01/2014,Restaurants and Bars               ,JAMIES ITALIAN           YORK      ,22.80
08/01/2014,Restaurants and Bars               ,COTE ST CHRISTOPHERS P   LONDON  W1,36.59
08/01/2014,Restaurants and Bars               ,ZAYNA RESTAURANT         LONDON  W1,30.52
08/01/2014,Travel - Air/Rail/Road             ,SELFSERVE TICKET         SWTRAINSST,20.00
08/01/2014,Restaurants and Bars               ,LA VECCHIA SCUOLA        YORK YO1  ,26.65
08/01/2014,Travel - Air/Rail/Road             ,CITY OF YORK COUNCIL     YORK      ,11.80
08/01/2014,Travel - Air/Rail/Road             ,LONDON OVERGROUND-       WATFORD 23,40.00
08/01/2014,Travel - Air/Rail/Road             ,METEOR CONNECT           HOUNSLOW  ,4.80
08/01/2014,Hotels and Accommodation           ,IMPERIAL HOTEL           TORQUAY   ,7.75
08/01/2014,Hotels and Accommodation           ,IMPERIAL HOTEL           TORQUAY   ,11.90
08/01/2014,Hotels and Accommodation           ,HOLIDAY INN BLOOMSBURY   LONDON    ,20.50
08/01/2014,Restaurants and Bars               ,TITOS PERUVIAN RESTAU   LONDON    ,18.32
08/01/2014,Travel - Air/Rail/Road             ,SELFSERVE TICKET         SWTRAINS R,20.00
08/01/2014,Travel - Air/Rail/Road             ,NCP LIMITED              RICHMOND M,18.55
08/01/2014,Restaurants and Bars               ,COTE ST CHRISTOPHERS P   LONDON  W1,19.20
08/01/2014,Travel - Air/Rail/Road             ,LUL TICKET MACHINE       HOLBORN   ,60.00
08/01/2014,Hotels and Accommodation           ,NOVOTEL YORK             YORK .   ,21.90
08/01/2014,Travel - Air/Rail/Road             ,Q PARK THE SHAMBLES      YORK      ,13.50
08/01/2014,Travel - Air/Rail/Road             ,FIRSTKEOLIS TRANS       SCNTHRPE 6,27.65
09/01/2014,Travel - Air/Rail/Road             ,LUL TICKET MACHINE       MARBLE ARC,4.50
09/01/2014,Hotels and Accommodation           ,NOVOTEL YORK             YORK .   ,10.00
09/01/2014,Restaurants and Bars               ,RECIPEASE                LONDON    ,16.25
09/01/2014,Restaurants and Bars               ,STARBUCKS                NEW ST RAI,5.05
09/01/2014,Travel - Air/Rail/Road             ,LUL TICKET OFFICE.       MARBLE ARC,1.60
09/01/2014,Travel - Air/Rail/Road             ,LUL TICKET OFFICE.       MARBLE ARC,7.30
09/01/2014,Automotive Fuel                    ,FERRYBRIDGE MWSA         KNOTTINGLE,17.32
09/01/2014,Travel - Air/Rail/Road             ,METEOR PARKING LTD       0845603619,12.50
09/01/2014,Hotels and Accommodation           ,NOVOTEL YORK             YORK .   ,20.00
09/01/2014,Travel - Air/Rail/Road             ,Q PARK THE SHAMBLES      YORK      ,13.50
09/01/2014,Restaurants and Bars               ,LA PORCHETTA POLLO       LONDON W1D,14.99
09/01/2014,Hotels and Accommodation           ,NOVOTEL YORK             YORK .   ,20.00
09/01/2014,Travel - Air/Rail/Road             ,CITY OF YORK COUNCIL     YORK      ,11.80
09/01/2014,Travel - Air/Rail/Road             ,ECML RETFORD PARKING     RETFORD   ,14.00
09/01/2014,Hotels and Accommodation           ,NOVOTEL YORK             YORK .   ,10.00
09/01/2014,Hotels and Accommodation           ,CEDAR COURT HOTEL        HUDDERSFIE,24.00
09/01/2014,Automotive Fuel                    ,SAINSBURYS SMKTS        TAUNTON   ,16.50
09/01/2014,Travel - Air/Rail/Road             ,LONDON TAXI FARE         0207655697,8.80
09/01/2014,Hotels and Accommodation           ,NOVOTEL YORK             YORK .   ,10.00
09/01/2014,Books and Periodicals              ,WH SMITH                 MANCHESTER,5.67
09/01/2014,Hotels and Accommodation           ,DOUBLETREE BY HILT       MANCHESTER,18.65
09/01/2014,Hotels and Accommodation           ,NOVOTEL YORK             YORK .   ,10.00
09/01/2014,Travel - Air/Rail/Road             ,WEST COAST TRAINS        STAFFORD 1,16.00
09/01/2014,Hotels and Accommodation           ,NOVOTEL YORK             YORK .   ,10.00
09/01/2014,Hotels and Accommodation           ,HOLIDAY INN YORK         YORK      ,25.19
09/01/2014,Hotels and Accommodation           ,IMPERIAL HOTEL           TORQUAY   ,29.90
09/01/2014,Travel - Air/Rail/Road             ,G L TAXIS                ST ALBANS ,11.00
09/01/2014,Hotels and Accommodation           ,THE DERBYSHIRE HOTEL     DERBY     ,-19.50
09/01/2014,Travel - Air/Rail/Road             ,Q PARK THE SHAMBLES      YORK      ,13.50
09/01/2014,Hotels and Accommodation           ,THISTLE MARBLE ARCH      LONDON    ,27.35
09/01/2014,Automotive Fuel                    ,TESCO PFS 3708           EXETER VAL,10.47
09/01/2014,Travel - Air/Rail/Road             ,LUL TICKET MACHINE       MARBLE ARC,20.00
09/01/2014,Automotive Fuel                    ,SYMONDS RETAIL LTD       WORLE     ,24.85
09/01/2014,Travel - Air/Rail/Road             ,OYSTER AUTOTOPUP         0845 33098,20.00
09/01/2014,Mail and Courier Services          ,EUSTON                   LONDON    ,9.00
09/01/2014,Travel - Air/Rail/Road             ,WEST COAST TRAINS        LONDON NW1,49.50
09/01/2014,Travel - Air/Rail/Road             ,APCOA NWR LIVERPOOL LI   LIVERPOOL ,42.00
09/01/2014,Hotels and Accommodation           ,NOVOTEL YORK             YORK .   ,20.00
09/01/2014,Travel - Air/Rail/Road             ,Q PARK THE SHAMBLES      YORK      ,13.50
09/01/2014,Hotels and Accommodation           ,NOVOTEL YORK             YORK .   ,10.00
09/01/2014,Restaurants and Bars               ,WAGAMAMA STEATHAM ST     STREATHAM ,20.15
09/01/2014,General Retail and Wholesale       ,MORRISONS LOCAL          YORK      ,3.35
09/01/2014,Travel - Air/Rail/Road             ,WEST COAST TRAINS        STAFFORD 1,16.00
09/01/2014,Hotels and Accommodation           ,NOVOTEL YORK             YORK .   ,10.00
09/01/2014,Hotels and Accommodation           ,NOVOTEL YORK             YORK .   ,5.00
09/01/2014,Travel - Air/Rail/Road             ,WEST COAST TRAINS        PRESTON 27,20.00
09/01/2014,General Retail and Wholesale       ,HALFORDS 0825            YORK      ,99.00
09/01/2014,Automotive Fuel                    ,BHAM PARTNERS            SHEFFIELD ,32.01
09/01/2014,Travel - Air/Rail/Road             ,CITY OF YORK COUNCIL     YORK      ,11.70
09/01/2014,Travel - Air/Rail/Road             ,GREATER ANGLIA           CAMBRIDGE ,22.60
09/01/2014,Travel - Air/Rail/Road             ,E COAST MAIN LN CO LTD   PETERBOROU,13.00
09/01/2014,Hotels and Accommodation           ,NOVOTEL YORK             YORK .   ,10.00
09/01/2014,Travel - Air/Rail/Road             ,Q PARK BIRMINGHAM BRINDLE BIRMINGHA,31.40
09/01/2014,Automotive Fuel                    ,TESCO PFS 5570           SHROPSHIRE,38.51
09/01/2014,Travel - Air/Rail/Road             ,ECML RETFORD PARKING     RETFORD   ,14.00
09/01/2014,Automotive Fuel                    ,MRH RETAIL SUTTERTON     BOSTON    ,5.78
09/01/2014,Automotive Fuel                    ,MRH RETAIL SUTTERTON     BOSTON    ,3.79
09/01/2014,Travel - Air/Rail/Road             ,FGW SELF SERVICE         DIDCOT    ,58.00
09/01/2014,Hotels and Accommodation           ,NOVOTEL YORK             YORK .   ,20.00
09/01/2014,Travel - Air/Rail/Road             ,TICKETOFFICESALE         SWTRAINS A,27.40
09/01/2014,Automotive Fuel                    ,SOUTHWAITE NORTH MWSA    NR CARLISL,41.23
09/01/2014,Hotels and Accommodation           ,WHITES                   BOLTON    ,8.85
09/01/2014,Restaurants and Bars               ,PIZZA EXPRESS 0841       BIRMINGHAM,19.80
09/01/2014,Restaurants and Bars               ,LOVES FRESH PASTA LTD   LONDON W1S,10.95
09/01/2014,Automotive Fuel                    ,ESSO NEW SARUM SSTN      SALISBURY ,36.87
09/01/2014,Automotive Fuel                    ,SAINSBURYS PETROL       GLEN ROAD ,25.87
09/01/2014,Hotels and Accommodation           ,NOVOTEL YORK             YORK .   ,10.00
09/01/2014,Automotive Fuel                    ,SALTASH SERVICE AREA     SALTASH   ,16.42
09/01/2014,Automotive Fuel                    ,MURCO SSTN 414          SUTTON COL,21.83
09/01/2014,Automotive Fuel                    ,ESSO NEW SARUM SSTN      SALISBURY ,29.30
09/01/2014,Books and Periodicals              ,Amazon  Mktplce EU-UK    AMAZON.CO.,148.40
09/01/2014,Professional Services              ,UPT - EMT NOTTINGHAM RAI NOTTINGHAM,12.00
09/01/2014,Hotels and Accommodation           ,COPTHORNE HOTEL          BIRMINGHAM,12.00
09/01/2014,Automotive Fuel                    ,TESCO PFS 2620           HEAVITREE ,18.16
09/01/2014,Automotive Fuel                    ,BARROW FILLING STATION LT BARROW   ,30.00
09/01/2014,Restaurants and Bars               ,PIZZA EXPRESS            LONDON 321,22.25
09/01/2014,Travel - Air/Rail/Road             ,ECML NEWARK PARKING      NEWARK    ,20.00
09/01/2014,Automotive Fuel                    ,CO-OP GROUP PETROL       ASTON     ,11.58
09/01/2014,Travel - Air/Rail/Road             ,THE CHILTERN RAILW       SOLIHULL 4,6.90
09/01/2014,Automotive Fuel                    ,TCS MILL LANE            WARRINGTON,10.45
09/01/2014,Automotive Fuel                    ,BP ESSEX GARAGE          MARYPORT C,36.48
09/01/2014,Hotels and Accommodation           ,NOVOTEL YORK             YORK .   ,20.00
09/01/2014,Travel - Air/Rail/Road             ,Q PARK THE SHAMBLES      YORK      ,13.50
09/01/2014,Hotels and Accommodation           ,KINGSWAY HALL HOTEL DC   LONDON    ,44.00
09/01/2014,Automotive Fuel                    ,CAENBY CORNER GARAGE LIMI RASEN MAR,23.19
09/01/2014,Hotels and Accommodation           ,NOVOTEL YORK             YORK .   ,10.00
09/01/2014,Travel - Air/Rail/Road             ,EAST MIDLANDS TRAI       LONDON NW1,21.50
09/01/2014,Automotive Fuel                    ,SHELL HOOLE ROAD         CHESTER   ,14.44
09/01/2014,Automotive Fuel                    ,SMITHALEIGH SERVICE STATI PLYMOUTH ,22.09
09/01/2014,Travel - Air/Rail/Road             ,LUL TICKET MACHINE       HOLBORN   ,20.00
09/01/2014,Automotive Fuel                    ,LOCKS GARAGE             HEREFORD 4,42.29
09/01/2014,Automotive Fuel                    ,SHELL CRIBBS 356         BRISTOL   ,26.31
09/01/2014,Travel - Air/Rail/Road             ,EAST MIDLAND CHESTERFIEL CHESTERFIE,20.00
09/01/2014,Travel - Air/Rail/Road             ,LONDON MIDLAND TIC       BIRMINGHAM,4.10
09/01/2014,Travel - Air/Rail/Road             ,NCP LIMITED              BHAM ALBAN,24.70
09/01/2014,Hotels and Accommodation           ,CP BIRMINGHAM            BIRMINGHAM,77.29
09/01/2014,Hotels and Accommodation           ,CP BIRMINGHAM            BIRMINGHAM,54.00
09/01/2014,Automotive Fuel                    ,BP PETERSFIELD CONNECT   PETERSFIEL,22.82
09/01/2014,Travel - Air/Rail/Road             ,NEW SOUTHERN RAILW       LND SW1V 5,8.60
09/01/2014,Restaurants and Bars               ,UPPERCRUST CART          YORK      ,8.29
09/01/2014,Auto Rental                        ,CITY FLEET NETWORK       0207 90802,18.60
09/01/2014,Automotive Fuel                    ,SHELL HENFIELD           HENFIELD  ,36.55
09/01/2014,Travel - Air/Rail/Road             ,LUL TICKET OFFICE.       PADDINGTON,30.00
09/01/2014,Travel - Air/Rail/Road             ,FGW CHIP1                CHIPPENHAM,7.10
09/01/2014,Hotels and Accommodation           ,MACDONALD HOTELS MANCH   MSTER M1 ,25.15
09/01/2014,Travel - Air/Rail/Road             ,CARPARK MACHINE          SWTRAINS F,15.00
09/01/2014,"Vehicles, Servicing and Spares     ",WEST HILL GARAGE AND CRAS DEVON    ,11.50
09/01/2014,Automotive Fuel                    ,Q8 BHR SSTN             HULL .    ,17.34
09/01/2014,Travel - Air/Rail/Road             ,CITY OF YORK COUNCIL     YORK      ,7.90
09/01/2014,Travel - Air/Rail/Road             ,ECML NEWCASTLE PARKING   NEWCASTLE ,30.00
09/01/2014,Travel - Air/Rail/Road             ,LUL TICKET MACHINE       MARBLE ARC,20.00
09/01/2014,Hotels and Accommodation           ,COPTHORNE HOTEL          BIRMINGHAM,23.00
09/01/2014,Hotels and Accommodation           ,NOVOTEL YORK             YORK .   ,10.00
09/01/2014,Automotive Fuel                    ,ASDA PETROL              ST AUSTELL,54.14
09/01/2014,Automotive Fuel                    ,SHELL GROVE              WOODBRIDGE,20.05
09/01/2014,Restaurants and Bars               ,LOVES FRESH PASTA LTD   LONDON W1S,3.80
09/01/2014,Restaurants and Bars               ,LOVES FRESH PASTA LTD   LONDON W1S,7.50
09/01/2014,Travel - Air/Rail/Road             ,NCP LIMITED              RICHMOND M,18.55
09/01/2014,Travel - Air/Rail/Road             ,SELFSERVE TICKET         SWTRAINS W,34.20
09/01/2014,Hotels and Accommodation           ,NOVOTEL YORK             YORK .   ,10.00
09/01/2014,Travel - Air/Rail/Road             ,NORTHERN RAIL LTD-       SKIPTON 32,28.25
10/01/2014,General Retail and Wholesale       ,WM MORRISONS             FELIXSTOWE,4.89
10/01/2014,Travel - Air/Rail/Road             ,CARPARK MACHINE          SWTRAINS S,6.00
10/01/2014,Travel - Air/Rail/Road             ,APCOA - NWR MANCHESTER   MANCHESTER,12.00
10/01/2014,Restaurants and Bars               ,LE PAIN QUOTIDIEN        LONDON  W1,4.95
10/01/2014,Restaurants and Bars               ,LE PAIN QUOTIDIEN        LONDON  W1,9.33
10/01/2014,Travel - Air/Rail/Road             ,LUL TICKET MACHINE       HOLBORN   ,30.00
10/01/2014,Travel - Air/Rail/Road             ,OYSTER AUTOTOPUP         0845 33098,20.00
10/01/2014,Hotels and Accommodation           ,HOLIDAY INN BLOOMSBURY   LONDON    ,42.15
10/01/2014,Restaurants and Bars               ,EAT                      LONDON  WC,5.09
10/01/2014,Restaurants and Bars               ,PADDINGTON STATION       LONDON    ,2.25
10/01/2014,Travel - Air/Rail/Road             ,APCOA - NWR MANCHESTER   MANCHESTER,12.00
10/01/2014,Automotive Fuel                    ,LION GARAGES LTD         BEDLINGTON,10.15
10/01/2014,Automotive Fuel                    ,WETHERBY MWSA            WETHERBY W,48.71
10/01/2014,Travel - Air/Rail/Road             ,LUL TICKET MACHINE       PADDINGTON,20.00
10/01/2014,Hotels and Accommodation           ,WAVERLEY HOUSE HTL       WAVERLEYHS,33.01
10/01/2014,Travel - Air/Rail/Road             ,LUL TICKET OFFICE.       SOUTHGATE ,11.00
10/01/2014,Travel - Air/Rail/Road             ,WEST COAST TRAINS        CREWE 1243,8.00
10/01/2014,Automotive Fuel                    ,G R YEATES LTD           STOCKPORT ,43.89
10/01/2014,Automotive Fuel                    ,TEXACO PERSHORE RD       B297HQ 490,30.70
10/01/2014,Travel - Air/Rail/Road             ,M6 TOLL                  TOLL CHARG,4.00
10/01/2014,Automotive Fuel                    ,SAINSBURYS PETROL        TRURO     ,30.38
10/01/2014,Professional Services              ,UPT-THE ORACLE SHOPPING  READING   ,6.50
10/01/2014,Travel - Air/Rail/Road             ,LONDON OVERGROUND-       LONDN W4 5,50.00
10/01/2014,Travel - Air/Rail/Road             ,PARK MOBILE              BHAM B4  ,11.00
10/01/2014,Travel - Air/Rail/Road             ,PARK MOBILE              BHAM B4  ,11.00
10/01/2014,General Retail and Wholesale       ,SAINSBURYS SMKTS        LONDON 400,6.45
10/01/2014,Travel - Air/Rail/Road             ,LUL TICKET OFFICE.       PADDINGTON,8.80
10/01/2014,Travel - Air/Rail/Road             ,LONDON  SOUTH EAS       LONDON SE9,8.00
10/01/2014,Travel - Air/Rail/Road             ,NCP LIMITED PD          SAFFRON WA,7.60
10/01/2014,Travel - Air/Rail/Road             ,FGW BPW                 BRISTOL   ,7.60
10/01/2014,Automotive Fuel                    ,WM MORRISONS PETRO       SEAFORD   ,14.77
10/01/2014,Travel - Air/Rail/Road             ,LUL TICKET MACHINE       HOLBORN   ,20.00
10/01/2014,Travel - Air/Rail/Road             ,ECML YORK PARKING        YORK      ,30.00
10/01/2014,Medical Supplies and Services      ,BOOTS 1521               LONDON    ,4.89
10/01/2014,Telecommunication Services         ,CARPHONE WAREHOUSE       BOURNEMOUT,17.99
10/01/2014,Automotive Fuel                    ,SHELL PILGRIMS WAY       SEVENOAKS ,18.08
10/01/2014,Travel - Air/Rail/Road             ,APCOA FCC                HUNTINGDON,5.60
10/01/2014,Automotive Fuel                    ,CO-OP GROUP PETROL       PETROL RIV,19.68
10/01/2014,Automotive Fuel                    ,MURCO SERVICE STAT       WICK      ,25.42
10/01/2014,Travel - Air/Rail/Road             ,LUL TICKET OFFICE.       MARBLE ARC,50.00
10/01/2014,Automotive Fuel                    ,TESCO PAY AT PUMP 3787   ASHBY DE L,37.41
10/01/2014,General Retail and Wholesale       ,TESCO STORES 6430        NOTTINGHAM,4.00
10/01/2014,Travel - Air/Rail/Road             ,NCP LIMITED              NOTTM MOUN,8.20
10/01/2014,Hotels and Accommodation           ,MERCURE HOLLAND HOUSE HOT BRISTOL  ,37.90
10/01/2014,Travel - Air/Rail/Road             ,OYSTER AUTOTOPUP         0845 33098,20.00
10/01/2014,General Retail and Wholesale       ,SACAT MARKS AND SPENCE   NORTHAMPTO,4.19
10/01/2014,Automotive Fuel                    ,ESSO HOTHFIELD SSTN      ASHFORD   ,15.24
10/01/2014,Automotive Fuel                    ,SAINSBURYS PETROL        HARROGATE ,12.94
10/01/2014,Travel - Air/Rail/Road             ,CARPARK MACHINE          SWTRAINS S,14.00
10/01/2014,Restaurants and Bars               ,COSTA COFFEE             LONDON  WC,3.85
10/01/2014,Travel - Air/Rail/Road             ,LUL TICKET MACHINE       HOLBORN   ,4.50
10/01/2014,Automotive Fuel                    ,BURTON MWSA CONNECT-3219 CARNFORTH ,24.49
10/01/2014,Travel - Air/Rail/Road             ,NCP LIMITED PD          SAFFRON WA,7.60
10/01/2014,Travel - Air/Rail/Road             ,ARRIVA TRAINS WALE       HEREFORD 3,17.70
10/01/2014,Travel - Air/Rail/Road             ,LONDON MIDLAND           METEOR PAR,8.50
10/01/2014,Automotive Fuel                    ,LODERS FORECOURT         DORCHESTER,31.12
10/01/2014,Travel - Air/Rail/Road             ,NCP LIMITED PD          FELTHAM   ,11.00
10/01/2014,General Retail and Wholesale       ,SAINSBURYS SMKTS        CHICHESTER,12.20
10/01/2014,Travel - Air/Rail/Road             ,LONDON MIDLAND TIC       WORCESTER ,10.50
10/01/2014,Hotels and Accommodation           ,THE BEAUCHAMP            LONDON  WC,16.95
10/01/2014,Hotels and Accommodation           ,HOLIDAY INN BLOOMSBURY   LONDON    ,16.95
10/01/2014,Travel - Air/Rail/Road             ,NCP LIMITED              NOTTM MOUN,6.15
10/01/2014,Automotive Fuel                    ,EUROGARAGES LTD TA CARNF CARNFORTH,22.46
10/01/2014,Travel - Air/Rail/Road             ,APCOA CONNECT - FGW      UXBRIDGE  ,5.50
10/01/2014,Automotive Fuel                    ,BROBOT EAST BRIDGF       NOTTINGHAM,19.04
10/01/2014,Travel - Air/Rail/Road             ,OYSTER AUTOTOPUP         0845 33098,20.00
10/01/2014,General Retail and Wholesale       ,SAINSBURYS               HOLBORN   ,4.50
10/01/2014,Restaurants and Bars               ,MCDONALDS REST           HOLBORN   ,3.39
10/01/2014,Travel - Air/Rail/Road             ,APCOA CONNECT - FGW      UXBRIDGE  ,2.80
10/01/2014,Automotive Fuel                    ,TESCO PAY AT PUMP 4025   MINEHEAD  ,31.09
10/01/2014,Miscellaneous Industrial/Commercial,DASH                     LONDON    ,7.90
10/01/2014,Travel - Air/Rail/Road             ,FIRST CAPITAL CONN       BEDFORD   ,46.00
10/01/2014,Automotive Fuel                    ,SAINSBURYS SMKTS        TAUNTON   ,44.37
10/01/2014,Automotive Fuel                    ,SAINSBURYS PETROL        CHESTERFLD,15.11
10/01/2014,Automotive Fuel                    ,TESCO PFS 3736           LAUNCESTON,47.53
10/01/2014,Hotels and Accommodation           ,MERCURE HOLLAND HOUSE HOT BRISTOL  ,34.05
10/01/2014,Automotive Fuel                    ,TESCO PFS 3734           BLANDFORD ,20.96
10/01/2014,Travel - Air/Rail/Road             ,LONDON MIDLAND TIC       TRING     ,35.00
10/01/2014,Automotive Fuel                    ,W M MORRISON PLC         BARRY     ,46.40
10/01/2014,Automotive Fuel                    ,SAINSBURYS PETROL        PERTON    ,18.67
10/01/2014,Automotive Fuel                    ,ESSO SHIRES GARAGE  ENG LANGPORT  ,28.28
10/01/2014,Travel - Air/Rail/Road             ,APCOA CONNECT - FGW      UXBRIDGE  ,5.50
10/01/2014,Building Services                  ,CAS-HIRE                 STIRLING  ,630.00
10/01/2014,Travel - Air/Rail/Road             ,RCP PARKING LTD          CHAPEL WHA,3.40
10/01/2014,Travel - Air/Rail/Road             ,APCOA NWR LIVERPOOL LI   LIVERPOOL ,14.00
10/01/2014,Travel - Air/Rail/Road             ,TCCP-PORTSTDALESTNEWDO LEEDS     ,6.50
10/01/2014,Telecommunication Services         ,CARPHONE WAREHOUSE       YORK  255 ,19.99
10/01/2014,Travel - Air/Rail/Road             ,ECML YORK PARKING        YORK      ,15.00
10/01/2014,Mail and Courier Services          ,POST OFFICE COUNTER      EVESHAM   ,13.40
10/01/2014,General Retail and Wholesale       ,RAC PALL MALL CLUBHOUS   LONDON  SW,191.00
11/01/2014,Travel - Air/Rail/Road             ,OYSTER BUS AUTOTOP       0845 33098,20.00
11/01/2014,Telecommunication Services         ,PHONES 4 U LTD           TEWKESBURY,30.00
11/01/2014,Automotive Fuel                    ,MORRISONS PETROL         MANCHESTER,29.06
12/01/2014,Restaurants and Bars               ,BARAJEE                  BIRMINGHAM,34.45
12/01/2014,Travel - Air/Rail/Road             ,TRAINLINE.COM            08712 441 ,205.02
12/01/2014,General Retail and Wholesale       ,SAINSBURYS SMKTS        BLOOMSBURY,7.40
12/01/2014,Travel - Air/Rail/Road             ,OYSTER AUTOTOPUP         0845 33098,20.00
12/01/2014,Restaurants and Bars               ,SANDBACH MWSA            SANDBACH  ,7.48
12/01/2014,Restaurants and Bars               ,MCDONALDS                CHESHIRE  ,6.18
12/01/2014,Restaurants and Bars               ,MASSALLA LOUNGE          HARTLEPOOL,18.45
12/01/2014,Automotive Fuel                    ,BP MOTO HESTON EAST      HOUNSLOW. ,33.61
12/01/2014,Hotels and Accommodation           ,RICHMOND GATE HOTE       RICHMOND  ,27.50
13/01/2014,Restaurants and Bars               ,THE SWAN HOTEL           LEIGHTON B,6.09
13/01/2014,Travel - Air/Rail/Road             ,FIRST CAPITAL CONN       LONDON N5 ,14.60
13/01/2014,Hotels and Accommodation           ,VILLAGE HOTEL BURY       BURY      ,9.20
13/01/2014,Travel - Air/Rail/Road             ,CARPARK MACHINE          SWTRAINS G,28.50
13/01/2014,Restaurants and Bars               ,CELEBRITY INDIAN RESTA   BIRMINGHAM,29.00
13/01/2014,Travel - Air/Rail/Road             ,NCP LIMITED              BHAM ALBER,7.18
13/01/2014,Travel - Air/Rail/Road             ,PARK MOBILE              BHAM B4  ,1.10
13/01/2014,Travel - Air/Rail/Road             ,PARK MOBILE              BHAM B4  ,1.80
13/01/2014,Hotels and Accommodation           ,COOMBE ABBEY HOTEL       COVENTRY  ,29.00
13/01/2014,Travel - Air/Rail/Road             ,M6 TOLL                  TOLL CHARG,5.50
13/01/2014,Automotive Fuel                    ,SHELL CAREW              SOUTH BREN,2.30
13/01/2014,Hotels and Accommodation           ,WHITE HART HOTEL         HAMPTON WI,19.95
13/01/2014,Restaurants and Bars               ,MCDONALDS REST.          NORTH CHEA,4.59
13/01/2014,Restaurants and Bars               ,MCDONALDS REST.          SPARKFORD ,3.29
13/01/2014,Restaurants and Bars               ,LL CASTELLETTO           LONDON    ,16.80
13/01/2014,Travel - Air/Rail/Road             ,APCOA CONNECT - FGW      UXBRIDGE  ,11.00
13/01/2014,Restaurants and Bars               ,UPSTAIRS AT THE GRILL    CHESTER   ,25.75
13/01/2014,Professional Services              ,TOWN CENTRE C P-MERRION  LEEDS     ,5.80
13/01/2014,Restaurants and Bars               ,PACK HORSE INN           HIGH PEAK ,11.20
13/01/2014,Travel - Air/Rail/Road             ,LUL TICKET MACHINE       PADDINGTON,4.50
13/01/2014,Travel - Air/Rail/Road             ,WWW.WIGHTLINK.CO.UK      INTERNET  ,40.00
13/01/2014,Restaurants and Bars               ,CARLUCCIOS LTD           BRUNSWICK ,19.00
13/01/2014,Hotels and Accommodation           ,PREMIER INN44023600      READING   ,15.29
13/01/2014,Hotels and Accommodation           ,PREMIER INN44023600      READING   ,8.00
13/01/2014,Travel - Air/Rail/Road             ,M6 TOLL                  TOLL CHARG,5.50
13/01/2014,Automotive Fuel                    ,SAINSBURYS PETROL        BATH      ,44.38
13/01/2014,Automotive Fuel                    ,ESSO MOTO TAMWORTH       WILNECOTE ,25.00
13/01/2014,Hotels and Accommodation           ,HILTON                   LEEDS     ,15.00
13/01/2014,Hotels and Accommodation           ,PARK PLAZA LEEDS         LEEDS .  ,32.50
13/01/2014,Travel - Air/Rail/Road             ,APCOA - NWR LEEDS        LEEDS     ,27.50
13/01/2014,Automotive Fuel                    ,WOOLMER SERVICE STN      BORDON    ,42.68
13/01/2014,Restaurants and Bars               ,GURKHA PALACE RESTAURA   FARNBOROUG,23.17
13/01/2014,Restaurants and Bars               ,SPAGHETTI HOUSE LT       LONDON  WC,16.00
13/01/2014,Professional Services              ,TOWN CENTRE C P-MERRION  LEEDS     ,4.40
13/01/2014,Restaurants and Bars               ,CELEBRITY INDIAN RESTA   BIRMINGHAM,29.00
13/01/2014,Hotels and Accommodation           ,HILTON                   WARWICK   ,26.35
13/01/2014,Restaurants and Bars               ,PIZZA EXPRESS            SHAMPTON ,17.35
13/01/2014,Travel - Air/Rail/Road             ,EC MAINLINE CO TO       DARLNGTN 7,44.00
13/01/2014,Hotels and Accommodation           ,HOLIDAY INN  BLOOMS      LONDON    ,3.80
13/01/2014,Restaurants and Bars               ,CARLUCCIOS LTD           BRUNSWICK ,19.15
13/01/2014,Medical Supplies and Services      ,BOOTS 1521               LONDON    ,3.79
13/01/2014,Restaurants and Bars               ,CAFE CENTRAL 02          PARIS     ,44.69
13/01/2014,Travel - Air/Rail/Road             ,RATP                     PARIS CEDE,5.84
13/01/2014,Travel - Air/Rail/Road             ,WEST COAST TRAINS        STAFFORD 1,8.00
13/01/2014,Travel - Air/Rail/Road             ,FIRST CAPITAL CONN       HUNTINGDON,121.10
13/01/2014,Travel - Air/Rail/Road             ,APCOA FCC                HUNTINGDON,16.80
13/01/2014,Hotels and Accommodation           ,HOLIDAY INN LONDON       CHESSINGTO,19.40
13/01/2014,Travel - Air/Rail/Road             ,E COAST MAIN LN CO LTD   PETERBOROU,13.00
13/01/2014,Restaurants and Bars               ,GURKHA PALACE RESTAURA   FARNBOROUG,23.17
13/01/2014,General Retail and Wholesale       ,SAINSBURYS SMKTS        BIRMINGHAM,3.00
13/01/2014,General Retail and Wholesale       ,WM MORRISON 024          BILSTON   ,4.96
13/01/2014,Travel - Air/Rail/Road             ,LONDON MIDLAND TIC       SUTTON COL,5.30
13/01/2014,Travel - Air/Rail/Road             ,M6 TOLL                  TOLL CHARG,4.00
13/01/2014,Restaurants and Bars               ,BREWERS FAYRE 41516365   QUEEN VIC ,22.51
13/01/2014,Restaurants and Bars               ,PRET A MANGER            HIGH HOLBU,4.35
13/01/2014,Restaurants and Bars               ,PRET A MANGER            29-33 KING,6.10
13/01/2014,Restaurants and Bars               ,SPAGHETTI HOUSE LT       LONDON  WC,16.00
13/01/2014,Automotive Fuel                    ,BP KETTERING WEST SSERVE KETTERING,5.84
13/01/2014,Hotels and Accommodation           ,HILTON                   WARWICK   ,26.35
13/01/2014,Automotive Fuel                    ,SAINSBURYS PETROL        WEEDON ROA,19.50
13/01/2014,Hotels and Accommodation           ,COOMBE ABBEY HOTEL       COVENTRY  ,29.50
13/01/2014,Travel - Air/Rail/Road             ,FGW ON TRAIN SALES       PLYMOUTH  ,52.50
13/01/2014,Travel - Air/Rail/Road             ,FGW PLYMTH               PLYMOUTH  ,9.30
13/01/2014,Utilities and Non Automotive Fuel  ,LEWES SERVICE STATION    LEWES     ,25.92
13/01/2014,Restaurants and Bars               ,LITTLE YANG SING         MANCHESTER,35.00
13/01/2014,Travel - Air/Rail/Road             ,NCP LIMITED PD          COLCHESTER,12.30
13/01/2014,Restaurants and Bars               ,BEEFEATER40017075        SIRTHOMASW,17.37
13/01/2014,Travel - Air/Rail/Road             ,ROBIN CAR PARKS          SOUTHWELL ,7.50
13/01/2014,General Retail and Wholesale       ,G  E MURGATROYD SPAR    SEDBERGH  ,7.62
13/01/2014,Hotels and Accommodation           ,THE NEW INN              LANCASTER ,25.45
13/01/2014,Travel - Air/Rail/Road             ,WEST COAST TRAINS        WARRINGTON,9.00
13/01/2014,Automotive Fuel                    ,W M MORRISON             SHEFFIELD ,18.94
13/01/2014,Restaurants and Bars               ,MARQUIS CORNWALL         LONDON WC1,16.00
13/01/2014,Automotive Fuel                    ,HARTSHEAD 70089204       BRIGHOUSE ,20.16
13/01/2014,Hotels and Accommodation           ,VILLAGE HOTEL BURY       BURY      ,3.25
13/01/2014,Hotels and Accommodation           ,VILLAGE HOTEL BURY       BURY      ,9.20
13/01/2014,Restaurants and Bars               ,LITTLE YANG SING         MANCHESTER,35.00
13/01/2014,Travel - Air/Rail/Road             ,LUL TICKET OFFICE.       OVAL      ,30.00
13/01/2014,Restaurants and Bars               ,BEEFEATER40017075        SIRTHOMASW,18.13
13/01/2014,General Retail and Wholesale       ,TESCO STORES-2266        CHICHESTER,14.02
13/01/2014,Leisure Activities                 ,BRISTOL CITY COUNCIL -   BRISTOL   ,3.00
13/01/2014,"Office Stationery, Equipment and Su",STAPLES UK               BRISTOL   ,65.88
13/01/2014,Hotels and Accommodation           ,BEST WESTERN             BLACKBURN ,18.85
13/01/2014,General Retail and Wholesale       ,SAINSBURYS SMKTS        WEEDON RD ,3.55
13/01/2014,Automotive Fuel                    ,ESSO BRIDGE LANE SSTN    PENRITH   ,63.00
13/01/2014,Restaurants and Bars               ,SCOTCH CORNER BK         RICHMOND  ,8.19
13/01/2014,Travel - Air/Rail/Road             ,APCOA FCC                SANDY     ,5.00
13/01/2014,Automotive Fuel                    ,SHELL STUBBING 653       STUBBINGTO,4.42
13/01/2014,Miscellaneous Industrial/Commercial,DASH                     LONDON    ,7.90
13/01/2014,Travel - Air/Rail/Road             ,FIRST CAPITAL CONN       BEDFORD   ,131.40
13/01/2014,Restaurants and Bars               ,LL CASTELLETTO           LONDON    ,16.80
13/01/2014,Travel - Air/Rail/Road             ,LONDON OVERGROUND-       HARROW 143,12.00
13/01/2014,Restaurants and Bars               ,THE SWAN HOTEL           LEIGHTON B,9.40
13/01/2014,Hotels and Accommodation           ,HOLIDAY INN LONDON       CHESSINGTO,27.40
13/01/2014,Travel - Air/Rail/Road             ,SELFSERVE TICKET         SWTRAINS W,6.60
13/01/2014,Travel - Air/Rail/Road             ,FGW BPW                 BRISTOL   ,7.60
13/01/2014,Travel - Air/Rail/Road             ,FGW E STDO               EXETER    ,29.70
13/01/2014,Restaurants and Bars               ,CELEBRITY INDIAN RESTA   BIRMINGHAM,29.00
13/01/2014,Travel - Air/Rail/Road             ,LONDON MIDLAND           METEOR PAR,13.00
13/01/2014,Restaurants and Bars               ,UPSTAIRS AT THE GRILL    CHESTER   ,24.45
13/01/2014,Hotels and Accommodation           ,WHITE HART HOTEL         HAMPTON WI,14.90
13/01/2014,Automotive Fuel                    ,BP 1000 GUINEAS CONNECT  NEWMARKET ,8.82
13/01/2014,Automotive Fuel                    ,SHELL LEICESTER          OADBY     ,16.69
13/01/2014,Restaurants and Bars               ,KFC BOLTON DRIVE THRU    BOLTON    ,6.47
13/01/2014,Travel - Air/Rail/Road             ,RINGO                    COLCHESTER,4.20
13/01/2014,Travel - Air/Rail/Road             ,RINGO                    COLCHESTER,12.20
13/01/2014,Hotels and Accommodation           ,IBIS GLOUCESTER          GLOUCESTER,22.60
13/01/2014,Restaurants and Bars               ,CELEBRITY INDIAN RESTA   BIRMINGHAM,29.00
13/01/2014,Travel - Air/Rail/Road             ,TICKETOFFICESALE         SWTRAINS W,7.30
13/01/2014,Mail and Courier Services          ,POST OFFICE COUNTER      WILMSLOW  ,0.90
13/01/2014,Travel - Air/Rail/Road             ,SELFSERVE TICKET         SWTRAINSST,20.00
13/01/2014,Travel - Air/Rail/Road             ,APCOA FCC                ST NEOTS  ,7.70
13/01/2014,Travel - Air/Rail/Road             ,NCP LIMITED PD          CHESTER   ,5.90
13/01/2014,Travel - Air/Rail/Road             ,EC MAINLINE CO TO       LEEDS 6080,94.00
13/01/2014,Travel - Air/Rail/Road             ,APCOA - NWR LEEDS        LEEDS     ,17.50
13/01/2014,Hotels and Accommodation           ,RICHMOND GATE HOTE       RICHMOND  ,27.50
13/01/2014,Travel - Air/Rail/Road             ,SELFSERVE TICKET         SWTRAINS R,20.00
13/01/2014,Restaurants and Bars               ,BOMBAY                   BOSTON    ,15.65
14/01/2014,Automotive Fuel                    ,TESCO PFS 5238           STROOD    ,3.16
14/01/2014,Automotive Fuel                    ,BP TOLLGATE SSTN        GRAVESEND ,2.15
14/01/2014,Restaurants and Bars               ,THE SWAN HOTEL           LEIGHTON B,3.38
14/01/2014,Hotels and Accommodation           ,VILLAGE HOTEL BURY       BURY      ,12.45
14/01/2014,General Retail and Wholesale       ,ASDA STORES LTD 5810     HOUNSLOW  ,11.30
14/01/2014,Restaurants and Bars               ,MAMAS NEPALESE KITCHEN   HOUNSLOW  ,20.85
14/01/2014,Hotels and Accommodation           ,MARRIOTT                 NORWICH   ,25.75
14/01/2014,Travel - Air/Rail/Road             ,LUL TICKET MACHINE       LIVERPOOL ,4.50
14/01/2014,Restaurants and Bars               ,THISTLE CITY BARBICAN    LONDON    ,29.98
14/01/2014,Travel - Air/Rail/Road             ,SELFSERVE TICKET         NORBITON  ,20.00
14/01/2014,Restaurants and Bars               ,SAN CARLO                BIRMINGHAM,33.60
14/01/2014,Restaurants and Bars               ,SAN CARLO                BIRMINGHAM,27.20
14/01/2014,Restaurants and Bars               ,BLUE BELL                ROTHERHAM ,20.00
14/01/2014,Hotels and Accommodation           ,ARDSLEY HOUSE HOTEL      BARNSLEY  ,17.65
14/01/2014,Hotels and Accommodation           ,ANSTY HALL               COVENTRY  ,34.45
14/01/2014,Hotels and Accommodation           ,WHITE HART HOTEL         HAMPTON WI,17.45
14/01/2014,Travel - Air/Rail/Road             ,FIRST GREATER WESTERN    SWINDON   ,4.25
14/01/2014,Restaurants and Bars               ,KINGSTOWN HOTEL HOTEL    HULL      ,11.28
14/01/2014,Travel - Air/Rail/Road             ,WEST COAST TRAINS        CUMBRIA 21,8.00
14/01/2014,Hotels and Accommodation           ,CROWNE PLAZA             GATWICK-CR,28.82
14/01/2014,Automotive Fuel                    ,PREES HEATH              WHITCHURCH,11.89
14/01/2014,Hotels and Accommodation           ,THISTLE BLOOMSBURY PAR   LONDON    ,22.90
14/01/2014,Travel - Air/Rail/Road             ,WEST COAST TRAINS        CREWE 1243,16.00
14/01/2014,Travel - Air/Rail/Road             ,GRAND CENTRAL CAR PARK   STOCKPORT ,10.00
14/01/2014,Automotive Fuel                    ,TESCO PFS 5340           SUNDERLAND,25.00
14/01/2014,Restaurants and Bars               ,JAMIES ITALIAN          NOTTINGHAM,30.00
14/01/2014,Restaurants and Bars               ,IL FORNELLO              LONDON WC1,44.85
14/01/2014,Travel - Air/Rail/Road             ,FIRST GREATER WESTERN    SWINDON   ,2.30
14/01/2014,Travel - Air/Rail/Road             ,FIRST GREATER WESTERN    SWINDON   ,20.00
14/01/2014,Hotels and Accommodation           ,DOUBLETREE BY HILTON BRIS CLIFTON E,6.00
14/01/2014,Hotels and Accommodation           ,STAVERTON PARK           DAVENTRY  ,19.30
14/01/2014,Restaurants and Bars               ,JAMIES ITALIAN          NOTTINGHAM,29.00
14/01/2014,Hotels and Accommodation           ,VELVET                   MANCHESTER,16.00
14/01/2014,Hotels and Accommodation           ,THE FULL MOON AT RUDGE   FROME     ,26.20
14/01/2014,Hotels and Accommodation           ,THE RYTON PARK HOTEL     RYTON     ,8.95
14/01/2014,Automotive Fuel                    ,SYMONDS RETAIL LTD       WORLE     ,16.65
14/01/2014,General Retail and Wholesale       ,SAINSBURYS SUPERMA       GLOUCESTER,5.70
14/01/2014,Miscellaneous Industrial/Commercial,BRISTOL CITY COUNCIL     BRISTOL   ,4.40
14/01/2014,Hotels and Accommodation           ,CROWNE PLAZA             GATWICK-CR,28.82
14/01/2014,General Retail and Wholesale       ,BLUE BOAR MSA            NORTHAMPTO,4.48
14/01/2014,General Retail and Wholesale       ,MARKS  SPENCER          HESWALL   ,11.48
14/01/2014,Travel - Air/Rail/Road             ,M6 TOLL                  TOLL CHARG,5.50
14/01/2014,Restaurants and Bars               ,SAN CARLO                BIRMINGHAM,27.20
14/01/2014,Hotels and Accommodation           ,VELVET                   MANCHESTER,16.00
14/01/2014,Hotels and Accommodation           ,HILTON                   WARWICK   ,19.45
14/01/2014,General Retail and Wholesale       ,MARKS  SPENCER          COVENT GAR,27.74
14/01/2014,Travel - Air/Rail/Road             ,MINI CAB                 MINI CAB  ,15.60
14/01/2014,Travel - Air/Rail/Road             ,MINI CAB                 MINI CAB  ,15.60
14/01/2014,Travel - Air/Rail/Road             ,MANCHESTER OXFORD ROAD   MANCHESTER,6.30
14/01/2014,Travel - Air/Rail/Road             ,TFGM METROLINK           0161 20520,4.10
14/01/2014,Restaurants and Bars               ,MOTIJ HEEL               LONDON  WC,19.10
14/01/2014,Restaurants and Bars               ,JENSPICE                 BRIGHTON  ,23.55
14/01/2014,Travel - Air/Rail/Road             ,METEOR PARKING           BRIGHTON  ,44.40
14/01/2014,General Retail and Wholesale       ,MARKS  SPENCER          WAKEFIELD ,4.50
14/01/2014,Medical Supplies and Services      ,BOOTS 1125               MANCHESTER,4.58
14/01/2014,Restaurants and Bars               ,ALCATRAZ BRASSERIE       POOLE     ,36.10
14/01/2014,Travel - Air/Rail/Road             ,KINGS X N              KINGS X N,20.00
14/01/2014,Hotels and Accommodation           ,HOLIDAY INN LONDON       CHESSINGTO,23.90
14/01/2014,Automotive Fuel                    ,MRH RETAIL SUTTERTON     BOSTON    ,22.90
14/01/2014,Hotels and Accommodation           ,HILTON                   CROYDON   ,38.20
14/01/2014,Restaurants and Bars               ,MCDONALDS                STRENSHAM ,4.79
14/01/2014,General Retail and Wholesale       ,APPLE STORE R279         EXETER    ,19.95
14/01/2014,Telecommunication Services         ,PHONES 4U                EXETER    ,8.00
14/01/2014,Travel - Air/Rail/Road             ,NCP BOLTON DEANE RD      BOLTON    ,3.20
14/01/2014,Hotels and Accommodation           ,VELVET                   MANCHESTER,22.40
14/01/2014,Restaurants and Bars               ,PRET A MANGER            MANCHESTER,5.48
14/01/2014,Travel - Air/Rail/Road             ,LONDON MIDLAND TIC       TAMWORTH  ,14.00
14/01/2014,Travel - Air/Rail/Road             ,FIRST GTR WESTERN-       OXFORD    ,58.00
14/01/2014,Restaurants and Bars               ,BREWERS FAYRE 41516365   QUEEN VIC ,40.02
14/01/2014,Restaurants and Bars               ,THISTLE CITY BARBICAN    LONDON    ,29.97
14/01/2014,Travel - Air/Rail/Road             ,SELFSERVE TICKET         SWTRAINS A,14.50
14/01/2014,Automotive Fuel                    ,SMITHALEIGH SERVICE STATI PLYMOUTH ,33.01
14/01/2014,Restaurants and Bars               ,SAN CARLO                BIRMINGHAM,27.20
14/01/2014,Restaurants and Bars               ,PRET A MANGER            HIGH HOLBU,4.35
14/01/2014,Restaurants and Bars               ,PRET A MANGER            HIGH HOLBU,4.49
14/01/2014,Restaurants and Bars               ,PRET A MANGER            40 BERNARD,6.19
14/01/2014,Hotels and Accommodation           ,HILTON                   WARWICK   ,19.45
14/01/2014,Hotels and Accommodation           ,ANSTY HALL               COVENTRY  ,28.95
14/01/2014,Hotels and Accommodation           ,MARRIOTT                 NORWICH   ,36.75
14/01/2014,Restaurants and Bars               ,SWADESH MANCHESTER       MANCHESTER,18.40
14/01/2014,Hotels and Accommodation           ,NOVOTEL MANCHESTER CENTRE MANCHESTE,20.70
14/01/2014,Hotels and Accommodation           ,IMPERIAL HOTEL           TORQUAY   ,27.40
14/01/2014,Restaurants and Bars               ,GOURMET BURGER KIT       0207 27824,13.10
14/01/2014,Travel - Air/Rail/Road             ,ROBIN CAR PARKS          SOUTHWELL ,7.50
14/01/2014,Automotive Fuel                    ,W EVES  COSS LT       WHITBY    ,55.42
14/01/2014,Restaurants and Bars               ,BELLA ITALIA             NORWICH RI,30.55
14/01/2014,Travel - Air/Rail/Road             ,CCP LONDON LTD           SALFORD   ,16.00
14/01/2014,Automotive Fuel                    ,BURTON MWSA CONNECT-3219 CARNFORTH ,49.11
14/01/2014,Hotels and Accommodation           ,CRABWALL HOTEL           BROMSGROVE,16.70
14/01/2014,Hotels and Accommodation           ,NOVOTEL YORK             YORK .   ,31.95
14/01/2014,Restaurants and Bars               ,PREZZO                   LONDON NW1,18.55
14/01/2014,Hotels and Accommodation           ,VILLAGE HOTEL BURY       BURY      ,6.00
14/01/2014,Hotels and Accommodation           ,VILLAGE HOTEL BURY       BURY      ,9.95
14/01/2014,Travel - Air/Rail/Road             ,LONDON MIDLAND           METEOR PAR,8.50
14/01/2014,Restaurants and Bars               ,59 NEW STREET WINE BAR AN CHELMSFOR,19.80
14/01/2014,Automotive Fuel                    ,TEXACO PORTERS           CW124H 610,16.50
14/01/2014,Travel - Air/Rail/Road             ,M6 TOLL                  TOLL CHARG,5.50
14/01/2014,Travel - Air/Rail/Road             ,M6 TOLL                  TOLL CHARG,4.00
14/01/2014,Restaurants and Bars               ,59 NEW STREET WINE BAR AN CHELMSFOR,31.75
14/01/2014,Hotels and Accommodation           ,THE PALACE HOTEL         MANCHESTER,28.35
14/01/2014,Travel - Air/Rail/Road             ,WEST COAST TRAINS        MANCHSTR 2,25.00
14/01/2014,Restaurants and Bars               ,Harlow Tandoori          Harlow Es,23.00
14/01/2014,General Retail and Wholesale       ,CHELMSFORD STAR CO       WRITTLE   ,14.19
14/01/2014,Restaurants and Bars               ,59 NEW STREET WINE BAR AN CHELMSFOR,59.75
14/01/2014,Travel - Air/Rail/Road             ,EC MAINLINE CO TO       DONCSTER 6,158.50
14/01/2014,Hotels and Accommodation           ,MARRIOTT                 NORWICH   ,33.50
14/01/2014,Travel - Air/Rail/Road             ,NORWICH AIRPORT ADF 1    NORWICH   ,10.00
14/01/2014,Miscellaneous Industrial/Commercial,WCC PARKING MOBILE       WINCHESTER,8.30
14/01/2014,Restaurants and Bars               ,PREZZO                   LONDON NW1,20.00
14/01/2014,Restaurants and Bars               ,KINGS HEAD HOTEL         WIMBORNE  ,9.59
14/01/2014,Travel - Air/Rail/Road             ,EAST MIDLANDS DERBY STAT DERBY     ,13.00
14/01/2014,General Retail and Wholesale       ,TESCO STORES 6430        NOTTINGHAM,2.93
14/01/2014,Travel - Air/Rail/Road             ,NCP LIMITED              NOTTM MOUN,16.40
14/01/2014,Catering and Catering Supplies     ,MARKS  SPENCER SSP LT   BIRMINGHAM,1.55
14/01/2014,General Retail and Wholesale       ,PUMPKIN                  NEWCASTLE ,3.50
14/01/2014,Travel - Air/Rail/Road             ,NEXUS TRAVEL SHOP        NEWCASTLE ,2.60
14/01/2014,Travel - Air/Rail/Road             ,APCOA - NWR MANCHESTER   MANCHESTER,8.50
14/01/2014,Restaurants and Bars               ,59 NEW STREET WINE BAR AN CHELMSFOR,28.00
14/01/2014,Restaurants and Bars               ,MAMAS NEPALESE KITCHEN   HOUNSLOW  ,15.75
14/01/2014,Travel - Air/Rail/Road             ,METEOR PARKING LTD       0845603619,6.00
14/01/2014,Travel - Air/Rail/Road             ,NCP RINGO M OFFST        LONDON    ,3.30
14/01/2014,Travel - Air/Rail/Road             ,METEOR PARKING LTD       0845603619,6.10
14/01/2014,General Retail and Wholesale       ,TESCO STORES 6430        NOTTINGHAM,17.00
14/01/2014,Automotive Fuel                    ,SOUTHDALE SERVICE STAT   LINCOLN   ,57.50
14/01/2014,Travel - Air/Rail/Road             ,FIRST GREATER WESTERN    SWINDON   ,5.80
14/01/2014,Travel - Air/Rail/Road             ,NCP LIMITED              NOTTM MOUN,8.20
14/01/2014,Hotels and Accommodation           ,MERCURE DUNKENHAIGH HOTEL ACCRINGTO,52.40
14/01/2014,Statutory Bodies                   ,STOCKPORT COUNCIL PARK   STOCKPORT ,1.10
14/01/2014,General Retail and Wholesale       ,SAINSBURYS SMKTS        BRIGHOUSE ,3.00
14/01/2014,Hotels and Accommodation           ,WATERFRONT LODGE LIMIT   BRIGHOUSE ,12.95
14/01/2014,Automotive Fuel                    ,W M MORRISON PETRO       NOTTINGHAM,15.19
14/01/2014,Restaurants and Bars               ,BELLA ITALIA             NORWICH RI,30.00
14/01/2014,Automotive Fuel                    ,LOCKS GARAGE             HEREFORD 4,19.28
14/01/2014,Hotels and Accommodation           ,DOUBLETREE BY HILTON BRIS CLIFTON E,6.00
14/01/2014,Restaurants and Bars               ,THE SWAN HOTEL           LEIGHTON B,5.39
14/01/2014,Automotive Fuel                    ,TCS MINSTER              WIMBORNE  ,11.83
14/01/2014,Travel - Air/Rail/Road             ,PARK MOBILE              BHAM B4  ,11.00
14/01/2014,Books and Periodicals              ,Amazon  Mktplce EU-UK    AMAZON.CO.,104.47
14/01/2014,General Retail and Wholesale       ,SAINSBURYS SUPERMA       GLOUCESTER,5.50
14/01/2014,Restaurants and Bars               ,THE KINGS HEAD           BRIDGNORTH,20.00
14/01/2014,Hotels and Accommodation           ,MILLENNIUM               SLOUGH WIN,29.90
14/01/2014,Restaurants and Bars               ,MOTO TODDINGTON SOUTH   TODDINGTON,5.20
14/01/2014,General Retail and Wholesale       ,TESCO STORE 2081         BARRY     ,14.67
14/01/2014,Automotive Fuel                    ,SEATON BURN SERV STN     NEWCASTLE ,44.00
14/01/2014,Hotels and Accommodation           ,MILLENNIUM               SLOUGH WIN,31.14
14/01/2014,Hotels and Accommodation           ,WHITE HART HOTEL         HAMPTON WI,21.40
14/01/2014,Hotels and Accommodation           ,MARRIOTT                 NORWICH   ,15.25
14/01/2014,Automotive Fuel                    ,Shell Marston Mort       BEDFORD   ,30.69
14/01/2014,Travel - Air/Rail/Road             ,EAST MIDLANDS LEICESTER  LEICESTER ,13.00
14/01/2014,Automotive Fuel                    ,WM MORRISONS PETRO       SEAFORD   ,68.02
14/01/2014,Hotels and Accommodation           ,THE QUEENS HOTEL         LEEDS     ,100.80
14/01/2014,Hotels and Accommodation           ,HOLIDAY INN CHATHAM      CHATHAM   ,26.50
14/01/2014,Automotive Fuel                    ,SUSSEX SQUARE SERV STN   BRIGHTON  ,4.22
14/01/2014,Hotels and Accommodation           ,VELVET                   MANCHESTER,16.00
14/01/2014,Books and Periodicals              ,Amazon  Mktplce EU-UK    AMAZON.CO.,148.50
14/01/2014,Restaurants and Bars               ,BISTRO ON THE QUAY       IPSWICH   ,24.65
14/01/2014,Automotive Fuel                    ,SHELL CULLOMPTON         CULLOMPTON,5.04
14/01/2014,Restaurants and Bars               ,MAMAS NEPALESE KITCHEN   HOUNSLOW  ,14.90
14/01/2014,Automotive Fuel                    ,BRISTOL RD SERVICE       CHIPPENHAM,20.65
14/01/2014,Restaurants and Bars               ,SIAM                    LONDON    ,33.17
14/01/2014,Travel - Air/Rail/Road             ,TAXIPAY TAXI FARE        0162882050,55.00
14/01/2014,Hotels and Accommodation           ,THE BEAUCHAMP            LONDON  WC,19.00
14/01/2014,Automotive Fuel                    ,TESCO PFS 2338           COMBE DOWN,15.88
14/01/2014,Restaurants and Bars               ,PREZZO                   GLOUCESTER,18.65
14/01/2014,Catering and Catering Supplies     ,WELCOME BREAK STARBUCK   MICHAELWOO,6.00
14/01/2014,General Retail and Wholesale       ,W M MORRISONS            WESTON 341,22.91
14/01/2014,Restaurants and Bars               ,SAN CARLO                BIRMINGHAM,27.20
14/01/2014,Hotels and Accommodation           ,NOVOTEL YORK             YORK .   ,41.65
14/01/2014,Hotels and Accommodation           ,THE BEAUCHAMP            LONDON  WC,22.45
14/01/2014,Restaurants and Bars               ,MAMAS NEPALESE KITCHEN   HOUNSLOW  ,16.45
14/01/2014,Travel - Air/Rail/Road             ,LUL TICKET MACHINE       HOLBORN   ,5.50
14/01/2014,Automotive Fuel                    ,W M MORRISON             EVESHAM   ,32.60
14/01/2014,General Retail and Wholesale       ,RAC PALL MALL CLUBHOUS   LONDON  SW,21.90
14/01/2014,Hotels and Accommodation           ,MACDONALD HOTELS MANCH   MSTER M1 ,33.70
14/01/2014,Hotels and Accommodation           ,RICHMOND GATE HOTE       RICHMOND  ,17.50
14/01/2014,Automotive Fuel                    ,TONG SELF SERVE          SHROPSHIRE,15.78
14/01/2014,Hotels and Accommodation           ,MARRIOTT                 NORWICH   ,34.25
14/01/2014,Restaurants and Bars               ,JAMIES ITALIAN          NOTTINGHAM,30.00
14/01/2014,Restaurants and Bars               ,59 NEW STREET WINE BAR AN CHELMSFOR,26.50
14/01/2014,Utilities and Non Automotive Fuel  ,APPLEGREEN               HUMBERSIDE,13.20
15/01/2014,"Vehicles, Servicing and Spares     ",SOLAR GARAGE             FELIXSTOWE,69.92
15/01/2014,Hotels and Accommodation           ,BARNETT HILL             GUILDFORD ,31.55
15/01/2014,Travel - Air/Rail/Road             ,SELFSERVE TICKET         SWTRAINS G,12.40
15/01/2014,Hotels and Accommodation           ,TWIN OAKS HOTEL          CHESTERFIE,43.10
15/01/2014,Automotive Fuel                    ,MILLHOUSE GARAGE LTD     WIDNES    ,8.53
15/01/2014,Automotive Fuel                    ,MILLHOUSE GARAGE LTD     WIDNES    ,14.98
15/01/2014,Hotels and Accommodation           ,THE BEAUCHAMP            LONDON  WC,19.45
15/01/2014,General Retail and Wholesale       ,ASDA STORES LTD 5810     HOUNSLOW  ,16.88
15/01/2014,Restaurants and Bars               ,HEES CHINESE RESTAURANT  HOUNSLOW  ,19.30
15/01/2014,Restaurants and Bars               ,THISTLE CITY BARBICAN    LONDON    ,26.68
15/01/2014,Restaurants and Bars               ,SAN CARLO                BIRMINGHAM,28.60
15/01/2014,Restaurants and Bars               ,THE JUNCTION             WOMBWELL  ,25.00
15/01/2014,Travel - Air/Rail/Road             ,M6 TOLL                  TOLL CHARG,5.50
15/01/2014,Hotels and Accommodation           ,WHITE HART HOTEL         HAMPTON WI,9.95
15/01/2014,Restaurants and Bars               ,CAFE YASMIN              SURBITON  ,2.10
15/01/2014,Restaurants and Bars               ,MUSEUM TAVERN            BLOOMSBURY,13.49
15/01/2014,Travel - Air/Rail/Road             ,ECML RETFORD PARKING     RETFORD   ,7.00
15/01/2014,Hotels and Accommodation           ,HILTON                   GATESHEAD ,-166.00
15/01/2014,Hotels and Accommodation           ,VILLAGE HOTEL LEEDS B  LEEDS     ,12.85
15/01/2014,Hotels and Accommodation           ,HOLIDAY INNS             PETERBOROU,31.85
15/01/2014,Hotels and Accommodation           ,CROWNE PLAZA             GATWICK-CR,15.90
15/01/2014,Restaurants and Bars               ,THE CHINESE BUFFET LTD   BOLTON    ,16.39
15/01/2014,Travel - Air/Rail/Road             ,LUL TICKET MACHINE       RUSSELL SQ,7.30
15/01/2014,Restaurants and Bars               ,CIAO BELLA               LONDON  WC,34.10
15/01/2014,Automotive Fuel                    ,WM MORRISONS PETRO       BREDBURY 2,68.07
15/01/2014,Automotive Fuel                    ,SHELL LYME GREEN         MACCLESFIE,17.81
15/01/2014,Automotive Fuel                    ,WEATHEROAKS              WYTHALL   ,25.75
15/01/2014,Hotels and Accommodation           ,CROWNE PLAZA             NOTTINGHAM,12.00
15/01/2014,Travel - Air/Rail/Road             ,NCP LIMITED              BHAM ROYAL,15.48
15/01/2014,Hotels and Accommodation           ,THE PORTLAND             GRANGEHOTE,20.75
15/01/2014,Restaurants and Bars               ,UPPERCRUST               LONDON    ,6.34
15/01/2014,Travel - Air/Rail/Road             ,HAILO   LONDON TAXI      HAILOCAB.C,13.00
15/01/2014,Hotels and Accommodation           ,PREMIER INN44023600      READING   ,16.00
15/01/2014,Automotive Fuel                    ,BP MALTHURST SPITAL      BEBINGTON ,44.93
15/01/2014,General Retail and Wholesale       ,PHILPOTTS LTD            NOTTINGHAM,5.90
15/01/2014,Hotels and Accommodation           ,CROWNE PLAZA             NOTTINGHAM,12.00
15/01/2014,Restaurants and Bars               ,THE BOOT INN             TIDWORTH  ,27.00
15/01/2014,Print and Advertising              ,DREAMSTIME.COM     GBP   DREAMSTIME,56.64
15/01/2014,Travel - Air/Rail/Road             ,PICADILLY PLACE MAN LT   MANCHESTER,21.00
15/01/2014,Restaurants and Bars               ,EAT                      LONDON  W2,6.24
15/01/2014,Travel - Air/Rail/Road             ,LUL TICKET OFFICE.       PADDINGTON,8.80
15/01/2014,Travel - Air/Rail/Road             ,FGW WBURY               WESTBURY  ,3.20
15/01/2014,Hotels and Accommodation           ,CROWNE PLAZA             GATWICK - ,60.70
15/01/2014,Miscellaneous Industrial/Commercial,BRISTOL CITY COUNCIL     BRISTOL   ,3.20
15/01/2014,Restaurants and Bars               ,BURGER KING 200          SOUTHAMPTO,6.49
15/01/2014,Utilities and Non Automotive Fuel  ,APPLEGREEN               SOUTHAMPTO,21.41
15/01/2014,Hotels and Accommodation           ,DOUBLE TREE BY HILTON LON LONDON   ,39.80
15/01/2014,Hotels and Accommodation           ,DOUBLE TREE BY HILTON LON LONDON   ,10.00
15/01/2014,Professional Services              ,WWW.PAYLONDONCONGESTION. WEST TISTE,20.00
15/01/2014,Professional Services              ,WWW.PAYLONDONCONGESTION. WEST TISTE,16.00
15/01/2014,Travel - Air/Rail/Road             ,LONDON  SOUTH EAS       LONDON SE9,8.10
15/01/2014,Hotels and Accommodation           ,CROWNE PLAZA             GATWICK-CR,19.75
15/01/2014,Travel - Air/Rail/Road             ,LONDON MIDLAND           BRMNGHAM 3,2.40
15/01/2014,Hotels and Accommodation           ,PREMIER INN44523635      HAMPSTEAD ,15.85
15/01/2014,Restaurants and Bars               ,SAN CARLO                BIRMINGHAM,28.60
15/01/2014,General Retail and Wholesale       ,SAINSBURYS SMKTS        WARREN HEA,4.70
15/01/2014,Travel - Air/Rail/Road             ,NORTHERN RAIL LTD-       MANCHESTE9,6.30
15/01/2014,Travel - Air/Rail/Road             ,OYSTER ISSUE TEL         0845 33098,25.00
15/01/2014,Restaurants and Bars               ,BEEFEATER40013610        HEATON PAR,28.54
15/01/2014,Restaurants and Bars               ,CROMA                    MANCHESTER,24.55
15/01/2014,General Retail and Wholesale       ,WAITROSE 207             BLOOMSBURY,25.94
15/01/2014,Restaurants and Bars               ,YIALOUSA                 LONDON WC1,17.25
15/01/2014,Restaurants and Bars               ,BELLA ITALIA             BOLTON    ,21.61
15/01/2014,Travel - Air/Rail/Road             ,NCP LTD                  BOLTON    ,5.70
15/01/2014,Automotive Fuel                    ,BP FAMILY FARM CONNECT   BICESTER O,11.24
15/01/2014,Hotels and Accommodation           ,DOUBLETREE BY HILT       MANCHESTER,70.40
15/01/2014,Travel - Air/Rail/Road             ,TFGM METROLINK           0161 20520,3.90
15/01/2014,Automotive Fuel                    ,MARLDON SERVICE STN      MARLDON   ,45.90
15/01/2014,Hotels and Accommodation           ,THISTLE POOLE            POOLE     ,37.65
15/01/2014,Travel - Air/Rail/Road             ,GREATER ANGLIA           LONDON EC2,25.00
15/01/2014,Travel - Air/Rail/Road             ,GREATER ANGLIA TO       LONDON EC2,8.90
15/01/2014,Automotive Fuel                    ,MURCO SERVICE STAT       WICK      ,41.85
15/01/2014,Travel - Air/Rail/Road             ,E COAST MAIN LN CO LTD   PETERBOROU,13.00
15/01/2014,Restaurants and Bars               ,CHINESE CHEQUERS LTD     STOWMARKET,25.40
15/01/2014,Catering and Catering Supplies     ,WELCOME BREAK WHS        CHARNOCK  ,10.00
15/01/2014,Travel - Air/Rail/Road             ,NCP BOLTON DEANE RD      BOLTON    ,3.40
15/01/2014,Medical Supplies and Services      ,BOOTS 1125               MANCHESTER,2.95
15/01/2014,Telecommunication Services         ,CARPHONE WAREHOUSE       BURNELY   ,19.99
15/01/2014,Restaurants and Bars               ,DYNASTY                  BRISTOL CE,35.00
15/01/2014,Restaurants and Bars               ,THISTLE CITY BARBICAN    LONDON    ,26.67
15/01/2014,Travel - Air/Rail/Road             ,APCOA - NWR MANCHESTER   MANCHESTER,8.50
15/01/2014,Travel - Air/Rail/Road             ,NCP LIMITED              MARKET PLA,18.00
15/01/2014,Restaurants and Bars               ,SAN CARLO                BIRMINGHAM,28.60
15/01/2014,Restaurants and Bars               ,DDF BARRIERLINE          EUSTON    ,6.29
15/01/2014,Restaurants and Bars               ,PRET A MANGER            HIGH HOLBU,4.80
15/01/2014,Travel - Air/Rail/Road             ,GREATER ANGLIA TO       LONDON EC2,8.90
15/01/2014,Travel - Air/Rail/Road             ,LONDON MIDLAND           METEOR PAR,17.00
15/01/2014,Automotive Fuel                    ,SAINSBURYS PETROL       GLEN ROAD ,32.66
15/01/2014,Travel - Air/Rail/Road             ,NCP LIMITED              NOTTM MOUN,8.20
15/01/2014,Automotive Fuel                    ,SHELL FENSTATN 005       FENSTANTON,31.17
15/01/2014,Automotive Fuel                    ,LENHAM SSTATION         LENHAM    ,13.39
15/01/2014,Hotels and Accommodation           ,THE GEORGE HOTEL         LICHFIELD ,18.35
15/01/2014,Travel - Air/Rail/Road             ,WEST COAST TRAINS        WIGAN 2363,4.00
15/01/2014,Automotive Fuel                    ,BUSY BEE GARAGE          LEWES     ,9.89
15/01/2014,Hotels and Accommodation           ,BULL HOTEL               PETERBOROU,24.50
15/01/2014,Automotive Fuel                    ,ESSO WALMER              DEAL      ,35.91
15/01/2014,Restaurants and Bars               ,GOURMET BURGER KIT       0207 27824,17.60
15/01/2014,Travel - Air/Rail/Road             ,ROBIN CAR PARKS          SOUTHWELL ,7.50
15/01/2014,Hotels and Accommodation           ,BARNETT HILL             GUILDFORD ,15.00
15/01/2014,Automotive Fuel                    ,ESSO JOHN ADAMS WAY SSTN BOSTON    ,64.47
15/01/2014,Hotels and Accommodation           ,HOLIDAY INN NORWICH CITY NORWICH   ,9.90
15/01/2014,Hotels and Accommodation           ,ANSTY HALL               COVENTRY  ,22.45
15/01/2014,Restaurants and Bars               ,COFFEE REPUBLIC          EASTBOURNE,3.90
15/01/2014,Hotels and Accommodation           ,NOVOTEL YORK             YORK .   ,25.00
15/01/2014,Restaurants and Bars               ,SUBWAY-STONE             STONE     ,4.88
15/01/2014,Restaurants and Bars               ,PRET A MANGER            HIGH HOLBU,6.74
15/01/2014,Travel - Air/Rail/Road             ,NCP LIMITED              NEWARK NOR,10.50
15/01/2014,Automotive Fuel                    ,SAINSBURYS PETROL        ARCHER ROA,10.22
15/01/2014,General Retail and Wholesale       ,SAINSBURYS SMKT         NOTTINGHAM,4.25
15/01/2014,Travel - Air/Rail/Road             ,NCP LIMITED              NOTTM MOUN,8.20
15/01/2014,Travel - Air/Rail/Road             ,LUL TICKET MACHINE       PADDINGTON,7.30
15/01/2014,Automotive Fuel                    ,BARROW FILLING STATION LT BARROW   ,24.00
15/01/2014,Travel - Air/Rail/Road             ,OYSTER AUTOTOPUP         0845 33098,40.00
15/01/2014,Automotive Fuel                    ,SHELL HIGH BOR 573       RICHMOND  ,25.60
15/01/2014,Travel - Air/Rail/Road             ,NCP LIMITED PD          FELTHAM   ,11.00
15/01/2014,Hotels and Accommodation           ,HOLIDAY INN EXPRESS HARLO HARLOW   ,3.00
15/01/2014,Restaurants and Bars               ,BOMBAY BRASSERIE         KINGS LYNN,19.55
15/01/2014,Automotive Fuel                    ,SAINSBURYS PETROL        WEST HOVE ,50.55
15/01/2014,Hotels and Accommodation           ,PARK INN                 PETERBOROU,54.70
15/01/2014,Restaurants and Bars               ,BELLA ITALIA WELLI       8106630   ,35.00
15/01/2014,Travel - Air/Rail/Road             ,Q PARK SHEFFIELD STATION SHEFFIELD ,14.00
15/01/2014,Travel - Air/Rail/Road             ,NORTHERN RAIL LTD        NEWTON LE ,8.20
15/01/2014,Travel - Air/Rail/Road             ,APCOA - NWR MANCHESTER   MANCHESTER,8.50
15/01/2014,Travel - Air/Rail/Road             ,EAST MIDLANDS DERBY STAT DERBY     ,13.00
15/01/2014,Hotels and Accommodation           ,RENAISSANCE MCHESTER    MCHESTER ,12.00
15/01/2014,General Retail and Wholesale       ,TESCO STORES 6430        NOTTINGHAM,3.00
15/01/2014,Travel - Air/Rail/Road             ,NCP LIMITED              NOTTM MOUN,8.20
15/01/2014,Travel - Air/Rail/Road             ,NCP LIMITED              NOTTM MOUN,6.15
15/01/2014,Restaurants and Bars               ,BEEFEATER40015155        MOOR FARM ,19.78
15/01/2014,Hotels and Accommodation           ,CEDAR COURT HOTEL        HARROGATE ,50.55
15/01/2014,Restaurants and Bars               ,BELLA ITALIA             BOLTON    ,21.62
15/01/2014,Restaurants and Bars               ,ROARING DONKEY           CLACTON ON,9.98
15/01/2014,Restaurants and Bars               ,HEES CHINESE RESTAURANT  HOUNSLOW  ,19.30
15/01/2014,Travel - Air/Rail/Road             ,APCOA CONNECT - FGW      UXBRIDGE  ,20.40
15/01/2014,Automotive Fuel                    ,Shell Alverstoke S       GOSPORT   ,5.72
15/01/2014,Hotels and Accommodation           ,CROWNE PLAZA             NOTTINGHAM,12.00
15/01/2014,Restaurants and Bars               ,BELLA ITALIA             BOLTON    ,21.62
15/01/2014,Miscellaneous Industrial/Commercial,DASH                     LONDON    ,7.90
15/01/2014,Travel - Air/Rail/Road             ,LUL TICKET OFFICE.       KINGS CROS,25.00
15/01/2014,Automotive Fuel                    ,SAINSBURYS PETROL        CHESTER   ,28.06
15/01/2014,Hotels and Accommodation           ,MERCURE WHITE HART HOTEL SALISBURY ,16.95
15/01/2014,Hotels and Accommodation           ,BULL HOTEL               PETERBOROU,20.50
15/01/2014,Hotels and Accommodation           ,BARNETT HILL             GUILDFORD ,21.00
15/01/2014,General Retail and Wholesale       ,SAINSBURYS SMKT        BRIGHOUSE ,6.84
15/01/2014,Hotels and Accommodation           ,HILTON                   CROYDON   ,23.95
15/01/2014,Automotive Fuel                    ,SHELL SUTTON ELMS        LEICESTER ,39.45
15/01/2014,Hotels and Accommodation           ,EX BY HOLIDAY INN NORW   NORWICH   ,9.90
15/01/2014,Automotive Fuel                    ,SAINSBURYS PETROL        CHESTERFLD,27.94
15/01/2014,Travel - Air/Rail/Road             ,NCP LIMITED              NOTTM MOUN,8.20
15/01/2014,Restaurants and Bars               ,MARTON WAY HOTEL         MIDDLESBRO,8.33
15/01/2014,Hotels and Accommodation           ,MARRIOTT                 NORWICH   ,58.10
15/01/2014,Restaurants and Bars               ,SAN CARLO                BIRMINGHAM,28.60
15/01/2014,Books and Periodicals              ,Amazon  Mktplce EU-UK    AMAZON.CO.,80.83
15/01/2014,Mail Order / Direct Selling        ,Amazon EU                AMAZON.CO.,152.33
15/01/2014,Restaurants and Bars               ,THAI ARTS RESTAURA       BRIDGNORTH,15.45
15/01/2014,Restaurants and Bars               ,RED MANGO                OLDBURY   ,19.05
15/01/2014,Restaurants and Bars               ,MCDONALDS REST           STAFFORD R,4.29
15/01/2014,Travel - Air/Rail/Road             ,WEST COAST TRAINS        WOLVERHAMP,7.40
15/01/2014,Travel - Air/Rail/Road             ,WEST COAST TRAINS        WOLVERHAMP,8.00
15/01/2014,Hotels and Accommodation           ,CROWNE PLAZA             CHESTER   ,27.45
15/01/2014,Hotels and Accommodation           ,HOTEL BANNATYNE          01325 3658,8.90
15/01/2014,Automotive Fuel                    ,SHELL  WAITROSE         WYMONDHAM ,55.92
15/01/2014,Hotels and Accommodation           ,WHITE HART HOTEL         HAMPTON WI,17.90
15/01/2014,Restaurants and Bars               ,THE MEMSAAB              NOTTINGHAM,40.00
15/01/2014,Automotive Fuel                    ,SAINSBURYS PETROL        CHICHESTER,66.01
15/01/2014,Restaurants and Bars               ,PIZZA EXPRESS            IPSWICH 2 ,18.60
15/01/2014,Hotels and Accommodation           ,THE CHETWYNDE            BARROW IN ,117.40
15/01/2014,Restaurants and Bars               ,SIAM                    LONDON    ,30.97
15/01/2014,Automotive Fuel                    ,LONDIS AUTOCENTRE        DONCASTER ,36.45
15/01/2014,Catering and Catering Supplies     ,PUMPKIN CAFE             DONCASTER ,6.39
15/01/2014,Restaurants and Bars               ,SAN CARLO                BIRMINGHAM,28.60
15/01/2014,Travel - Air/Rail/Road             ,NEW SOUTHERN RAILW       EASTBORN 5,8.20
15/01/2014,Mail and Courier Services          ,POST OFFICE COUNTER      WILMSLOW  ,1.70
15/01/2014,Travel - Air/Rail/Road             ,NORTHERN RAIL LTD-       MANCHESTER,5.20
15/01/2014,Travel - Air/Rail/Road             ,SELFSERVE TICKET         SWTRAINSST,20.00
15/01/2014,Automotive Fuel                    ,HAYTON SERVICE STATION   POCKLINGTO,29.18
15/01/2014,Hotels and Accommodation           ,NOVOTEL YORK             YORK .   ,24.75
15/01/2014,Travel - Air/Rail/Road             ,LUL TICKET MACHINE       HOUNSLOW C,5.50
15/01/2014,Restaurants and Bars               ,CARLUCCIOS LTD           BRUNSWICK ,16.00
15/01/2014,General Retail and Wholesale       ,RAC PALL MALL CLUBHOUS   LONDON  SW,123.00
15/01/2014,Restaurants and Bars               ,CAFE ROUGE STRAND        LONDON 810,25.25
15/01/2014,Travel - Air/Rail/Road             ,SELFSERVE TICKET         SWTRAINS R,20.00
15/01/2014,Travel - Air/Rail/Road             ,NCP LIMITED              RICHMOND M,18.55
15/01/2014,Hotels and Accommodation           ,CROWNE PLAZA             NOTTINGHAM,12.00
16/01/2014,Restaurants and Bars               ,MORGANS BISTRO           EASTBOURNE,16.70
16/01/2014,Travel - Air/Rail/Road             ,WEST COAST TRAINS        MANCHESTER,35.00
16/01/2014,Automotive Fuel                    ,SEWELL RETAIL COTTINGHAM COTTINGHAM,18.52
16/01/2014,Automotive Fuel                    ,BP FARNHAM CONNECT       SURREY    ,32.24
16/01/2014,Hotels and Accommodation           ,ARDINTON HOTEL           WORTHING  ,41.00
16/01/2014,Automotive Fuel                    ,BP MOTORWAY FSTN        BURY LANCS,25.22
16/01/2014,Travel - Air/Rail/Road             ,NCP LTD                  BOLTON    ,3.70
16/01/2014,Travel - Air/Rail/Road             ,NCP BOLTON DEANE RD      BOLTON    ,3.20
16/01/2014,General Retail and Wholesale       ,ASDA STORES LTD 5810     HOUNSLOW  ,8.00
16/01/2014,Restaurants and Bars               ,HEES CHINESE RESTAURANT  HOUNSLOW  ,24.30
16/01/2014,Automotive Fuel                    ,SAINSBURYS PETROL        HUNTINGDON,15.97
16/01/2014,Travel - Air/Rail/Road             ,Q PARK CHARLES STREET    SHEFFIELD ,6.20
16/01/2014,Hotels and Accommodation           ,THE HOLIDAY IN EXPRESS   ROTHERHAM ,18.70
16/01/2014,Automotive Fuel                    ,ACE OF SPADES 211        SURBITON  ,2.00
16/01/2014,Catering and Catering Supplies     ,WELCOME BREAK AMENITY    COBHAM    ,2.99
16/01/2014,Hotels and Accommodation           ,BEST WESTERN             0208802655,10.00
16/01/2014,Restaurants and Bars               ,CLACKET LANE SERVICES    WESTERHAM ,3.59
16/01/2014,Restaurants and Bars               ,A F G PIZZA              LONDON  N1,13.45
16/01/2014,Automotive Fuel                    ,SHELL NEWBROOK           BOLTON    ,33.01
16/01/2014,Hotels and Accommodation           ,HOLIDAY INN OSSETT       OSSETT    ,19.95
16/01/2014,Hotels and Accommodation           ,HOLIDAY INN OSSETT       OSSETT    ,58.00
16/01/2014,Travel - Air/Rail/Road             ,APCOA - NWR MANCHESTER   MANCHESTER,25.50
16/01/2014,Automotive Fuel                    ,SHELL THRAPSTN 127       THRAPSTON ,19.95
16/01/2014,Automotive Fuel                    ,SHELL HIGH BOR 573       RICHMOND  ,5.14
16/01/2014,Hotels and Accommodation           ,CROWNE PLAZA             CHESTER   ,51.85
16/01/2014,Automotive Fuel                    ,TEXACO CROSSGATES        LLANDRINDO,50.14
16/01/2014,Catering and Catering Supplies     ,MARKS  SPENCER SSPLTD   PICADILLY ,4.74
16/01/2014,Restaurants and Bars               ,FATSOS                  MANCHESTER,3.39
16/01/2014,Travel - Air/Rail/Road             ,UPT EM ALFRETON TRAIN ST ALFRETON  ,10.00
16/01/2014,Utilities and Non Automotive Fuel  ,TRINITY PLACE SERVICE    EASTBOURNE,21.99
16/01/2014,Restaurants and Bars               ,MORGANS BISTRO           EASTBOURNE,23.70
16/01/2014,Hotels and Accommodation           ,HOLIDAY INN BLOOMSBURY   LONDON    ,20.40
16/01/2014,Travel - Air/Rail/Road             ,Q PARK CHARLES STREET    SHEFFIELD ,6.20
16/01/2014,Travel - Air/Rail/Road             ,WEST COAST TRAINS        STAFFORD 1,8.00
16/01/2014,Automotive Fuel                    ,EXETER MWSA              EXETER    ,50.04
16/01/2014,Catering and Catering Supplies     ,MS SIMPLY FOOD          EXETER SVC,8.55
16/01/2014,Restaurants and Bars               ,RAJ RESTAURANT           BRISTOL   ,40.00
16/01/2014,Automotive Fuel                    ,STEPPING STONE SER       WEST YORKS,41.17
16/01/2014,Hotels and Accommodation           ,PENNINGTON HOTEL         CUMBRIA   ,64.75
16/01/2014,Travel - Air/Rail/Road             ,OYSTER RENEW WEB         0845 33098,20.00
16/01/2014,Hotels and Accommodation           ,PREMIER INN44023600      READING   ,22.39
16/01/2014,Hotels and Accommodation           ,CARLTON MANOR HOTEL LT   LOWESTOFT ,42.15
16/01/2014,Automotive Fuel                    ,MUROC SSTN      167     STANTON ST,16.92
16/01/2014,Travel - Air/Rail/Road             ,LUL TICKET MACHINE       LEYTONSTON,20.00
16/01/2014,Travel - Air/Rail/Road             ,LUL TICKET OFFICE.       PADDINGTON,4.50
16/01/2014,Automotive Fuel                    ,TESCO PFS 3708           EXETER VAL,59.22
16/01/2014,Hotels and Accommodation           ,HALLMARK HOTEL           GLOUCESTER,20.10
16/01/2014,Automotive Fuel                    ,HENSHAW GARAGE           HEXHAM NOR,52.99
16/01/2014,Hotels and Accommodation           ,ARDINTON HOTEL           WORTHING  ,22.35
16/01/2014,Automotive Fuel                    ,ESSO BAYNARDS GN SSTN    OXFORDSHIR,39.53
16/01/2014,General Retail and Wholesale       ,CO-OP GROUP 070743       Crawley Be,6.00
16/01/2014,Hotels and Accommodation           ,CROWNE PLAZA             GATWICK - ,33.80
16/01/2014,Hotels and Accommodation           ,CROWNE PLAZA             GATWICK - ,255.00
16/01/2014,Automotive Fuel                    ,SHELL GAYTON             WIRRAL    ,34.72
16/01/2014,Automotive Fuel                    ,LONDON GATEWAY           LONDON    ,59.07
16/01/2014,Catering and Catering Supplies     ,WELCOME BREAK STARBUCK   LONDON    ,6.95
16/01/2014,Hotels and Accommodation           ,PREMIER INN44523635      HAMPSTEAD ,28.00
16/01/2014,Travel - Air/Rail/Road             ,M6 TOLL                  TOLL CHARG,5.50
16/01/2014,Automotive Fuel                    ,WM MORRISONS PETRO       SEAFORD   ,42.22
16/01/2014,Travel - Air/Rail/Road             ,MINI CAB                 MINI CAB  ,15.60
16/01/2014,Travel - Air/Rail/Road             ,MINI CAB                 MINI CAB  ,15.60
16/01/2014,Travel - Air/Rail/Road             ,MANCHESTER OXFORD ROAD   MANCHESTER,6.30
16/01/2014,Automotive Fuel                    ,CO-OP GROUP 014258       Petrol Oak,38.36
16/01/2014,Restaurants and Bars               ,CAFFE MARCONI            HARROGATE ,6.25
16/01/2014,Medical Supplies and Services      ,BOOTS 1521               LONDON    ,8.19
16/01/2014,Travel - Air/Rail/Road             ,ECML RETFORD PARKING     RETFORD   ,28.00
16/01/2014,Travel - Air/Rail/Road             ,WEST COAST TRAINS        STAFFORD 1,16.00
16/01/2014,Hotels and Accommodation           ,WHITES                   BOLTON    ,22.90
16/01/2014,Travel - Air/Rail/Road             ,NCP LIMITED              BOLTON    ,5.20
16/01/2014,Hotels and Accommodation           ,PENNINGTON HOTEL         CUMBRIA   ,72.90
16/01/2014,General Retail and Wholesale       ,SACAT MARKS  SPENCER    CASTLEPOIN,8.39
16/01/2014,Hotels and Accommodation           ,MERCURE PARKSIDE HOTEL MI MILTON KE,24.00
16/01/2014,Automotive Fuel                    ,W M MORRISON             TEWKESBURY,20.21
16/01/2014,Hotels and Accommodation           ,SUTTON CLDFLD HOTEL LTD  SUTTON    ,40.50
16/01/2014,Automotive Fuel                    ,ESSO CITY SSTN           CAMBRIDGE ,14.56
16/01/2014,Automotive Fuel                    ,PARKLANDS                SERVICE ST,52.25
16/01/2014,Hotels and Accommodation           ,MARRIOTT                 BIRMINGHAM,62.75
16/01/2014,General Retail and Wholesale       ,TESCO STORES 6134        MILLOM    ,4.83
16/01/2014,Hotels and Accommodation           ,CEDARS HOTEL LIMITED     STOWMARKET,7.50
16/01/2014,Automotive Fuel                    ,SYMONDS FORECOURTS       GLOUCESTER,16.50
16/01/2014,Automotive Fuel                    ,BP LONGLEVENS SSTN      LONGLEVENS,35.85
16/01/2014,Restaurants and Bars               ,KFC                      BOLTON    ,13.98
16/01/2014,Travel - Air/Rail/Road             ,NCP BOLTON DEANE RD      BOLTON    ,3.40
16/01/2014,Travel - Air/Rail/Road             ,FIRST GTR WESTERN-       OXFORD    ,58.00
16/01/2014,Automotive Fuel                    ,CO-OP GROUP PETROL       CLITHEROE ,42.73
16/01/2014,Travel - Air/Rail/Road             ,SELFSERVE TICKET         SWTRAINS W,14.50
16/01/2014,Automotive Fuel                    ,SOUTHWAITE NORTH MWSA    NR CARLISL,54.62
16/01/2014,Hotels and Accommodation           ,RENAISSANCE MCHESTER    MCHESTER ,26.49
16/01/2014,Travel - Air/Rail/Road             ,NCP LIMITED              MARKET PLA,18.00
16/01/2014,Restaurants and Bars               ,NUVO                     BIRMINGHAM,31.49
16/01/2014,Hotels and Accommodation           ,VILLAGE HOTEL WALSALL G WALSALL   ,20.75
16/01/2014,Hotels and Accommodation           ,THE WYNNSTAY HOTEL       OSWESTRY  ,43.90
16/01/2014,General Retail and Wholesale       ,MARKS  SPENCER          HESWALL   ,18.80
16/01/2014,Restaurants and Bars               ,PRET A MANGER            MANCHESTER,5.05
16/01/2014,Hotels and Accommodation           ,HOLIDAY INN BLOOMSBURY   LONDON    ,28.50
16/01/2014,Automotive Fuel                    ,MALTHURST BILBROUGHT     TADCASTER ,29.28
16/01/2014,Hotels and Accommodation           ,HARDWICK HALL            STOCKTON-O,57.90
16/01/2014,Automotive Fuel                    ,SHELL KISLINGBURY        NORTHAMPTO,11.11
16/01/2014,Hotels and Accommodation           ,THE GEORGE HOTEL         LICHFIELD ,16.45
16/01/2014,Travel - Air/Rail/Road             ,M6 TOLL                  TOLL CHARG,5.50
16/01/2014,Mail and Courier Services          ,POST OFFICE COUNTER      PLYMOUTH  ,15.92
16/01/2014,Telecommunication Services         ,VODAFONE LIMITED         LONDON  SW,25.00
16/01/2014,Automotive Fuel                    ,MAYLAND GARAGE           ESSEX     ,22.93
16/01/2014,Hotels and Accommodation           ,BEST WESTERN MARKS TEY   COLCHESTER,49.70
16/01/2014,Hotels and Accommodation           ,HOLIDAY INN BLOOMSBURY   LONDON    ,17.49
16/01/2014,Travel - Air/Rail/Road             ,LUL TICKET OFFICE.       WESTMINSTE,30.00
16/01/2014,Automotive Fuel                    ,ROSS ON WYE SERVICE STATI HEREFORDS,37.08
16/01/2014,Restaurants and Bars               ,MORGANS BISTRO           EASTBOURNE,15.75
16/01/2014,Hotels and Accommodation           ,NOVOTEL YORK             YORK .   ,21.25
16/01/2014,Restaurants and Bars               ,BREWERS FAYRE41020025    REDHILL   ,10.28
16/01/2014,Restaurants and Bars               ,BREWERS FAYRE41020025    REDHILL   ,3.99
16/01/2014,Restaurants and Bars               ,STARBUCKS                STAFFORD  ,6.75
16/01/2014,Utilities and Non Automotive Fuel  ,APPLEGREEN               HEREFORD  ,12.70
16/01/2014,Automotive Fuel                    ,TESCO PFS 2620           HEAVITREE ,15.71
16/01/2014,Automotive Fuel                    ,SHELL MOULTON            NORTHAMPTO,21.00
16/01/2014,Catering and Catering Supplies     ,WELCOME BREAK WHS        GORDANO   ,9.29
16/01/2014,Hotels and Accommodation           ,BERWICK LODGE LTD        BRISTOL   ,284.10
16/01/2014,Automotive Fuel                    ,HKS  THREEWAYS           NOTTINGHAM,30.04
16/01/2014,Hotels and Accommodation           ,DUKES HEAD HOTEL         NORFOLK   ,9.95
16/01/2014,General Retail and Wholesale       ,CHELMSFORD STAR CO       WRITTLE   ,14.85
16/01/2014,Automotive Fuel                    ,K R WILSON GARAGES LTD   WALES BAR ,15.46
16/01/2014,Travel - Air/Rail/Road             ,M6 TOLL                  TOLL CHARG,4.00
16/01/2014,Travel - Air/Rail/Road             ,LUL TICKET MACHINE       BURNT OAK ,30.00
16/01/2014,Automotive Fuel                    ,BP ESSEX GARAGE          MARYPORT C,52.17
16/01/2014,Travel - Air/Rail/Road             ,NCP LIMITED              MARKET PLA,36.00
16/01/2014,Professional Services              ,UPT - VICTORIA CENTRE N1 NOTTINGHAM,6.00
16/01/2014,Automotive Fuel                    ,ESSO CARDEWLEES          CARLISLE  ,22.00
16/01/2014,Automotive Fuel                    ,Shell Marston Mort       BEDFORD   ,26.00
16/01/2014,Hotels and Accommodation           ,PARKHOUSE MOTEL          SALISBURY ,29.90
16/01/2014,Hotels and Accommodation           ,WHITES                   BOLTON    ,19.95
16/01/2014,Hotels and Accommodation           ,ATLANTIC HOTEL           CHELMSFORD,27.20
16/01/2014,Restaurants and Bars               ,HEES CHINESE RESTAURANT  HOUNSLOW  ,24.30
16/01/2014,Travel - Air/Rail/Road             ,OYSTER AUTOTOPUP         0845 33098,20.00
16/01/2014,Hotels and Accommodation           ,WHITES                   BOLTON    ,22.90
16/01/2014,Travel - Air/Rail/Road             ,LUL TICKET MACHINE       VICTORIA V,60.00
16/01/2014,Professional Services              ,UPT - EMT NOTTINGHAM RAI NOTTINGHAM,6.00
16/01/2014,Automotive Fuel                    ,TESCO PFS 3840           PLYMOUTH 2,35.89
16/01/2014,Hotels and Accommodation           ,MERCURE WHITE HART HOTEL SALISBURY ,5.00
16/01/2014,General Retail and Wholesale       ,SAINSBURYS SMKT        BRIGHOUSE ,6.00
16/01/2014,Restaurants and Bars               ,THE MEZE RESTAURANT LT   BRIGHOUSE ,30.00
16/01/2014,Automotive Fuel                    ,SAINSBURYS PETROL        HANKRIDGE ,55.08
16/01/2014,Restaurants and Bars               ,EAT                      LONDON  WC,5.89
16/01/2014,Hotels and Accommodation           ,PARKHOUSE MOTEL          SALISBURY ,12.95
16/01/2014,Automotive Fuel                    ,HORBURY BRIDGE AUT       WAKEFIELD,40.11
16/01/2014,Travel - Air/Rail/Road             ,PARK MOBILE              BHAM B4  ,21.80
16/01/2014,Restaurants and Bars               ,CAFE DESTINO LIMITED     BASINGSTOK,8.80
16/01/2014,Travel - Air/Rail/Road             ,LONDON MIDLAND           METEOR PAR,9.00
16/01/2014,Travel - Air/Rail/Road             ,FGW DIDCOT               DIDCOT    ,6.20
16/01/2014,Automotive Fuel                    ,W M MORRISON PLC         BARRY     ,53.44
16/01/2014,Hotels and Accommodation           ,HOLIDAYINN STOKE ON TRENT NEWCASTLE,20.00
16/01/2014,Hotels and Accommodation           ,BEECHES CON CENTRE       BIRMINGHAM,22.90
16/01/2014,Automotive Fuel                    ,CO-OP GROUP 014029       Petrol Dea,47.59
16/01/2014,Automotive Fuel                    ,W M MORRISON             TIVERTON  ,42.57
16/01/2014,Hotels and Accommodation           ,NOVOTEL WOLVERHAMPTON    WOLVERHAMP,46.21
16/01/2014,Automotive Fuel                    ,TESCO PFS 5204           BRAMHALL  ,17.18
16/01/2014,Automotive Fuel                    ,MALTHURST THIRSK         THIRSK    ,43.81
16/01/2014,Hotels and Accommodation           ,HARDWICK HALL            STOCKTON-O,33.50
16/01/2014,Hotels and Accommodation           ,PARK PLAZA NOTTINGHAM    NOTTINGHAM,39.07
16/01/2014,Restaurants and Bars               ,IL FORNELLO              LONDON WC1,26.30
16/01/2014,Automotive Fuel                    ,Shell Marston Mort       BEDFORD   ,29.42
16/01/2014,Statutory Bodies                   ,SOUTH GLOS COUNCIL       BRISTOL   ,5.00
16/01/2014,Hotels and Accommodation           ,RAMADA ENCORE IPSWICH    IPSWICH   ,12.00
16/01/2014,Utilities and Non Automotive Fuel  ,APPLEGREEN               CAMBRIDHES,14.77
16/01/2014,Restaurants and Bars               ,HEES CHINESE RESTAURANT  HOUNSLOW  ,24.30
16/01/2014,Travel - Air/Rail/Road             ,LUL TICKET OFFICE.       LIVERPOOL ,20.00
16/01/2014,Automotive Fuel                    ,TEX FORMBY SSTN         886991BB23,65.48
16/01/2014,Catering and Catering Supplies     ,WELCOME BREAK STARBUCK   MICHAELWOO,4.00
16/01/2014,Catering and Catering Supplies     ,WELCOME BREAK BK         MICHAELWOO,8.28
16/01/2014,Restaurants and Bars               ,STAFFORD WH SMITHS       STONE     ,2.99
16/01/2014,Restaurants and Bars               ,NUVO                     BIRMINGHAM,31.49
16/01/2014,Restaurants and Bars               ,MORGANS BISTRO           EASTBOURNE,10.90
16/01/2014,Travel - Air/Rail/Road             ,NEW SOUTHERN RAILW       EASTBORN 5,8.20
16/01/2014,Travel - Air/Rail/Road             ,SELFSERVE TICKET         SWTRAINSST,20.00
16/01/2014,Hotels and Accommodation           ,NOVOTEL YORK             YORK .   ,23.00
16/01/2014,Travel - Air/Rail/Road             ,LONDON MIDLAND           METEOR PAR,7.00
16/01/2014,Automotive Fuel                    ,ASDA PETROLUPT 04030    NOTTINGHAM,24.73
16/01/2014,Hotels and Accommodation           ,HOLIDAY INN BLOOMSBURY   LONDON    ,57.15
16/01/2014,Travel - Air/Rail/Road             ,FGW SELF SERVICE         CHIPPENHAM,11.10
16/01/2014,Automotive Fuel                    ,SHELL GROVE              WOODBRIDGE,20.02
16/01/2014,Hotels and Accommodation           ,RICHMOND GATE HOTE       RICHMOND  ,4.00
16/01/2014,Travel - Air/Rail/Road             ,NCP LIMITED              RICHMOND M,18.55
16/01/2014,Automotive Fuel                    ,SAINSBURYS PETROL        POUND LANE,30.29
16/01/2014,Hotels and Accommodation           ,COMFORT HOTELS           ST ALBANS ,33.80
16/01/2014,Hotels and Accommodation           ,GISBOROUGH HALL          GUISBOROUG,50.50
16/01/2014,Restaurants and Bars               ,CIAO BELLA               LONDON  WC,19.25
17/01/2014,Hotels and Accommodation           ,CAVENDISH HOTEL          EASTBOURNE,43.55
17/01/2014,Travel - Air/Rail/Road             ,NCP LTD                  BOLTON    ,3.20
17/01/2014,Hotels and Accommodation           ,THE CARLTON PARK HOTEL   ROTHERHAM ,46.80
17/01/2014,Automotive Fuel                    ,SAINSBURYS PETROL        HEREFORD  ,34.75
17/01/2014,Hotels and Accommodation           ,ANSTY HALL               COVENTRY  ,54.55
17/01/2014,Restaurants and Bars               ,STARBUCKS                COVENTRY  ,6.79
17/01/2014,Travel - Air/Rail/Road             ,COVENTRY CITY COUNCIL    COVENTRY  ,4.50
17/01/2014,Automotive Fuel                    ,ESSO WHITEHOUSE SERVICE S KESTON   ,39.39
17/01/2014,General Retail and Wholesale       ,MORRISONS STORES         ORPINGTON ,8.99
17/01/2014,Hotels and Accommodation           ,SHAFTESBURY PREMIER LO   HOUNSLOW  ,30.00
17/01/2014,Travel - Air/Rail/Road             ,LUL TICKET MACHINE       WOODFORD G,30.00
17/01/2014,Hotels and Accommodation           ,BURLINGTON HOTEL         BIRMINGHAM,24.20
17/01/2014,Automotive Fuel                    ,CO-OP GROUP PETROL       BEVERLEY  ,32.00
17/01/2014,Automotive Fuel                    ,PACE HARTLEY             886273PL35,12.61
17/01/2014,Automotive Fuel                    ,ESSO HAZELGROVE SERVICE S YEOVIL   ,77.16
17/01/2014,Hotels and Accommodation           ,SEAVIEW HOTEL  RE       SEAVIEW   ,50.00
17/01/2014,Automotive Fuel                    ,G E MURGATROYD GEM DERWEN KESWICK  ,35.80
17/01/2014,Hotels and Accommodation           ,LONGHIRST HALL           NORTHUMBER,18.55
17/01/2014,Hotels and Accommodation           ,TILLINGTON HALL HOTEL    STAFFORD  ,84.30
17/01/2014,General Retail and Wholesale       ,SAINSBURYS SMKTS        MANCHESTER,1.75
17/01/2014,Hotels and Accommodation           ,DOUBLETREE BY HILT       MANCHESTER,14.15
17/01/2014,Automotive Fuel                    ,COCKFOSTERS SF CONNECT   ENFIELD   ,36.55
17/01/2014,Hotels and Accommodation           ,CAVENDISH HOTEL          EASTBOURNE,48.05
17/01/2014,Automotive Fuel                    ,WM MORRISONS PETRO       BREDBURY 2,34.97
17/01/2014,Automotive Fuel                    ,SHELL UK LTD             TAUTON DEA,25.37
17/01/2014,Catering and Catering Supplies     ,WELCOME BREAK KFC        GORDANO   ,5.79
17/01/2014,Hotels and Accommodation           ,MARRIOTT                 BRISTOL   ,12.50
17/01/2014,Restaurants and Bars               ,UPPER CRUST              LONDON    ,6.04
17/01/2014,Travel - Air/Rail/Road             ,FGW TICKET OFFICE        READING   ,49.00
17/01/2014,Travel - Air/Rail/Road             ,READING RAIL PRK UPT     READING   ,14.80
17/01/2014,General Retail and Wholesale       ,RED FUNNEL WCOWES KIOSK SOUTHAMPTO,10.00
17/01/2014,Travel - Air/Rail/Road             ,EURO CAR PARKS           COWES     ,5.00
17/01/2014,Automotive Fuel                    ,BP MOUNT CONNECT         ST. ALBANS,50.03
17/01/2014,Hotels and Accommodation           ,FISHER HOTEL  RESTAURAN LOWESTOFT ,34.50
17/01/2014,Hotels and Accommodation           ,HOLIDAY INN BLOOMSBURY   LONDON    ,28.00
17/01/2014,Restaurants and Bars               ,PASTY SHOP               LONDON    ,7.45
17/01/2014,Travel - Air/Rail/Road             ,LUL TICKET OFFICE.       HOLBRON   ,4.50
17/01/2014,Automotive Fuel                    ,MURCO SERVICE STAT       EMSWORTH  ,71.15
17/01/2014,Hotels and Accommodation           ,PREMIER INN40012825      KINGS LYNN,253.75
17/01/2014,General Retail and Wholesale       ,PHILPOTTS LTD            BIRMINGHAM,75.25
17/01/2014,Travel - Air/Rail/Road             ,WEST COAST TRAINS        WLVHAPTN 1,50.00
17/01/2014,Travel - Air/Rail/Road             ,MANCHESTER OXFORD ROAD   MANCHESTER,6.30
17/01/2014,Automotive Fuel                    ,BP EAST BOWLING SSTN    BRADFORD W,45.07
17/01/2014,Hotels and Accommodation           ,ANSTY HALL               COVENTRY  ,70.25
17/01/2014,Hotels and Accommodation           ,MACDONALD HOTELS MANCH   MSTER M1 ,40.00
17/01/2014,Automotive Fuel                    ,TESCO PFS 3975           DORCHESTER,43.35
17/01/2014,Hotels and Accommodation           ,JURYS DOYLE HOTEL        BRIGHTON  ,25.70
17/01/2014,Travel - Air/Rail/Road             ,WEST COAST TRAINS        STAFFORD 1,8.00
17/01/2014,Travel - Air/Rail/Road             ,NCP LIMITED              BOLTON    ,4.70
17/01/2014,General Retail and Wholesale       ,TESCO STORES 5102        TONBRIDGE ,4.12
17/01/2014,Mail and Courier Services          ,POST OFFICE COUNTER      PADDOCK WO,6.22
17/01/2014,General Retail and Wholesale       ,APPLE ITUNES STORE-GBP   ITUNES.COM,5.98
17/01/2014,Automotive Fuel                    ,BHAM PARTNERS            SHEFFIELD ,34.00
17/01/2014,Automotive Fuel                    ,WHARTONS GARAGE          MILLOM    ,62.10
17/01/2014,Hotels and Accommodation           ,PENNINGTON HOTEL         CUMBRIA   ,117.70
17/01/2014,Restaurants and Bars               ,FIRST FLOOR CAFE         WINDERMERE,15.70
17/01/2014,Automotive Fuel                    ,ESSO LOCKSHEATH SSTN     PARK GATE ,46.00
17/01/2014,Travel - Air/Rail/Road             ,WEST COAST TRAINS        MANCHSTR 8,5.80
17/01/2014,Hotels and Accommodation           ,HOLIDAY INNS             BOLTON    ,31.65
17/01/2014,Travel - Air/Rail/Road             ,NCP BOLTON DEANE RD      BOLTON    ,2.50
17/01/2014,Hotels and Accommodation           ,MERCURE ST PAULS HOTEL  SHEFFIELD,68.85
17/01/2014,Hotels and Accommodation           ,THE HOLIDAY IN EXPRESS   ROTHERHAM ,51.45
17/01/2014,Automotive Fuel                    ,SMITHALEIGH SERVICE STATI PLYMOUTH ,32.00
17/01/2014,Hotels and Accommodation           ,MERCURE HOLLAND HOUSE HOT BRISTOL  ,31.95
17/01/2014,General Retail and Wholesale       ,MARKS  SPENCER          HESWALL   ,39.69
17/01/2014,Automotive Fuel                    ,BP LANDFORD SSTN        SALISBURY ,10.66
17/01/2014,Travel - Air/Rail/Road             ,BOROUGH OF POOLE         POOLE     ,6.30
17/01/2014,Travel - Air/Rail/Road             ,XC TRAINS LTD            BIRMINGHAM,36.50
17/01/2014,Travel - Air/Rail/Road             ,NCP                      TANNER ROW,16.90
17/01/2014,Automotive Fuel                    ,SHELL MACKNADE           FAVERSHAM ,6.22
17/01/2014,Hotels and Accommodation           ,ANSTY HALL               COVENTRY  ,24.45
17/01/2014,Travel - Air/Rail/Road             ,M6 TOLL                  TOLL CHARG,5.50
17/01/2014,Travel - Air/Rail/Road             ,COVENTRY CITY COUNCIL    COVENTRY  ,4.50
17/01/2014,Hotels and Accommodation           ,MOOR HALL HOTEL          SUTTON COL,63.45
17/01/2014,Books and Periodicals              ,Amazon  Mktplce EU-UK    AMAZON.CO.,38.94
17/01/2014,Hotels and Accommodation           ,DOUBLETREE BY HILT       MANCHESTER,81.80
17/01/2014,General Retail and Wholesale       ,TESCO STORES 2772        KIDSGROVE ,6.91
17/01/2014,Automotive Fuel                    ,TESCO PFS 5252           NOTTINGHAM,29.71
17/01/2014,Hotels and Accommodation           ,TILLINGTON HALL HOTEL    STAFFORD  ,68.05
17/01/2014,Hotels and Accommodation           ,ANSTY HALL               COVENTRY  ,54.05
17/01/2014,Automotive Fuel                    ,BURTON MWSA CONNECT-3219 CARNFORTH ,20.07
17/01/2014,Automotive Fuel                    ,BP SNAX 24 STROUD        STROUD GLO,44.84
17/01/2014,Catering and Catering Supplies     ,MS SIMPLY FOOD          COBHAM SER,5.67
17/01/2014,Hotels and Accommodation           ,CAVENDISH HOTEL          EASTBOURNE,37.90
17/01/2014,Hotels and Accommodation           ,NOVOTEL YORK             YORK .   ,5.00
17/01/2014,Automotive Fuel                    ,TESCO PFS 3969           SAFFRON WA,33.38
17/01/2014,Hotels and Accommodation           ,TILLINGTON HALL HOTEL    STAFFORD  ,49.80
17/01/2014,Automotive Fuel                    ,BP SOUTHWELL GREEN SSTN SOUTHWELL ,26.00
17/01/2014,Automotive Fuel                    ,BP SNAX - MEADOWHEAD     SHEFFIELD.,15.73
17/01/2014,Hotels and Accommodation           ,ATLANTIC HOTEL           CHELMSFORD,28.45
17/01/2014,Automotive Fuel                    ,LODERS FORECOURT         DORCHESTER,30.99
17/01/2014,Hotels and Accommodation           ,ATLANTIC HOTEL           CHELMSFORD,41.90
17/01/2014,General Retail and Wholesale       ,CHICHESTER STOCKBRIDGE   CHICHESTER,6.35
17/01/2014,Hotels and Accommodation           ,IVY HILL HOTEL           INGATESTON,52.25
17/01/2014,Hotels and Accommodation           ,IVY HILL HOTEL           INGATESTON,21.30
17/01/2014,Travel - Air/Rail/Road             ,TFGM METROLINK           0161 20520,4.30
17/01/2014,Automotive Fuel                    ,ESSO MALTHURST CASTLE    WORCESTER ,13.66
17/01/2014,Hotels and Accommodation           ,RAMADA HOTEL  SUITES COV COVENTRY ,39.05
17/01/2014,Hotels and Accommodation           ,ATLANTIC HOTEL           CHELMSFORD,114.60
17/01/2014,Automotive Fuel                    ,SAINSBURYS SMKTS        DORRIDGE  ,9.03
17/01/2014,Automotive Fuel                    ,TCS MILL LANE            WARRINGTON,30.28
17/01/2014,Mail and Courier Services          ,POST OFFICE COUNTER      DEVIZES   ,6.85
17/01/2014,Automotive Fuel                    ,TESCO PAY AT PUMP 4083   HUCKNALL  ,54.50
17/01/2014,Hotels and Accommodation           ,ANSTY HALL               COVENTRY  ,73.90
17/01/2014,Travel - Air/Rail/Road             ,NEXUS TRAVEL SHOP        NEWCASTLE ,2.60
17/01/2014,Automotive Fuel                    ,BP KETTERING WEST SSERVE KETTERING,40.00
17/01/2014,Automotive Fuel                    ,BROBOT EAST BRIDGF       NOTTINGHAM,35.44
17/01/2014,Hotels and Accommodation           ,SHAFTESBURY PREMIER LO   HOUNSLOW  ,30.00
17/01/2014,Automotive Fuel                    ,SHELL STUBBING 653       STUBBINGTO,7.27
17/01/2014,Hotels and Accommodation           ,IVY HILL HOTEL           INGATESTON,24.75
17/01/2014,Hotels and Accommodation           ,IVY HILL HOTEL           INGATESTON,49.49
17/01/2014,Hotels and Accommodation           ,STRAND PALACE HOTEL      STRANDPALA,20.00
17/01/2014,Mail and Courier Services          ,POST OFFICE COUNTER      PLYMOUTH  ,15.92
17/01/2014,Hotels and Accommodation           ,HOLIDAY INN BLOOMSBURY   LONDON    ,18.35
17/01/2014,General Retail and Wholesale       ,SAINSBURYS SMKT        BRIGHOUSE ,5.00
17/01/2014,Hotels and Accommodation           ,HOLIDAY INN BRIGHOUSE    BRIGHOUSE ,16.50
17/01/2014,General Retail and Wholesale       ,TomTom                   Amsterdam ,19.95
17/01/2014,Automotive Fuel                    ,SAINSBURYS PETROL        HANKRIDGE ,22.65
17/01/2014,Travel - Air/Rail/Road             ,SEVERN RIVER CROSSIN PLC BRISTOL   ,6.40
17/01/2014,Automotive Fuel                    ,TESCO PFS 3736           LAUNCESTON,54.30
17/01/2014,Hotels and Accommodation           ,MERCURE HOLLAND HOUSE HOT BRISTOL  ,48.90
17/01/2014,Travel - Air/Rail/Road             ,WWW.HXPAYMENTS.COM       HOLIDAY EX,14.95
17/01/2014,Hotels and Accommodation           ,THEPARKHOTEL             ST HELENS ,56.10
17/01/2014,Automotive Fuel                    ,BP CALVER SSTN          HOPE VALLE,20.96
17/01/2014,Travel - Air/Rail/Road             ,PARK MOBILE              BHAM B4  ,18.20
17/01/2014,Automotive Fuel                    ,SAINSBURYS PETROL        PERTON    ,23.19
17/01/2014,Hotels and Accommodation           ,CP BIRMINGHAM            BIRMINGHAM,13.50
17/01/2014,Hotels and Accommodation           ,CP BIRMINGHAM            BIRMINGHAM,31.49
17/01/2014,Mail Order / Direct Selling        ,Amazon EU                AMAZON.CO.,17.95
17/01/2014,Travel - Air/Rail/Road             ,FGW CHIP1                CHIPPENHAM,7.10
17/01/2014,Automotive Fuel                    ,LEIGH DELAMERE WEST MWSA CHIPPENHAM,33.68
17/01/2014,Hotels and Accommodation           ,SHAFTESBURY PREMIER LO   HOUNSLOW  ,54.65
17/01/2014,Travel - Air/Rail/Road             ,RINGO                    COLCHESTER,4.20
17/01/2014,Hotels and Accommodation           ,QUEENS MOAT              STOKE ON T,21.45
17/01/2014,Automotive Fuel                    ,SAINSBURYS PETROL        THANET    ,32.07
17/01/2014,Hotels and Accommodation           ,CAVENDISH HOTEL          EASTBOURNE,43.55
17/01/2014,Mail and Courier Services          ,POST OFFICE COUNTER      TWICKENHAM,6.95
17/01/2014,Automotive Fuel                    ,BP BRIAN LEIGHTON GARAGE GOOLE EAST,16.52
17/01/2014,Automotive Fuel                    ,TESCO PFS 3923           CHORLEY   ,31.43
17/01/2014,Catering and Catering Supplies     ,WELCOME BREAK-STARBUCK   BEIGHOUSE ,5.50
17/01/2014,Hotels and Accommodation           ,NOVOTEL YORK             YORK .   ,10.00
17/01/2014,Travel - Air/Rail/Road             ,APCOA - NWR LEEDS        LEEDS     ,17.50
17/01/2014,Hotels and Accommodation           ,ATLANTIC HOTEL           CHELMSFORD,32.40
18/01/2014,Mail and Courier Services          ,POST OFFICE COUNTER      BRISTOL   ,9.45
18/01/2014,Travel - Air/Rail/Road             ,OYSTER AUTOTOPUP         0845 33098,20.00
18/01/2014,Travel - Air/Rail/Road             ,PARK MOBILE              BHAM B4  ,4.00
18/01/2014,"Office Stationery, Equipment and Su",STAPLES UK               HUNTINGDON,12.28
19/01/2014,Travel - Air/Rail/Road             ,NEWCASTLE AIRPORT INT-   NEWCASTLE ,34.89
19/01/2014,Catering and Catering Supplies     ,MARKS  SPENCER SSP LT   KINGS CROS,10.42
19/01/2014,"Office Stationery, Equipment and Su",STAPLES UK               TORQUAY   ,24.77
19/01/2014,"Office Stationery, Equipment and Su",RYMAN 1076               CAMBRIDGE ,6.79
19/01/2014,Automotive Fuel                    ,TESCO PFS 5570           SHROPSHIRE,22.39
19/01/2014,Travel - Air/Rail/Road             ,NORTHERN RAIL LTD        HAZELGRVE2,62.00
19/01/2014,Restaurants and Bars               ,ZA ZA BAZAAR             BRISTOL   ,15.99
19/01/2014,Travel - Air/Rail/Road             ,NEXUS TRAVEL SHOP        NEWCASTLE ,4.50
20/01/2014,Restaurants and Bars               ,BEEFEATER40012330        DOGDUCK  ,31.39
20/01/2014,Travel - Air/Rail/Road             ,TICKETOFFICESALE         SWTRAINS S,130.60
20/01/2014,Travel - Air/Rail/Road             ,PAY N DISPLAY            OFF ST SOU,8.00
20/01/2014,Automotive Fuel                    ,SEWELL RETAIL COTTINGHAM COTTINGHAM,18.93
20/01/2014,Catering and Catering Supplies     ,MS SIMPLY FOOD          TODDINGTON,5.50
20/01/2014,Restaurants and Bars               ,LOCH FYNE RESTAURANT     MILTON KEY,30.00
20/01/2014,Restaurants and Bars               ,THE GOOD THAI FOOD COM   SOUTHAMPTO,20.00
20/01/2014,Restaurants and Bars               ,VALLEY CONNECTION        BURY ST. E,30.45
20/01/2014,Restaurants and Bars               ,THE GOOD THAI FOOD COM   SOUTHAMPTO,20.00
20/01/2014,Travel - Air/Rail/Road             ,ECML RETFORD PARKING     RETFORD   ,7.00
20/01/2014,Automotive Fuel                    ,SHELL PETERBOROUGH       HADDON    ,23.90
20/01/2014,Travel - Air/Rail/Road             ,FGW TICKET OFFICE        PADDINGTON,59.00
20/01/2014,Travel - Air/Rail/Road             ,APCOA CONNECT - FGW      UXBRIDGE  ,5.50
20/01/2014,Restaurants and Bars               ,CARNABY BURGER CO        LONDON    ,12.25
20/01/2014,Travel - Air/Rail/Road             ,VERIFONE TAXI FARE       0333666100,14.08
20/01/2014,Travel - Air/Rail/Road             ,NCP LIMITED PD          NEWPORT   ,22.50
20/01/2014,Automotive Fuel                    ,TESCO PFS 3863           WALKDEN   ,4.40
20/01/2014,Travel - Air/Rail/Road             ,WEST COAST TRAINS        CREWE 1243,8.00
20/01/2014,Restaurants and Bars               ,ST MORITZ                BUXTON    ,22.30
20/01/2014,Travel - Air/Rail/Road             ,MILTON KEYNES DEV        0190861969,4.28
20/01/2014,General Retail and Wholesale       ,SAINSBURYS SMKTS        STANWAY CO,20.63
20/01/2014,Restaurants and Bars               ,THE HOUR GLASS           EXETER    ,17.00
20/01/2014,Restaurants and Bars               ,WASABI                   LONDON  EC,11.00
20/01/2014,Restaurants and Bars               ,PATISSERIE VALERIE       LONDON    ,2.20
20/01/2014,Travel - Air/Rail/Road             ,APCOA NWR LIVERPOOL LI   LIVERPOOL ,12.00
20/01/2014,Hotels and Accommodation           ,THE EDGBASTON PALA       BIRMINGHAM,12.60
20/01/2014,Travel - Air/Rail/Road             ,ARRIVA TRAINS WALE       CREWE RAIL,13.10
20/01/2014,General Retail and Wholesale       ,CAFFE RITAZZA            BRISTOL   ,4.65
20/01/2014,Restaurants and Bars               ,CAESARS                  YORK      ,15.95
20/01/2014,Automotive Fuel                    ,ASDA PETROL 4789         SKELTON   ,45.69
20/01/2014,General Retail and Wholesale       ,WAITROSE 207             BLOOMSBURY,20.61
20/01/2014,Travel - Air/Rail/Road             ,MINI CAB                 MINI CAB  ,3.33
20/01/2014,Travel - Air/Rail/Road             ,EC MAINLINE CO TO       DARLNGTN 7,47.00
20/01/2014,Restaurants and Bars               ,TABLE TABLE41014910      MEDINA QUA,14.35
20/01/2014,Medical Supplies and Services      ,BOOTS 1521               LONDON    ,6.00
20/01/2014,Travel - Air/Rail/Road             ,ECML RETFORD PARKING     RETFORD   ,14.00
20/01/2014,Travel - Air/Rail/Road             ,INTERNATIONAL CENT       NEWCASTLE ,12.00
20/01/2014,Travel - Air/Rail/Road             ,FIRST CAPITAL CONN       HUNTINGDON,121.10
20/01/2014,Travel - Air/Rail/Road             ,APCOA FCC                HUNTINGDON,26.70
20/01/2014,Hotels and Accommodation           ,THE LODGE HOTEL LONDON   THE LODGE ,17.71
20/01/2014,Travel - Air/Rail/Road             ,LUL TICKET OFFICE.       HOLBRON   ,4.70
20/01/2014,Travel - Air/Rail/Road             ,GREATER ANGLIA           CAMBRIDGE ,9.40
20/01/2014,Restaurants and Bars               ,THE GOOD THAI FOOD COM   SOUTHAMPTO,20.00
20/01/2014,Automotive Fuel                    ,BP BROADWAY RIPON        RIPON NORT,36.85
20/01/2014,Hotels and Accommodation           ,HOLIDAY INN NORTHAMPTO   NORTHAMPTO,22.50
20/01/2014,Restaurants and Bars               ,THE GANGES               LONDON    ,25.35
20/01/2014,Restaurants and Bars               ,THE GOOD THAI FOOD COM   SOUTHAMPTO,20.00
20/01/2014,Hotels and Accommodation           ,NOVOTEL IPSWICH          IPSWICH I,7.90
20/01/2014,Hotels and Accommodation           ,NOVOTEL IPSWICH          IPSWICH I,19.87
20/01/2014,Automotive Fuel                    ,SYMONDS FORECOURTS       GLOUCESTER,16.01
20/01/2014,Restaurants and Bars               ,CAY TRE SOHO             LONDON  W1,20.25
20/01/2014,Travel - Air/Rail/Road             ,FGW SELF SERVICE         DIDCOT    ,29.60
20/01/2014,Restaurants and Bars               ,THE GOOD THAI FOOD COM   SOUTHAMPTO,20.00
20/01/2014,Travel - Air/Rail/Road             ,NEWCASTLE AIRPORT INT-   NEWCASTLE ,49.89
20/01/2014,Travel - Air/Rail/Road             ,NEWCASTLE AIRPORT INT-   NEWCASTLE ,3.00
20/01/2014,Restaurants and Bars               ,PRET A MANGER            HIGH HOLBU,4.35
20/01/2014,Restaurants and Bars               ,PRET A MANGER            HIGH HOLBU,6.45
20/01/2014,Restaurants and Bars               ,PIZZA EXPRESS            HIGH HOLBU,35.75
20/01/2014,Travel - Air/Rail/Road             ,TICKETOFFICESALE         SWTRAINS S,8.00
20/01/2014,General Retail and Wholesale       ,TESCO STORES 3108        HERTFORDSH,9.42
20/01/2014,Hotels and Accommodation           ,VILLAGE HOTEL ELSTREE G BOREHAMWOO,18.00
20/01/2014,Automotive Fuel                    ,SHELL KISLINGBURY        NORTHAMPTO,26.38
20/01/2014,Travel - Air/Rail/Road             ,NEW SOUTHERN RAILW       LND SE19 8,10.00
20/01/2014,Automotive Fuel                    ,SAINSBURYS PETROL        HARROGATE ,16.57
20/01/2014,Training and Educational           ,PAUSE CAFE               BHAM B4  ,4.70
20/01/2014,Travel - Air/Rail/Road             ,NCP LIMITED              BHAM LONDO,20.60
20/01/2014,General Retail and Wholesale       ,SAINSBURYS SMKT        MARCH     ,20.49
20/01/2014,Restaurants and Bars               ,PRET A MANGER            HIGH HOLBU,6.48
20/01/2014,Travel - Air/Rail/Road             ,EC MAINLINE CO TO       NEWARK 649,10.00
20/01/2014,Hotels and Accommodation           ,NOVOTEL IPSWICH          IPSWICH I,19.87
20/01/2014,Restaurants and Bars               ,SIX                      GATESHEAD ,24.40
20/01/2014,Hotels and Accommodation           ,MARYGREEN MANOR HOTEL    BRENTWOOD ,32.74
20/01/2014,Travel - Air/Rail/Road             ,M6 TOLL                  TOLL CHARG,5.50
20/01/2014,Restaurants and Bars               ,THE HOUR GLASS           EXETER    ,17.00
20/01/2014,Travel - Air/Rail/Road             ,Q PARK CHARLES STREET    SHEFFIELD ,4.20
20/01/2014,Hotels and Accommodation           ,RAMADA ENCORE M-KEYNES   MILTON KEY,20.00
20/01/2014,Restaurants and Bars               ,LOCH FYNE RESTAURANT     MILTON KEY,34.10
20/01/2014,Restaurants and Bars               ,MCDONALDS REST           WELLINGBOR,4.29
20/01/2014,Automotive Fuel                    ,SHELL LYME GREEN         MACCLESFIE,16.27
20/01/2014,General Retail and Wholesale       ,ARQIVA WIFI              LONDON    ,3.00
20/01/2014,Miscellaneous Industrial/Commercial,DASH                     LONDON    ,3.00
20/01/2014,Travel - Air/Rail/Road             ,FIRST CAPITAL CONN       BEDFORD   ,26.80
20/01/2014,Restaurants and Bars               ,CAESARS                  YORK      ,15.95
20/01/2014,Restaurants and Bars               ,BREWERS FAYRE40536050    DAGENHAM  ,13.93
20/01/2014,Hotels and Accommodation           ,THE COUNTY HOTEL WOODFORD WOODFORD ,10.45
20/01/2014,Restaurants and Bars               ,LOCH FYNE RESTAURANT     MILTON KEY,30.00
20/01/2014,Restaurants and Bars               ,YO SUSHI UK              ST PANCRAS,14.10
20/01/2014,Restaurants and Bars               ,THE GOOD THAI FOOD COM   SOUTHAMPTO,20.00
20/01/2014,Restaurants and Bars               ,BREWERS FAYRE 41024315   WARRENER  ,16.88
20/01/2014,Travel - Air/Rail/Road             ,WEST COAST TRAINS        CUMBRIA 21,8.00
20/01/2014,Catering and Catering Supplies     ,MS SIMPLY FOOD          CHER VLY S,15.58
20/01/2014,Restaurants and Bars               ,CHERWELL VALLEY COSTA    BICESTER10,3.84
20/01/2014,Restaurants and Bars               ,D-DEE                    HITCHIN   ,15.80
20/01/2014,Travel - Air/Rail/Road             ,LONDON MIDLAND           METEOR PAR,9.00
20/01/2014,Travel - Air/Rail/Road             ,LONDON MIDLAND           METEOR PAR,6.50
20/01/2014,General Retail and Wholesale       ,WAITROSE 207             BLOOMSBURY,23.20
20/01/2014,Restaurants and Bars               ,THE GOOD THAI FOOD COM   SOUTHAMPTO,20.00
20/01/2014,Travel - Air/Rail/Road             ,NEW SOUTHERN RAILW       CHICESTR 5,53.90
20/01/2014,Restaurants and Bars               ,CAFE ROUGE               TOTTENHAM ,29.55
20/01/2014,Travel - Air/Rail/Road             ,TAXIPAY TAXI FARE        0162882050,25.00
20/01/2014,Restaurants and Bars               ,THE HOUR GLASS           EXETER    ,17.00
20/01/2014,Hotels and Accommodation           ,RAMADA ENCORE M-KEYNES   MILTON KEY,20.00
20/01/2014,Restaurants and Bars               ,LOCH FYNE RESTAURANT     MILTON KEY,18.90
20/01/2014,Restaurants and Bars               ,ALLO PIZZA               STOKE-ON-T,12.00
20/01/2014,Travel - Air/Rail/Road             ,M6 TOLL                  TOLL CHARG,5.50
20/01/2014,General Retail and Wholesale       ,RAC PALL MALL CLUBHOUS   LONDON  SW,96.00
20/01/2014,Travel - Air/Rail/Road             ,LUL TICKET MACHINE       ST JAMESS ,20.00
20/01/2014,Hotels and Accommodation           ,NOVOTEL IPSWICH          IPSWICH I,7.90
20/01/2014,Restaurants and Bars               ,ST MORITZ                BUXTON    ,23.00
20/01/2014,Automotive Fuel                    ,SAINSBURYS PETROL        POUND LANE,30.72
21/01/2014,Automotive Fuel                    ,BP 1000 GUINEAS CONNECT  NEWMARKET ,1.89
21/01/2014,Restaurants and Bars               ,BISTRO 1                 LONDON    ,18.50
21/01/2014,Restaurants and Bars               ,HOT CHILLI INDIAN        LONDON  WC,23.25
21/01/2014,Restaurants and Bars               ,BISTRO 1                 LONDON    ,18.50
21/01/2014,General Retail and Wholesale       ,SAINSBURYS SMKTS        MILTON KEY,8.60
21/01/2014,Restaurants and Bars               ,AQUA ITALIA LTD          MILTON KEY,25.00
21/01/2014,Restaurants and Bars               ,DOCTORS KITCHEN LTD      SOUTHAMPTO,28.00
21/01/2014,Restaurants and Bars               ,GCL083R                  GCL       ,24.95
21/01/2014,Travel - Air/Rail/Road             ,THE ROYALS               SOUTHEND-O,9.00
21/01/2014,Restaurants and Bars               ,DOCTORS KITCHEN LTD      SOUTHAMPTO,28.00
21/01/2014,Hotels and Accommodation           ,VELVET                   MANCHESTER,12.45
21/01/2014,Hotels and Accommodation           ,ABODE MANCHESTER         MANCHESTER,7.28
21/01/2014,Hotels and Accommodation           ,THE BEARS PAW            WARMINGHAM,30.25
21/01/2014,Automotive Fuel                    ,HRS METEOR               ALFRETON  ,4.79
21/01/2014,Travel - Air/Rail/Road             ,UPT EM ALFRETON TRAIN ST ALFRETON  ,2.50
21/01/2014,Restaurants and Bars               ,EXOTIC SPICE             MCHESTER ,11.85
21/01/2014,Restaurants and Bars               ,CHRISTOPHERS THE AMER   LONDON  WC,35.00
21/01/2014,Restaurants and Bars               ,OPULENCE                 DERBY     ,18.65
21/01/2014,Travel - Air/Rail/Road             ,M6 TOLL                  TOLL CHARG,4.00
21/01/2014,Travel - Air/Rail/Road             ,WEST COAST TRAINS        STAFFORD 1,8.00
21/01/2014,Hotels and Accommodation           ,CAMPANILE                WC2R 0JJ  ,129.60
21/01/2014,Restaurants and Bars               ,BISTRO 1                 LONDON    ,18.50
21/01/2014,Travel - Air/Rail/Road             ,NORTHERN RAIL LTD        CHORLEY 27,12.80
21/01/2014,Restaurants and Bars               ,DOMINOES                 UXBRIDGE  ,14.99
21/01/2014,Travel - Air/Rail/Road             ,VERIFONE TAXI FARE       0333666100,14.30
21/01/2014,Hotels and Accommodation           ,LINDEN HALL              MORPETH   ,25.75
21/01/2014,Hotels and Accommodation           ,HOLIDAY INN SWINDON      SWINDON   ,13.10
21/01/2014,Restaurants and Bars               ,THE ORIENTAL             PURFLEET  ,33.00
21/01/2014,Hotels and Accommodation           ,LINGFIELD PARK RECEPTION LINGFIELD ,17.95
21/01/2014,Restaurants and Bars               ,JASMINE THAI RESTAURAN   EXETER    ,31.50
21/01/2014,Travel - Air/Rail/Road             ,LONDON  SOUTH EAS       LONDON SE9,8.40
21/01/2014,Hotels and Accommodation           ,CEDAR COURT GRAND        YORK      ,35.35
21/01/2014,Restaurants and Bars               ,PATISSERIE VALERIE       LONDON    ,5.00
21/01/2014,Travel - Air/Rail/Road             ,MINI CAB                 MINI CAB  ,15.60
21/01/2014,Travel - Air/Rail/Road             ,MINI CAB                 MINI CAB  ,15.60
21/01/2014,Hotels and Accommodation           ,MACDONALD HOTELS MANCH   MSTER M1 ,32.40
21/01/2014,Restaurants and Bars               ,BISTRO 1                 LONDON    ,18.50
21/01/2014,Hotels and Accommodation           ,MILFORD HOTEL            LEEDS     ,24.40
21/01/2014,Hotels and Accommodation           ,THE LODGE HOTEL LONDON   THE LODGE ,12.00
21/01/2014,Restaurants and Bars               ,DOCTORS KITCHEN LTD      SOUTHAMPTO,28.00
21/01/2014,Automotive Fuel                    ,SHELL CHSTFLD NRTH       CHESTERFIE,59.49
21/01/2014,Restaurants and Bars               ,ANGUS STEAKHOUSE         LONDON    ,27.40
21/01/2014,Restaurants and Bars               ,DOCTORS KITCHEN LTD      SOUTHAMPTO,28.00
21/01/2014,Automotive Fuel                    ,TESCO PAY AT PUMP 4037   LYDNEY    ,49.64
21/01/2014,Hotels and Accommodation           ,MERCURE WHATELY HALL HOTE BANBURY O,36.40
21/01/2014,Hotels and Accommodation           ,NOVOTEL IPSWICH          IPSWICH I,15.00
21/01/2014,Travel - Air/Rail/Road             ,TICKETOFFICESALE         SWTRAINSWH,52.55
21/01/2014,Hotels and Accommodation           ,THREE COUNTIES           HEREFORD  ,23.20
21/01/2014,Mail and Courier Services          ,POST OFFICE COUNTER      HEREFORD  ,6.95
21/01/2014,Restaurants and Bars               ,NOPI                     LONDON    ,40.00
21/01/2014,Automotive Fuel                    ,CO-OP GROUP PETROL       CLITHEROE ,38.36
21/01/2014,Travel - Air/Rail/Road             ,SELFSERVE TICKET         SWTRAINS A,20.70
21/01/2014,Restaurants and Bars               ,DOCTORS KITCHEN LTD      SOUTHAMPTO,28.00
21/01/2014,Restaurants and Bars               ,TABLE TABLE41016560      RIDGACRE  ,24.12
21/01/2014,Restaurants and Bars               ,PRET A MANGER            HIGH HOLBU,2.10
21/01/2014,Restaurants and Bars               ,MUSEUM TAVERN            BLOOMSBURY,12.49
21/01/2014,Travel - Air/Rail/Road             ,XC TRAINS LTD            BIRMINGHAM,36.50
21/01/2014,Travel - Air/Rail/Road             ,LONDON MIDLAND SEL       NORTHAMPTO,8.50
21/01/2014,Hotels and Accommodation           ,VILLAGE HOTEL ELSTREE G BOREHAMWOO,16.35
21/01/2014,General Retail and Wholesale       ,SAINSBURYS SMKTS        WEEDON RD ,40.18
21/01/2014,Hotels and Accommodation           ,RAMADA HOTEL  SUITES COV COVENTRY ,25.40
21/01/2014,Catering and Catering Supplies     ,MARKS SPENCER SSP LTD   ST PANCRAS,6.61
21/01/2014,Hotels and Accommodation           ,CAMPANILE                WC2R 0JJ  ,19.75
21/01/2014,Restaurants and Bars               ,MAMMA MIAS              MARCH     ,24.95
21/01/2014,Restaurants and Bars               ,BISTRO 1                 LONDON    ,18.50
21/01/2014,Hotels and Accommodation           ,WEETWOOD HALL LTD        LEEDS     ,26.50
21/01/2014,Restaurants and Bars               ,BISTRO 1                 LONDON    ,18.50
21/01/2014,Travel - Air/Rail/Road             ,NCP LIMITED              NOTTM MOUN,16.40
21/01/2014,Hotels and Accommodation           ,NOVOTEL IPSWICH          IPSWICH I,15.00
21/01/2014,Restaurants and Bars               ,GUSTO                    NEWCASTLE ,19.45
21/01/2014,Hotels and Accommodation           ,MARYGREEN MANOR HOTEL    BRENTWOOD ,16.20
21/01/2014,Restaurants and Bars               ,THE ORIENTAL             PURFLEET  ,33.00
21/01/2014,Restaurants and Bars               ,BISTRO 1                 LONDON    ,18.50
21/01/2014,Travel - Air/Rail/Road             ,EC MAINLINE CO TO       DONCSTER 6,138.00
21/01/2014,Hotels and Accommodation           ,QUEENS MOAT              STOKE ON T,20.50
21/01/2014,Restaurants and Bars               ,JASMINE THAI RESTAURAN   EXETER    ,29.75
21/01/2014,Restaurants and Bars               ,CAFE ROUGE               BURY ST ED,44.00
21/01/2014,General Retail and Wholesale       ,SAINSBURYS SMKTS        NOTTINGHAM,3.00
21/01/2014,Travel - Air/Rail/Road             ,NCP LIMITED              NOTTM MOUN,16.40
21/01/2014,Automotive Fuel                    ,RHEGED FORECOURT         PENRITH   ,5.10
21/01/2014,Restaurants and Bars               ,RHEGED DISCOVER CT       PENRITH   ,7.93
21/01/2014,Restaurants and Bars               ,BISTRO 1                 LONDON    ,18.50
21/01/2014,Travel - Air/Rail/Road             ,APCOA FCC                SANDY     ,13.00
21/01/2014,Hotels and Accommodation           ,BREWERS FAYRE 40521580   OLD NELSON,17.13
21/01/2014,Restaurants and Bars               ,LOCH FYNE RESTAURANT     MILTON KEY,36.15
21/01/2014,Travel - Air/Rail/Road             ,METEOR PARKING LTD       0845603619,6.00
21/01/2014,Travel - Air/Rail/Road             ,APCOA CONNECT - FGW      UXBRIDGE  ,20.40
21/01/2014,Hotels and Accommodation           ,JURYS INN SWINDON        SWINDON   ,26.05
21/01/2014,Travel - Air/Rail/Road             ,FIRST CAPITAL CONN       BEDFORD   ,39.00
21/01/2014,"Office Stationery, Equipment and Su",RYMAN                    CHESTER   ,5.18
21/01/2014,Hotels and Accommodation           ,CEDAR COURT GRAND        YORK      ,35.35
21/01/2014,Restaurants and Bars               ,BREWERS FAYRE40536050    DAGENHAM  ,16.33
21/01/2014,Restaurants and Bars               ,PREZZO                   LONDON  E1,22.65
21/01/2014,Travel - Air/Rail/Road             ,LONDON  SOUTH EAS       RAMSGATE  ,80.30
21/01/2014,Restaurants and Bars               ,DOCTORS KITCHEN LTD      SOUTHAMPTO,28.00
21/01/2014,Leisure Activities                 ,BRISTOL CITY COUNCIL -   BRISTOL   ,4.00
21/01/2014,Restaurants and Bars               ,THE GLASS BOAT           BRISTOL   ,30.70
21/01/2014,Hotels and Accommodation           ,HOLIDAY INN BLOOMSBURY   LONDON    ,16.45
21/01/2014,Restaurants and Bars               ,BREWERS FAYRE 41024315   WARRENER  ,11.83
21/01/2014,Restaurants and Bars               ,THE WHITE HART           HYTHE     ,27.00
21/01/2014,Hotels and Accommodation           ,MOORE PLACE              MILTON KEY,26.00
21/01/2014,Restaurants and Bars               ,TABLE TO TABLE41824515   NELSON    ,13.09
21/01/2014,Restaurants and Bars               ,PREZZO                   HITCHIN   ,21.45
21/01/2014,Restaurants and Bars               ,THE GLASS BOAT           BRISTOL   ,27.70
21/01/2014,Travel - Air/Rail/Road             ,APCOA CONNECT - FGW      UXBRIDGE  ,11.50
21/01/2014,Automotive Fuel                    ,W M MORRISON             BROMSGROVE,43.04
21/01/2014,General Retail and Wholesale       ,TESCO STORES 5421        CARDIFF   ,15.02
21/01/2014,Restaurants and Bars               ,EAT                      NEW STREET,4.80
21/01/2014,Travel - Air/Rail/Road             ,Q PARK BIRMINGHAM BRINDLE BIRMINGHA,13.00
21/01/2014,Statutory Bodies                   ,TAUNTON DEANE BOROUGH COU TAUNTON S,5.40
21/01/2014,Hotels and Accommodation           ,HARTS OF NOTTINGHAM      NOTTINGHAM,250.00
21/01/2014,Restaurants and Bars               ,THE MEMSAAB              NOTTINGHAM,30.91
21/01/2014,Restaurants and Bars               ,THE FOX INN              RUDGWICK  ,7.35
21/01/2014,Automotive Fuel                    ,BRISTOL RD SERVICE       CHIPPENHAM,19.07
21/01/2014,Restaurants and Bars               ,SIAM                    LONDON    ,33.72
21/01/2014,Hotels and Accommodation           ,RAMADA PLAZA SOUTHPORT   SOUTHPORT ,3.00
21/01/2014,Restaurants and Bars               ,COSTA COFFEE             SOUTHPORT ,6.40
21/01/2014,Restaurants and Bars               ,JASMINE THAI RESTAURAN   EXETER    ,30.50
21/01/2014,Restaurants and Bars               ,LOCH FYNE RESTAURANT     MILTON KEY,26.85
21/01/2014,Hotels and Accommodation           ,HOLIDAY INN BRENT CR     LONDON    ,17.55
21/01/2014,Travel - Air/Rail/Road             ,M6 TOLL                  TOLL CHARG,5.50
21/01/2014,Automotive Fuel                    ,MALTHURST BILBROUGHT     TADCASTER ,16.26
21/01/2014,Hotels and Accommodation           ,PARK ROYAL HOTEL         WARRINGTON,24.80
21/01/2014,Restaurants and Bars               ,RICHARD ONSLOW           CRANLEIGH ,14.70
21/01/2014,Automotive Fuel                    ,FALCON SERVICE STATIONS- STAFFS    ,30.19
22/01/2014,General Retail and Wholesale       ,TESCO STORES 2174        BRAINTREE ,3.35
22/01/2014,Automotive Fuel                    ,BP FARNHAM CONNECT       SURREY    ,20.46
22/01/2014,Hotels and Accommodation           ,HOLIDAY INN              AYLESBURY ,20.30
22/01/2014,Restaurants and Bars               ,THIWANYA                 LONDON  WC,25.80
22/01/2014,Hotels and Accommodation           ,MCMULLEN  SONS LT       HERTFORD  ,55.70
22/01/2014,Travel - Air/Rail/Road             ,WEST COAST TRAINS        RUNCORN 22,20.00
22/01/2014,Mail and Courier Services          ,POST OFFICE COUNTER      KESTON    ,4.10
22/01/2014,General Retail and Wholesale       ,SAINSBURYS SMKTS        MILTON KEY,6.99
22/01/2014,General Retail and Wholesale       ,SAINSBURYS SMKTS        MILTON KEY,7.08
22/01/2014,Restaurants and Bars               ,AQUA ITALIA LTD          MILTON KEY,27.00
22/01/2014,Restaurants and Bars               ,CENO RESTAURANT          SOUTHAMPTO,22.00
22/01/2014,Automotive Fuel                    ,ESSO PACE WHITE ROSE     DONCASTER ,12.73
22/01/2014,Restaurants and Bars               ,PREZZO                   BURY ST ED,28.50
22/01/2014,Hotels and Accommodation           ,CEDAR COURT HOTEL        HUDDERSFIE,7.50
22/01/2014,Restaurants and Bars               ,FLYING PASTA             WESTCLIFF-,31.45
22/01/2014,Hotels and Accommodation           ,SEAVIEW HOTEL  RE       SEAVIEW   ,178.30
22/01/2014,Restaurants and Bars               ,CENO RESTAURANT          SOUTHAMPTO,22.00
22/01/2014,Restaurants and Bars               ,SHAH TANDOORI            LONDON NW1,22.65
22/01/2014,Automotive Fuel                    ,TEXEASTLEITHSSTN         SO505QT 25,11.00
22/01/2014,Travel - Air/Rail/Road             ,EAST MIDLAND CHESTERFIEL CHESTERFIE,10.00
22/01/2014,Travel - Air/Rail/Road             ,LUL TICKET MACHINE       KINGS CROS,20.00
22/01/2014,Restaurants and Bars               ,BURGER KING              MANCHESTER,7.08
22/01/2014,Hotels and Accommodation           ,MILFORD HOTEL            LEEDS     ,21.10
22/01/2014,Restaurants and Bars               ,LA MIN-HAZ BALTI HOUSE   MSTER M24,21.65
22/01/2014,Restaurants and Bars               ,IBERICO TAPAS            NOTTINGHAM,40.00
22/01/2014,Travel - Air/Rail/Road             ,KINGS X N              KINGS X N,8.90
22/01/2014,Automotive Fuel                    ,CO-OP GROUP 310602       Petrol Pas,8.00
22/01/2014,Hotels and Accommodation           ,MARRIOTT                 SOUTHAMPTO,56.67
22/01/2014,Restaurants and Bars               ,THE ROYAL OAK            STAMFORD  ,10.00
22/01/2014,Restaurants and Bars               ,THAI DUSIT               DERBY     ,16.70
22/01/2014,Restaurants and Bars               ,USKUDAR                  TONBRIDGE ,18.75
22/01/2014,Restaurants and Bars               ,KAYAL                    NOTTINGHAM,23.64
22/01/2014,General Retail and Wholesale       ,PHILPOTTS LTD            NOTTINGHAM,5.35
22/01/2014,Restaurants and Bars               ,KAYAL                    NOTTINGHAM,23.64
22/01/2014,Hotels and Accommodation           ,PALACE HOTEL             BUXTON    ,42.75
22/01/2014,Restaurants and Bars               ,IBERICO TAPAS            NOTTINGHAM,40.00
22/01/2014,Travel - Air/Rail/Road             ,FIRST GREATER WESTERN    SWINDON   ,6.50
22/01/2014,Travel - Air/Rail/Road             ,FIRST GREATER WESTERN    SWINDON   ,7.00
22/01/2014,Restaurants and Bars               ,THE ORIENTAL             PURFLEET  ,34.00
22/01/2014,Automotive Fuel                    ,W M MORRISON             HINCKLEY  ,27.51
22/01/2014,Travel - Air/Rail/Road             ,APCOA - NWR MANCHESTER   MANCHESTER,8.50
22/01/2014,Hotels and Accommodation           ,MAGDALEN CHAPTER         EXETER    ,29.00
22/01/2014,Automotive Fuel                    ,SAINSBURYS PETROL        DURHAM    ,17.36
22/01/2014,Professional Services              ,WWW.PAYLONDONCONGESTION. WEST TISTE,16.00
22/01/2014,Hotels and Accommodation           ,MCMULLEN  SONS LT       HERTFORD  ,32.40
22/01/2014,Travel - Air/Rail/Road             ,LONDON  SOUTH EAS       LONDON SE9,8.40
22/01/2014,Travel - Air/Rail/Road             ,OYSTER AUTOTOPUP         0845 33098,20.00
22/01/2014,Hotels and Accommodation           ,ROWHILL GRANGE           WILMINGTON,19.12
22/01/2014,General Retail and Wholesale       ,WAITROSE 207             BLOOMSBURY,19.23
22/01/2014,Restaurants and Bars               ,COSTA COFFEE             LONDON  N1,7.70
22/01/2014,Medical Supplies and Services      ,BOOTS 1521               LONDON    ,5.59
22/01/2014,Hotels and Accommodation           ,MERCURE SOUTHGATE HOTEL  EXETER DE,22.15
22/01/2014,Medical Supplies and Services      ,BOOTS 1521               LONDON    ,5.48
22/01/2014,Travel - Air/Rail/Road             ,WEST COAST TRAINS        STAFFORD 1,24.00
22/01/2014,Hotels and Accommodation           ,BAGDEN HALL HOTEL        HUDDERSFIE,35.10
22/01/2014,Travel - Air/Rail/Road             ,NCP LIMITED              NOTTM MOUN,8.20
22/01/2014,General Retail and Wholesale       ,TESCO STORE 2416         DRIFFIELD ,9.00
22/01/2014,Automotive Fuel                    ,W M MORRISON             TEWKESBURY,20.30
22/01/2014,Hotels and Accommodation           ,SUTTON CLDFLD HOTEL LTD  SUTTON    ,69.00
22/01/2014,Hotels and Accommodation           ,THE LODGE HOTEL LONDON   THE LODGE ,12.00
22/01/2014,Automotive Fuel                    ,ESSO CITY SSTN           CAMBRIDGE ,17.46
22/01/2014,Restaurants and Bars               ,CENO RESTAURANT          SOUTHAMPTO,22.00
22/01/2014,Travel - Air/Rail/Road             ,PARKING NCASTLE CC       NEWCASTLE ,2.70
22/01/2014,Restaurants and Bars               ,CENO RESTAURANT          SOUTHAMPTO,22.00
22/01/2014,Hotels and Accommodation           ,NOVOTEL IPSWICH          IPSWICH I,27.00
22/01/2014,Travel - Air/Rail/Road             ,TICKETOFFICESALE         SWTRAINSWH,32.85
22/01/2014,Restaurants and Bars               ,MCDONALDS                CHESHIRE  ,5.19
22/01/2014,Restaurants and Bars               ,SANDBACH MWSA            SANDBACH  ,12.16
22/01/2014,Hotels and Accommodation           ,MERCURE DUNKENHAIGH HOTEL ACCRINGTO,34.20
22/01/2014,Restaurants and Bars               ,CENO RESTAURANT          SOUTHAMPTO,22.00
22/01/2014,Hotels and Accommodation           ,STANNEYLANDS HOTEL       WILMSLOW  ,75.85
22/01/2014,Restaurants and Bars               ,TABLE TABLE41016560      RIDGACRE  ,17.23
22/01/2014,Hotels and Accommodation           ,NOVOTEL IPSWICH          IPSWICH I,24.05
22/01/2014,Restaurants and Bars               ,PRET A MANGER            19-20 LIVE,5.75
22/01/2014,Travel - Air/Rail/Road             ,LUL TICKET MACHINE       HOLBORN   ,30.00
22/01/2014,Travel - Air/Rail/Road             ,GREATER ANGLIA TO       LONDON EC2,37.90
22/01/2014,Automotive Fuel                    ,HEADCOM SERVICE ST       ASHFORD   ,27.45
22/01/2014,Hotels and Accommodation           ,RAMADA HOTEL  SUITES COV COVENTRY ,12.45
22/01/2014,Hotels and Accommodation           ,MILLENNIUM               SLOUGH WIN,26.90
22/01/2014,Automotive Fuel                    ,MURCO SSTN 160          LEWES     ,12.07
22/01/2014,Hotels and Accommodation           ,INTER CONTINE            SOUTHEND O,48.80
22/01/2014,General Retail and Wholesale       ,PHILPOTTS LTD            NOTTINGHAM,8.80
22/01/2014,Restaurants and Bars               ,KAYAL                    NOTTINGHAM,23.64
22/01/2014,Travel - Air/Rail/Road             ,ROBIN CAR PARKS          SOUTHWELL ,7.50
22/01/2014,Travel - Air/Rail/Road             ,TFL CCLEZ CHARGE        0845 900 1,10.00
22/01/2014,Travel - Air/Rail/Road             ,WEST COAST TRAINS        WARRINGTON,18.00
22/01/2014,Hotels and Accommodation           ,WEETWOOD HALL LTD        LEEDS     ,30.80
22/01/2014,Travel - Air/Rail/Road             ,ECML NEWARK PARKING      NEWARK    ,20.00
22/01/2014,Hotels and Accommodation           ,NOVOTEL IPSWICH          IPSWICH I,18.40
22/01/2014,Automotive Fuel                    ,SAINSBURYS PETROL        ARCHER ROA,12.97
22/01/2014,Hotels and Accommodation           ,HOL INN BIRM CITY        BIRMINGHAM,24.94
22/01/2014,Automotive Fuel                    ,TEX LEEMINGBAR           611593DL81,50.10
22/01/2014,Hotels and Accommodation           ,VILLAGE HOTEL WALSALL G WALSALL   ,30.00
22/01/2014,Hotels and Accommodation           ,MARYGREEN MANOR HOTEL    BRENTWOOD ,14.00
22/01/2014,Travel - Air/Rail/Road             ,M6 TOLL                  TOLL CHARG,5.50
22/01/2014,Travel - Air/Rail/Road             ,M6 TOLL                  TOLL CHARG,4.00
22/01/2014,Restaurants and Bars               ,THE ORIENTAL             PURFLEET  ,34.00
22/01/2014,Hotels and Accommodation           ,HOLIDAY INN BLOOMSBURY   LONDON    ,58.95
22/01/2014,Travel - Air/Rail/Road             ,RCP PARKING LTD          NORWICH   ,45.00
22/01/2014,Travel - Air/Rail/Road             ,EC MAINLINE CO TO       DONCSTER 6,187.00
22/01/2014,Automotive Fuel                    ,SAINSBURYS SMKT         CRYSTAL PE,7.05
22/01/2014,Automotive Fuel                    ,ESSO WIDNEY SSTN         KNOWLE    ,27.54
22/01/2014,Travel - Air/Rail/Road             ,M6 TOLL                  TOLL CHARG,5.50
22/01/2014,Hotels and Accommodation           ,MAGDALEN CHAPTER         EXETER    ,29.00
22/01/2014,Travel - Air/Rail/Road             ,EAST MIDLANDS DERBY STAT DERBY     ,13.00
22/01/2014,Restaurants and Bars               ,PREZZO                   BURY ST ED,28.50
22/01/2014,Restaurants and Bars               ,PRET A MANGER            HIGH HOLBU,3.98
22/01/2014,Travel - Air/Rail/Road             ,LUL TICKET OFFICE.       HOLBRON   ,10.00
22/01/2014,Travel - Air/Rail/Road             ,NCP LIMITED              NOTTM MOUN,16.40
22/01/2014,Statutory Bodies                   ,WAKEFIELD COUNCIL        WAKEFIELD ,18.00
22/01/2014,Catering and Catering Supplies     ,FOOD STANDARDS AGE       LONDON  WC,4.44
22/01/2014,Catering and Catering Supplies     ,KRISPY KREME HOLBORN     LONDON    ,4.25
22/01/2014,Hotels and Accommodation           ,BREWERS FAYRE 40521580   OLD NELSON,17.03
22/01/2014,Automotive Fuel                    ,Shell Barton Seagr       KETTERING ,11.27
22/01/2014,Automotive Fuel                    ,SHELL STUBBING 653       STUBBINGTO,10.72
22/01/2014,Restaurants and Bars               ,HIPPODROME               MARCH     ,13.80
22/01/2014,Restaurants and Bars               ,TABLE TABLE41017355      STANHOPE  ,15.38
22/01/2014,Travel - Air/Rail/Road             ,LUL TICKET MACHINE       PADDINGTON,60.00
22/01/2014,Travel - Air/Rail/Road             ,FIRST CAPITAL CONN       BEDFORD   ,131.40
22/01/2014,Automotive Fuel                    ,SMITHALEIGH SERVICE STATI PLYMOUTH ,42.74
22/01/2014,Restaurants and Bars               ,HILTON BRISTOL           BRISTOL   ,25.00
22/01/2014,Automotive Fuel                    ,LIGHTFOOTS EST 18       BRACKNELL ,27.07
22/01/2014,Travel - Air/Rail/Road             ,ECML YORK PARKING        YORK      ,15.00
22/01/2014,Restaurants and Bars               ,AQUA ITALIA LTD          MILTON KEY,27.00
22/01/2014,Automotive Fuel                    ,SAINSBURYS PETROL        HANKRIDGE ,44.37
22/01/2014,Travel - Air/Rail/Road             ,SEVERN RIVER CROSSIN PLC BRISTOL   ,6.40
22/01/2014,Restaurants and Bars               ,CENO RESTAURANT          SOUTHAMPTO,22.00
22/01/2014,Automotive Fuel                    ,TESCO PFS 3736           LAUNCESTON,54.68
22/01/2014,Hotels and Accommodation           ,MERCURE BRISTOL          BRISTOL GL,16.50
22/01/2014,Leisure Activities                 ,BRISTOL CITY COUNCIL -   BRISTOL   ,10.00
22/01/2014,Hotels and Accommodation           ,MARRIOTT                 SOUTHAMPTO,56.59
22/01/2014,Automotive Fuel                    ,BP MALTHURST GILLINGHAM  BECCLES NO,22.36
22/01/2014,Automotive Fuel                    ,OSSETT SERVICE STA       WAKEFIELD ,16.69
22/01/2014,Hotels and Accommodation           ,STANNEYLANDS HOTEL       WILMSLOW  ,51.80
22/01/2014,Catering and Catering Supplies     ,WELCOME BWAITROSE       MEMBURY SO,3.60
22/01/2014,Restaurants and Bars               ,THE ANCHOR INN ASPLEY   MILTON KEY,15.20
22/01/2014,Travel - Air/Rail/Road             ,LONDON MIDLAND           METEOR PAR,9.00
22/01/2014,Hotels and Accommodation           ,MERCURE HOLLAND HOUSE HOT BRISTOL  ,10.00
22/01/2014,Hotels and Accommodation           ,CP BIRMINGHAM            BIRMINGHAM,30.18
22/01/2014,Travel - Air/Rail/Road             ,BRITANNIA PARKING LTD    BOURNEMOUT,10.00
22/01/2014,Hotels and Accommodation           ,MARRIOTT                 LEEDS     ,29.50
22/01/2014,Automotive Fuel                    ,TESCO PFS 5204           BRAMHALL  ,33.93
22/01/2014,Hotels and Accommodation           ,THE EARL OF DONCASTER    DONCASTER ,34.90
22/01/2014,Restaurants and Bars               ,DONCASTER COSTA          DONCASTER ,8.43
22/01/2014,Hotels and Accommodation           ,MALMAISON                NEWCASTLE ,46.99
22/01/2014,Restaurants and Bars               ,4550 MILES FROM DELHI    NOTTINGHAM,25.69
22/01/2014,Automotive Fuel                    ,SOMERBY HILL SERVICE STAT GRANTHAM ,6.78
22/01/2014,General Retail and Wholesale       ,PHILPOTTS LTD            NOTTINGHAM,8.60
22/01/2014,Restaurants and Bars               ,KAYAL                    NOTTINGHAM,23.64
22/01/2014,Restaurants and Bars               ,CENO RESTAURANT          SOUTHAMPTO,22.00
22/01/2014,Hotels and Accommodation           ,PARK PLAZA NOTTINGHAM    NOTTINGHAM,21.90
22/01/2014,Restaurants and Bars               ,TARANTINO RESTAURANT     BRENTWOOD ,25.50
22/01/2014,Restaurants and Bars               ,CALDECOTTE ARMS          MILTON KEY,10.79
22/01/2014,Restaurants and Bars               ,CAFE ROUGE               TOTTENHAM ,26.55
22/01/2014,Automotive Fuel                    ,MORRISONS PETROL         NELSON    ,29.40
22/01/2014,Hotels and Accommodation           ,PARK ROYAL HOTEL         WARRINGTON,36.47
22/01/2014,Statutory Bodies                   ,LIVERPOOL CITY COUNCIL   LIVERPOOL ,1.60
22/01/2014,Statutory Bodies                   ,MERSEY TUNNELS           LIVERPOOL ,1.60
22/01/2014,Hotels and Accommodation           ,MAGDALEN CHAPTER         EXETER    ,29.00
22/01/2014,Auto Rental                        ,CITY FLEET NETWORK       0207 90802,16.40
22/01/2014,Automotive Fuel                    ,TEXALDERLEYSSTN         887066SK97,24.81
22/01/2014,Hotels and Accommodation           ,HOLIDAY INN COVENTRY     COVENTRY  ,11.05
22/01/2014,Travel - Air/Rail/Road             ,M6 TOLL                  TOLL CHARG,5.50
22/01/2014,Travel - Air/Rail/Road             ,ECML YORK PARKING        YORK      ,15.00
22/01/2014,Automotive Fuel                    ,TESCO PFS 3923           CHORLEY   ,19.58
22/01/2014,Travel - Air/Rail/Road             ,WEST COAST TRAINS        LONDON NW1,79.00
22/01/2014,Travel - Air/Rail/Road             ,APCOA NWR LIVERPOOL LI   LIVERPOOL ,17.00
22/01/2014,Restaurants and Bars               ,RICHARD ONSLOW           CRANLEIGH ,25.00
22/01/2014,Travel - Air/Rail/Road             ,M6 TOLL                  TOLL CHARG,5.50
22/01/2014,Automotive Fuel                    ,BP MALTHURST GILLINGHAM  BECCLES NO,22.46
22/01/2014,Restaurants and Bars               ,THE BELGIAN CAFE         EASTBOURNE,24.90
22/01/2014,Restaurants and Bars               ,USKUDAR                  TONBRIDGE ,18.75
22/01/2014,Hotels and Accommodation           ,PALACE HOTEL             BUXTON    ,38.40
22/01/2014,Restaurants and Bars               ,HARE  TORTOISE BRUNSW   LONDON  SW,16.70
23/01/2014,Travel - Air/Rail/Road             ,PAY N DISPLAY            OFF ST SOU,8.00
23/01/2014,Automotive Fuel                    ,CASINO FILLING STN       KENT      ,48.89
23/01/2014,Automotive Fuel                    ,CO-OP GROUP PETROL       BEVERLEY  ,20.00
23/01/2014,Hotels and Accommodation           ,WEETWOOD HALL LTD        LEEDS     ,47.45
23/01/2014,Travel - Air/Rail/Road             ,THE ROYALS               SOUTHEND-O,21.00
23/01/2014,Automotive Fuel                    ,TESCO PFS 3876           BRISTOL 1 ,40.40
23/01/2014,Travel - Air/Rail/Road             ,APCOA - NWR MANCHESTER   MANCHESTER,34.00
23/01/2014,Automotive Fuel                    ,MRH COUNTRY              CAMBS     ,23.89
23/01/2014,Automotive Fuel                    ,SAINSBURYS SMKTS        TAUNTON   ,32.79
23/01/2014,Hotels and Accommodation           ,HOLIDAY INN              BRISTOL-FI,42.03
23/01/2014,Automotive Fuel                    ,TEXACO CROSSGATES        LLANDRINDO,32.85
23/01/2014,Automotive Fuel                    ,ESSO PEVENSEY SSTN       PEVENSEY  ,10.04
23/01/2014,Hotels and Accommodation           ,MERCURE QUEENS HOTEL CHEL CHELTENHA,11.50
23/01/2014,Automotive Fuel                    ,MOTOR FUEL LTD TAS CROW WRIGHTINGT,13.23
23/01/2014,Travel - Air/Rail/Road             ,WEST COAST TRAINS        WIGAN 2363,20.00
23/01/2014,Hotels and Accommodation           ,BEST WESTERN             TELFORD   ,69.93
23/01/2014,Automotive Fuel                    ,G R YEATES LTD           STOCKPORT ,40.83
23/01/2014,Automotive Fuel                    ,ESSO MACCLESFIELD SERVICE MACCLESFI,55.65
23/01/2014,Hotels and Accommodation           ,THE BENTLEY HOTEL        0152287800,27.30
23/01/2014,Automotive Fuel                    ,TEXACO PERSHORE RD       B297HQ 490,16.35
23/01/2014,Travel - Air/Rail/Road             ,WWW.WIGHTLINK.CO.UK      INTERNET  ,40.00
23/01/2014,Hotels and Accommodation           ,ROSE AND CROWN           TONBRIDGE ,7.50
23/01/2014,Travel - Air/Rail/Road             ,WEST COAST TRAINS        SOLIHULL 1,16.00
23/01/2014,Travel - Air/Rail/Road             ,NCP LIMITED              NOTTM MOUN,16.40
23/01/2014,Automotive Fuel                    ,BP MOUNT CONNECT         ST. ALBANS,14.02
23/01/2014,Catering and Catering Supplies     ,WELCOME BREAK            KEELE     ,5.09
23/01/2014,Hotels and Accommodation           ,NOTTINGHAM BELFRY        NOTTINGHAM,41.35
23/01/2014,Travel - Air/Rail/Road             ,NCP LIMITED              NOTTM MOUN,12.30
23/01/2014,Hotels and Accommodation           ,DEANS PLACE HOTEL        POLEGATE  ,34.50
23/01/2014,Travel - Air/Rail/Road             ,LUL TICKET OFFICE.       PADDINGTON,9.00
23/01/2014,Automotive Fuel                    ,TESCO PFS 2620           HEAVITREE ,58.43
23/01/2014,Hotels and Accommodation           ,BARNSTAPLE HOTEL         BARNSTAPLE,28.40
23/01/2014,Automotive Fuel                    ,Shell Kings Lynn         KINGS LYNN,47.31
23/01/2014,Automotive Fuel                    ,SAINSBURYS PETROL        WEEDON ROA,45.27
23/01/2014,Automotive Fuel                    ,SAINSBURYS PETROL        WORLE     ,59.53
23/01/2014,Catering and Catering Supplies     ,MS SIMPLY FOOD          READING MO,6.40
23/01/2014,Hotels and Accommodation           ,LINGFIELD PARK RECEPTION LINGFIELD ,50.80
23/01/2014,Restaurants and Bars               ,THE HOUR GLASS           EXETER    ,33.50
23/01/2014,Restaurants and Bars               ,MUSEUM TAVERN            BLOOMSBURY,25.00
23/01/2014,Travel - Air/Rail/Road             ,NCP LIMITED PD          SAFFRON WA,7.60
23/01/2014,Automotive Fuel                    ,SHELL PLAY PL 184        TRURO     ,47.12
23/01/2014,Hotels and Accommodation           ,BEST WESTERN             TELFORD   ,71.02
23/01/2014,Automotive Fuel                    ,SAINSBURYS PETROL        WARREN HEA,18.59
23/01/2014,Hotels and Accommodation           ,HEMPSTEAD HOUSE HOTEL    SITTINGBOU,18.15
23/01/2014,Hotels and Accommodation           ,ROWHILL GRANGE           WILMINGTON,11.95
23/01/2014,Travel - Air/Rail/Road             ,EAST COAST               ON BOARD  ,5.90
23/01/2014,Travel - Air/Rail/Road             ,OYSTER AUTOTOPUP         0845 33098,40.00
23/01/2014,Travel - Air/Rail/Road             ,APCOA CONNECT - FGW      UXBRIDGE  ,10.40
23/01/2014,Medical Supplies and Services      ,BOOTS 1521               LONDON    ,6.00
23/01/2014,Travel - Air/Rail/Road             ,ECML RETFORD PARKING     RETFORD   ,14.00
23/01/2014,Automotive Fuel                    ,SAINSBURYS PETROL        STREET    ,25.41
23/01/2014,Hotels and Accommodation           ,MERCURE SOUTHGATE HOTEL  EXETER DE,20.00
23/01/2014,Automotive Fuel                    ,MARLDON SERVICE STN      MARLDON   ,24.00
23/01/2014,Leisure Activities                 ,CHINA FLEET CC           SALTASH   ,39.65
23/01/2014,Automotive Fuel                    ,CO-OP GROUP PETROL       PETROL RIV,23.15
23/01/2014,Automotive Fuel                    ,MURCO SERVICE STAT       WICK      ,34.14
23/01/2014,Restaurants and Bars               ,DOCTORS KITCHEN LTD      SOUTHAMPTO,14.85
23/01/2014,Hotels and Accommodation           ,NOVOTEL IPSWICH          IPSWICH I,21.80
23/01/2014,Automotive Fuel                    ,TESCO PFS 5570           SHROPSHIRE,36.14
23/01/2014,General Retail and Wholesale       ,TESCO STORES 6430        NOTTINGHAM,4.00
23/01/2014,Travel - Air/Rail/Road             ,NCP LIMITED              NOTTM MOUN,8.20
23/01/2014,Hotels and Accommodation           ,CEDAR COURT HOTEL        HUDDERSFIE,70.95
23/01/2014,Catering and Catering Supplies     ,MARKS  SPENCER SSPLTD   EUSTON STN,27.08
23/01/2014,Automotive Fuel                    ,TEXEASTLEITHSSTN         SO505QT 25,11.00
23/01/2014,Catering and Catering Supplies     ,SOUTHAMPTON AIRPOR       ARAMARK LT,3.95
23/01/2014,Automotive Fuel                    ,SHELL LEICESTER          OADBY     ,9.84
23/01/2014,Automotive Fuel                    ,MALTHURST BILBROUGHT     TADCASTER ,19.47
23/01/2014,Automotive Fuel                    ,SAINSBURYS PETROL        WEEDON ROA,22.33
23/01/2014,Hotels and Accommodation           ,HILTON                   LUTON     ,10.00
23/01/2014,Automotive Fuel                    ,CO-OP GROUP 380592       Petrol Sta,33.26
23/01/2014,Automotive Fuel                    ,BP MOTO NEWBURY FSTN    THATCHAM. ,59.95
23/01/2014,Automotive Fuel                    ,MAYLAND GARAGE           ESSEX     ,13.25
23/01/2014,Hotels and Accommodation           ,BULL HOTEL               PETERBOROU,25.55
23/01/2014,General Retail and Wholesale       ,TESCO STORES 6430        NOTTINGHAM,7.60
23/01/2014,Hotels and Accommodation           ,CROWNE PLAZA             NOTTINGHAM,12.00
23/01/2014,Automotive Fuel                    ,ESSO NEW SARUM SSTN      SALISBURY ,29.28
23/01/2014,Hotels and Accommodation           ,HOLIDAY INN              BRISTOL-FI,48.46
23/01/2014,Automotive Fuel                    ,BURTON MWSA CONNECT-3219 CARNFORTH ,36.72
23/01/2014,Travel - Air/Rail/Road             ,LUL TICKET MACHINE       HOLBORN   ,20.00
23/01/2014,Travel - Air/Rail/Road             ,ECML NEWARK PARKING      NEWARK    ,10.00
23/01/2014,Hotels and Accommodation           ,NOVOTEL IPSWICH          IPSWICH I,21.50
23/01/2014,Hotels and Accommodation           ,HOL INN BIRM CITY        BIRMINGHAM,14.40
23/01/2014,Restaurants and Bars               ,STARBUCKS                BIRMINGHAM,10.19
23/01/2014,Automotive Fuel                    ,BARROW FILLING STATION LT BARROW   ,9.00
23/01/2014,Automotive Fuel                    ,SHELL TALKE              NEWCASTLE ,46.98
23/01/2014,Automotive Fuel                    ,TEXACO PORTERS           CW124H 610,55.52
23/01/2014,Automotive Fuel                    ,LODERS FORECOURT         DORCHESTER,38.83
23/01/2014,Hotels and Accommodation           ,THE PRIORY BAY HOTEL     SEAVIEW   ,81.00
23/01/2014,Travel - Air/Rail/Road             ,LUL TICKET MACHINE       TOWER HILL,30.00
23/01/2014,Automotive Fuel                    ,HKS  THREEWAYS           NOTTINGHAM,46.53
23/01/2014,General Retail and Wholesale       ,WAITROSE 689             WORTHING  ,8.70
23/01/2014,General Retail and Wholesale       ,SAINSBURYS SMKT        CHICHESTER,11.60
23/01/2014,General Retail and Wholesale       ,WAITROSE 689             WORTHING  ,15.49
23/01/2014,Hotels and Accommodation           ,MARYGREEN MANOR HOTEL    BRENTWOOD ,84.22
23/01/2014,Automotive Fuel                    ,ESSO MALTHURST CASTLE    WORCESTER ,22.66
23/01/2014,Hotels and Accommodation           ,HOLIDAYINN STOKE ON TRENT NEWCASTLE,15.45
23/01/2014,Computer Equipment & Services      ,KRCS RETAIL LTD          DONCASTER ,19.99
23/01/2014,Automotive Fuel                    ,TCS MILL LANE            WARRINGTON,14.03
23/01/2014,Restaurants and Bars               ,GIRAFFE CONCEPTS         EXETER 18 ,38.72
23/01/2014,Travel - Air/Rail/Road             ,EAST MIDLANDS DERBY STAT DERBY     ,13.00
23/01/2014,Travel - Air/Rail/Road             ,LUL TICKET MACHINE       KINGS CROS,8.90
23/01/2014,Travel - Air/Rail/Road             ,INTERNATIONAL CENT       NEWCASTLE ,12.00
23/01/2014,Automotive Fuel                    ,ASDA FSTN SKELMERSDAL   SKELMERSDA,31.13
23/01/2014,Automotive Fuel                    ,ROGERS GARAGE            SOUTH MOLT,33.26
23/01/2014,General Retail and Wholesale       ,SAINSBURYS SMKTS        MARCH     ,4.00
23/01/2014,Miscellaneous Industrial/Commercial,DASH                     LONDON    ,7.90
23/01/2014,Travel - Air/Rail/Road             ,NCP LIMITED              NEWPORT QU,14.86
23/01/2014,Mail and Courier Services          ,POST OFFICE COUNTER      CHESTER   ,8.25
23/01/2014,Restaurants and Bars               ,ROYAL BEACON             EXMOUTH   ,16.65
23/01/2014,Automotive Fuel                    ,LEIGH DELAMERE WEST MWSA CHIPPENHAM,67.56
23/01/2014,Automotive Fuel                    ,ESSO WIMBORNE SSTN       WIMBORNE  ,14.28
23/01/2014,Hotels and Accommodation           ,LAKESIDE INTERNATIONAL   FRIMLEY   ,38.65
23/01/2014,Hotels and Accommodation           ,HI PRESTON               PRESTON   ,16.35
23/01/2014,Books and Periodicals              ,Amazon  Mktplce EU-UK    AMAZON.CO.,34.99
23/01/2014,General Retail and Wholesale       ,TESCO STORES 2547        FLITWICK  ,9.85
23/01/2014,Restaurants and Bars               ,BLUE ORCHID              ASPLEY GUI,34.00
23/01/2014,Travel - Air/Rail/Road             ,LONDON MIDLAND           METEOR PAR,9.00
23/01/2014,Travel - Air/Rail/Road             ,LONDON MIDLAND           METEOR PAR,6.50
23/01/2014,Automotive Fuel                    ,W M MORRISON PLC         BARRY     ,19.91
23/01/2014,Hotels and Accommodation           ,LICENSED SOLUTIONS LTD 3 HAYLING IS,54.75
23/01/2014,Restaurants and Bars               ,BEEFERATER40010330       ANCHOR    ,21.38
23/01/2014,Automotive Fuel                    ,SAINSBURYS PETROL        PERTON    ,43.52
23/01/2014,Hotels and Accommodation           ,MARRIOTT                 LEEDS     ,28.50
23/01/2014,Hotels and Accommodation           ,PARK PLAZA NOTTINGHAM    NOTTINGHAM,23.00
23/01/2014,Hotels and Accommodation           ,HOLIDAY INN COVENTRY     COVENTRY  ,64.79
23/01/2014,Automotive Fuel                    ,TESCO PAY AT PUMP 5275   NORWICH   ,35.87
23/01/2014,Hotels and Accommodation           ,CROWNE PLAZA             NOTTINGHAM,12.00
23/01/2014,Automotive Fuel                    ,BP THE BUCK FSTN        ANDOVER HA,62.68
23/01/2014,Automotive Fuel                    ,SHELL LEICESTER          OADBY     ,42.36
23/01/2014,Automotive Fuel                    ,TESCO PFS 2696           HOVE      ,20.75
23/01/2014,Restaurants and Bars               ,RICHARD ONSLOW           CRANLEIGH ,56.10
23/01/2014,Hotels and Accommodation           ,DOUBLETREE BY HILTON BRIS CLIFTON E,22.25
23/01/2014,Automotive Fuel                    ,BRISTOL RD SERVICE       CHIPPENHAM,27.77
23/01/2014,Hotels and Accommodation           ,BEST WESTERN             TELFORD   ,71.00
23/01/2014,Hotels and Accommodation           ,MARYGREEN MANOR HOTEL    BRENTWOOD ,84.23
23/01/2014,Hotels and Accommodation           ,MERCURE HOLLAND HOUSE HOT BRISTOL  ,23.50
23/01/2014,Automotive Fuel                    ,HAYTON SERVICE STATION   POCKLINGTO,17.95
23/01/2014,Travel - Air/Rail/Road             ,APCOA NWR LIVERPOOL LI   LIVERPOOL ,12.00
23/01/2014,Hotels and Accommodation           ,BEST WESTERN             TELFORD   ,71.00
23/01/2014,Hotels and Accommodation           ,PARK PLAZA NOTTINGHAM    NOTTINGHAM,25.00
23/01/2014,Hotels and Accommodation           ,CAVENDISH HOTEL          EASTBOURNE,35.10
23/01/2014,Automotive Fuel                    ,CO-OP GROUP 014587       Petrol Hed,24.39
23/01/2014,Hotels and Accommodation           ,ROSE AND CROWN           TONBRIDGE ,11.75
23/01/2014,Automotive Fuel                    ,SPENCERS GARAGE MESSIN   SCUNTHORPE,14.52
23/01/2014,Restaurants and Bars               ,CIAO BELLA               LONDON  WC,19.75
24/01/2014,Automotive Fuel                    ,BP C J ELEY  COMPANY    BRAINTREE ,16.88
24/01/2014,Hotels and Accommodation           ,HILTON                   STANSTED  ,49.55
24/01/2014,"Vehicles, Servicing and Spares     ",SOLAR GARAGE             FELIXSTOWE,55.88
24/01/2014,Automotive Fuel                    ,CHIPSTEAD                CRANLEIGH ,48.13
24/01/2014,Automotive Fuel                    ,FERRYBRIDGE MWSA         KNOTTINGLE,11.79
24/01/2014,Automotive Fuel                    ,ASDA FSTN               HAVANT    ,22.21
24/01/2014,Restaurants and Bars               ,MCDONALDS                SWAVESEY C,3.99
24/01/2014,Restaurants and Bars               ,ROADCHEF NORTON CANES    CANNOCK   ,7.39
24/01/2014,Travel - Air/Rail/Road             ,THE ROYALS               SOUTHEND-O,10.00
24/01/2014,Travel - Air/Rail/Road             ,M6 TOLL                  TOLL CHARG,5.50
24/01/2014,Travel - Air/Rail/Road             ,LUL TICKET OFFICE.       HIGH STREE,30.00
24/01/2014,Automotive Fuel                    ,CO-OP GROUP PETROL       PETROL SAN,40.14
24/01/2014,Travel - Air/Rail/Road             ,WEST COAST TRAINS        CREWE 1243,16.00
24/01/2014,Travel - Air/Rail/Road             ,NORTHERN RAIL LTD        HORWICH 87,8.30
24/01/2014,Hotels and Accommodation           ,DEANS PLACE HOTEL        POLEGATE  ,19.50
24/01/2014,Automotive Fuel                    ,MURCO SERVICE STAT       EMSWORTH  ,33.08
24/01/2014,Automotive Fuel                    ,TEBAY SOUTH MWSA S       PENRITH   ,23.99
24/01/2014,Professional Services              ,WWW.PAYLONDONCONGESTION. WEST TISTE,16.00
24/01/2014,Hotels and Accommodation           ,THE RED LION HOTELSAL   SALISBURY ,6.75
24/01/2014,Automotive Fuel                    ,WM MORRISONS PETRO       SEAFORD   ,25.43
24/01/2014,Hotels and Accommodation           ,VILLAGE HTL CHEADLE S  CHEADLE   ,32.35
24/01/2014,Travel - Air/Rail/Road             ,OYSTER AUTOTOPUP         0845 33098,20.00
24/01/2014,Leisure Activities                 ,TRACY PARK GOLF         BATH      ,23.60
24/01/2014,Automotive Fuel                    ,BP-BLUE BOYS CONNECT     TONBRIDGE ,24.86
24/01/2014,Travel - Air/Rail/Road             ,NCP LIMITED              NOTTM MOUN,8.20
24/01/2014,Travel - Air/Rail/Road             ,LUL TICKET MACHINE       KINGS CROS,20.00
24/01/2014,Automotive Fuel                    ,MURCO SERVICE STAT       EMSWORTH  ,41.20
24/01/2014,Automotive Fuel                    ,ESSO PATCHAM SSTN        LONDON ROA,21.28
24/01/2014,Mail and Courier Services          ,POST OFFICE COUNTER      SIDMOUTH  ,6.22
24/01/2014,Automotive Fuel                    ,ESSO SHREWSBURY SSTN     SHREWSBURY,42.69
24/01/2014,Automotive Fuel                    ,NORTON CANES CONNECT 3262 NORTON CA,5.78
24/01/2014,Travel - Air/Rail/Road             ,M6 TOLL                  TOLL CHARG,5.50
24/01/2014,Travel - Air/Rail/Road             ,M6 TOLL                  TOLL CHARG,4.00
24/01/2014,Automotive Fuel                    ,SOUTHWAITE NORTH MWSA    NR CARLISL,47.05
24/01/2014,Hotels and Accommodation           ,MARRIOTT                 MARRIOTT  ,14.20
24/01/2014,Travel - Air/Rail/Road             ,RCP PARKING LTD          CHAPEL WHA,3.40
24/01/2014,Automotive Fuel                    ,TCS ST MICHAELS          TENTERDEN ,13.47
24/01/2014,General Retail and Wholesale       ,SAINSBURYS SMKTS        LEIGH-ATHE,4.70
24/01/2014,Travel - Air/Rail/Road             ,M6 TOLL                  TOLL CHARG,4.00
24/01/2014,Automotive Fuel                    ,TEX MALT TAMAR           886729 PL1,28.07
24/01/2014,Automotive Fuel                    ,ESSO WALMER              DEAL      ,42.22
24/01/2014,Hotels and Accommodation           ,THE ROYAL VICTORIA       ST LEONARD,11.05
24/01/2014,Automotive Fuel                    ,SAINSBURYS PETROL        HARROGATE ,25.15
24/01/2014,Travel - Air/Rail/Road             ,EARLESTOWN STN TO        NEWTON LE ,7.90
24/01/2014,Automotive Fuel                    ,ROSS ON WYE SERVICE STATI HEREFORDS,64.15
24/01/2014,General Retail and Wholesale       ,TESCO STORES 2343        CONGLETON ,1.80
24/01/2014,Mail and Courier Services          ,POST OFFICE COUNTER      CONGLETON ,8.25
24/01/2014,Travel - Air/Rail/Road             ,TFGM METROLINK           0161 20520,6.50
24/01/2014,Automotive Fuel                    ,MORRISONS PETROL         CATCLIFFE ,6.50
24/01/2014,Travel - Air/Rail/Road             ,NEWTON-LE-WILLOWS STN    NEWTON LE ,8.20
24/01/2014,Automotive Fuel                    ,TESCO PAY AT PUMP 4083   HUCKNALL  ,34.28
24/01/2014,Travel - Air/Rail/Road             ,FIRSTKEOLIS TRANS       HUDRSFLD 8,18.30
24/01/2014,Travel - Air/Rail/Road             ,NORTHERN RAIL LTD        PARBOLD 24,12.90
24/01/2014,Hotels and Accommodation           ,CROWNE PLAZA             NOTTINGHAM,33.60
24/01/2014,Hotels and Accommodation           ,NOVOTEL IPSWICH          IPSWICH I,108.33
24/01/2014,Automotive Fuel                    ,SHELL SUTTON ELMS        LEICESTER ,33.11
24/01/2014,Automotive Fuel                    ,LOCKS GARAGE             HEREFORD 4,26.39
24/01/2014,Automotive Fuel                    ,SAINSBURYS PETROL        HANKRIDGE ,25.88
24/01/2014,Hotels and Accommodation           ,MACDONALD HOTELS MANCH   MSTER M1 ,46.60
24/01/2014,Restaurants and Bars               ,KNOT                     LONDON    ,5.40
24/01/2014,Travel - Air/Rail/Road             ,LONDON MIDLAND           METEOR PAR,9.00
24/01/2014,Travel - Air/Rail/Road             ,LONDON MIDLAND           METEOR PAR,6.50
24/01/2014,Automotive Fuel                    ,Shell Durham A1M       DURHAM    ,48.00
24/01/2014,Restaurants and Bars               ,UPPER CRUST              MANCHESTER,5.89
24/01/2014,Travel - Air/Rail/Road             ,NORTHERN RAIL LTD        BRAMHALL 2,4.80
24/01/2014,Automotive Fuel                    ,DEVIZES SSTN            DEIVIZES  ,41.79
24/01/2014,Automotive Fuel                    ,Shell Marston Mort       BEDFORD   ,38.99
24/01/2014,Automotive Fuel                    ,SHELL UK LTD             WETHERBY  ,36.03
24/01/2014,Hotels and Accommodation           ,PARK PLAZA NOTTINGHAM    NOTTINGHAM,21.00
24/01/2014,Travel - Air/Rail/Road             ,NCP LIMITED              NOTTM MOUN,16.40
24/01/2014,Automotive Fuel                    ,LEYTONSTONE SERVIC       LEYSTONE0,34.54
24/01/2014,Hotels and Accommodation           ,NOVOTEL IPSWICH          IPSWICH I,103.38
24/01/2014,Automotive Fuel                    ,BP STRATFORD SSTN       STRATFORD ,36.14
24/01/2014,Automotive Fuel                    ,SAINSBURYS PETROL        POUND LANE,34.07
25/01/2014,Automotive Fuel                    ,ESSO MALTHURST  MEASHAM  SWADLINCOT,11.53
25/01/2014,Automotive Fuel                    ,ASDA  PETROL UPT 5892    BOSTON    ,54.27
25/01/2014,Books and Periodicals              ,JWS WILEY PUBLISHERS     800-758-94,26.23
25/01/2014,Mail and Courier Services          ,POST OFFICE COUNTER      TAMWORTH  ,2.20
25/01/2014,Automotive Fuel                    ,TESCO PAY AT PUMP 3736   LAUNCESTON,32.97
26/01/2014,Restaurants and Bars               ,AKBAR BALTI YORK LTD   YORK      ,21.00
26/01/2014,General Retail and Wholesale       ,HALFORDS 0717            SHREWSBURY,100.00
26/01/2014,Catering and Catering Supplies     ,MARKS  SPENCER SSP LT   KINGS CROS,12.05
26/01/2014,Automotive Fuel                    ,SHELL PRINCESS PAR       MANCHESTER,29.81
26/01/2014,Restaurants and Bars               ,TIFFINS                  ABINGDON  ,21.95
26/01/2014,Restaurants and Bars               ,AKBAR BALTI YORK LTD   YORK      ,20.75
26/01/2014,General Retail and Wholesale       ,CATH KIDSTON LTD         EXETER    ,12.00
27/01/2014,Travel - Air/Rail/Road             ,CARPARK MACHINE          SWTRAINS S,6.00
27/01/2014,Travel - Air/Rail/Road             ,CITY OF YORK COUNCIL     YORK      ,7.90
27/01/2014,Hotels and Accommodation           ,WHITES                   BOLTON    ,24.65
27/01/2014,Catering and Catering Supplies     ,WELCOME BWAITROSE       HOPWOOD PA,28.37
27/01/2014,Catering and Catering Supplies     ,WELCOME BREAK STARBUCK   HOPWOOD PA,4.50
27/01/2014,General Retail and Wholesale       ,ASDA STORES LTD 5810     HOUNSLOW  ,10.99
27/01/2014,Hotels and Accommodation           ,SHAFTESBURY PREMIER LO   HOUNSLOW  ,40.00
27/01/2014,Restaurants and Bars               ,HEES CHINESE RESTAURANT  HOUNSLOW  ,23.15
27/01/2014,Automotive Fuel                    ,FERRYBRIDGE MWSA         KNOTTINGLE,9.32
27/01/2014,Hotels and Accommodation           ,HARDWICK HALL            STOCKTON-O,40.00
27/01/2014,Restaurants and Bars               ,MUSEUM TAVERN            BLOOMSBURY,13.49
27/01/2014,Travel - Air/Rail/Road             ,ECML RETFORD PARKING     RETFORD   ,7.00
27/01/2014,Restaurants and Bars               ,CATCH CORNER             STAFFORD  ,13.98
27/01/2014,"Office Stationery, Equipment and Su",STAPLES UK               NEWPORT   ,114.45
27/01/2014,Restaurants and Bars               ,MCDONALDS REST.          UTTOXETER ,4.69
27/01/2014,Restaurants and Bars               ,HEES CHINESE RESTAURANT  HOUNSLOW  ,23.15
27/01/2014,Travel - Air/Rail/Road             ,APCOA CONNECT - FGW      UXBRIDGE  ,7.00
27/01/2014,Travel - Air/Rail/Road             ,FGW TICKET OFFICE        BATH SPA  ,141.00
27/01/2014,"Office Stationery, Equipment and Su",RYMAN 1174               KINGSTON  ,36.48
27/01/2014,Travel - Air/Rail/Road             ,PARK MOBILE              BHAM B4  ,11.20
27/01/2014,Restaurants and Bars               ,MUSEUM TAVERN            BLOOMSBURY,10.49
27/01/2014,Travel - Air/Rail/Road             ,FGW SELF SERVICE         FROME 2101,90.00
27/01/2014,Travel - Air/Rail/Road             ,LUL TICKET OFFICE.       PADDINGTON,20.00
27/01/2014,Restaurants and Bars               ,LIMONCELLO RESTAURANT    ABINGDON  ,22.20
27/01/2014,Automotive Fuel                    ,W M MORRISON             HINCKLEY  ,24.62
27/01/2014,Leisure Activities                 ,BRISTOL CITY COUNCIL -   BRISTOL   ,5.00
27/01/2014,Hotels and Accommodation           ,WHITES                   BOLTON    ,24.85
27/01/2014,Travel - Air/Rail/Road             ,FCC CONNECT              MIDDLESEX ,6.91
27/01/2014,General Retail and Wholesale       ,BLUE BOAR MSA            NORTHAMPTO,3.29
27/01/2014,General Retail and Wholesale       ,MARKS  SPENCER          HESWALL   ,14.45
27/01/2014,Travel - Air/Rail/Road             ,M6 TOLL                  TOLL CHARG,5.50
27/01/2014,Travel - Air/Rail/Road             ,WEST COAST TRAINS        CREWE 1243,47.70
27/01/2014,Hotels and Accommodation           ,CAVENDISH HOTEL          EASTBOURNE,18.95
27/01/2014,Restaurants and Bars               ,ZIZZI                    BRISTOL 73,18.80
27/01/2014,Restaurants and Bars               ,WAGAMAMA STEATHAM ST     STREATHAM ,16.95
27/01/2014,Travel - Air/Rail/Road             ,EC MAINLINE CO TO       DARLNGTN 7,44.00
27/01/2014,Restaurants and Bars               ,HEES CHINESE RESTAURANT  HOUNSLOW  ,23.15
27/01/2014,General Retail and Wholesale       ,SAINSBURYS               HOLBORN   ,26.85
27/01/2014,Medical Supplies and Services      ,BOOTS 1521               LONDON    ,4.49
27/01/2014,Restaurants and Bars               ,LIMONCELLO RESTAURANT    ABINGDON  ,22.20
27/01/2014,Restaurants and Bars               ,HEES CHINESE RESTAURANT  HOUNSLOW  ,23.15
27/01/2014,Travel - Air/Rail/Road             ,ECML NEWCASTLE PARKING   NEWCASTLE ,15.00
27/01/2014,Restaurants and Bars               ,UPPER CRUST              MANCHESTER,3.99
27/01/2014,Travel - Air/Rail/Road             ,RCP PARKING LTD          CHAPEL WHA,3.40
27/01/2014,Hotels and Accommodation           ,HARDWICK HALL            STOCKTON-O,40.00
27/01/2014,Hotels and Accommodation           ,WHITES                   BOLTON    ,29.00
27/01/2014,Travel - Air/Rail/Road             ,NCP LTD                  BOLTON    ,4.70
27/01/2014,Automotive Fuel                    ,MARLDON SERVICE STN      MARLDON   ,30.01
27/01/2014,Travel - Air/Rail/Road             ,FIRST CAPITAL CONN       HUNTINGDON,42.00
27/01/2014,Travel - Air/Rail/Road             ,APCOA FCC                HUNTINGDON,16.80
27/01/2014,Travel - Air/Rail/Road             ,WEST COAST TRAINS        CREWE 1243,14.60
27/01/2014,Travel - Air/Rail/Road             ,WEST COAST TRAINS        CREWE 1243,8.00
27/01/2014,Travel - Air/Rail/Road             ,XC TRAINS LTD            BIRMINGHAM,36.50
27/01/2014,Automotive Fuel                    ,BHAM PARTNERS            SHEFFIELD ,56.00
27/01/2014,Travel - Air/Rail/Road             ,CITY OF YORK COUNCIL     YORK      ,9.70
27/01/2014,Restaurants and Bars               ,THE CORRINGHAM BULL LT   STANFORD-L,10.90
27/01/2014,Restaurants and Bars               ,LIMONCELLO RESTAURANT    ABINGDON  ,22.20
27/01/2014,Travel - Air/Rail/Road             ,WEST COAST TRAINS        MACLSFLD 2,8.00
27/01/2014,General Retail and Wholesale       ,PUMPKIN CAFE             STOKE ON T,6.29
27/01/2014,Medical Supplies and Services      ,BOOTS 1125               MANCHESTER,2.99
27/01/2014,Travel - Air/Rail/Road             ,LONDON MIDLAND TIC       TAMWORTH  ,66.00
27/01/2014,Hotels and Accommodation           ,MARRIOTT                 YORK      ,39.00
27/01/2014,Restaurants and Bars               ,HIMALAYAN TRADING LTD    ST LEONARD,20.65
27/01/2014,Hotels and Accommodation           ,VILLAGE HOTEL WALSALL G WALSALL   ,24.75
27/01/2014,Restaurants and Bars               ,SIGNATURE  STRADA       LONDON  WC,34.70
27/01/2014,Restaurants and Bars               ,PRET A MANGER            HIGH HOLBU,5.60
27/01/2014,Hotels and Accommodation           ,ANSTY HALL               COVENTRY  ,23.45
27/01/2014,Automotive Fuel                    ,SHELL THRAPSTN 127       THRAPSTON ,9.27
27/01/2014,Hotels and Accommodation           ,ANSTY HALL               COVENTRY  ,23.45
27/01/2014,Restaurants and Bars               ,STAFFORD WH SMITHS       STONE     ,16.53
27/01/2014,Travel - Air/Rail/Road             ,M6 TOLL                  TOLL CHARG,5.50
27/01/2014,Hotels and Accommodation           ,HOLIDAYINN STOKE ON TRENT NEWCASTLE,14.80
27/01/2014,Hotels and Accommodation           ,ANSTY HALL               COVENTRY  ,22.95
27/01/2014,Travel - Air/Rail/Road             ,M6 TOLL                  TOLL CHARG,5.50
27/01/2014,Automotive Fuel                    ,CO-OP GROUP PETROL       GUISBOROUG,27.38
27/01/2014,Restaurants and Bars               ,CATCH CORNER             STAFFORD  ,14.13
27/01/2014,Restaurants and Bars               ,HARVESTER                METRO CENT,17.71
27/01/2014,Restaurants and Bars               ,WETHERBY COSTA           WETHERBY  ,5.64
27/01/2014,Hotels and Accommodation           ,CRANAGE HALL F AND B     CRANAGE   ,16.00
27/01/2014,Catering and Catering Supplies     ,MS SIMPLY FOOD          PSE PTTGE ,5.34
27/01/2014,Catering and Catering Supplies     ,GREGGS - S0837           STAFFORD  ,3.50
27/01/2014,Restaurants and Bars               ,CATCH CORNER             STAFFORD  ,13.13
27/01/2014,Hotels and Accommodation           ,STAVERTON PARK           DAVENTRY  ,19.95
27/01/2014,Restaurants and Bars               ,LITTLE CHEF HAYDOCK      HAYDOCK   ,11.27
27/01/2014,Restaurants and Bars               ,PESTO RESTAURANT         WIDNES    ,20.00
27/01/2014,Restaurants and Bars               ,ANTALYA RESTAURANT TWO   LONDON    ,21.70
27/01/2014,Travel - Air/Rail/Road             ,APCOA CONNECT - FGW      UXBRIDGE  ,5.70
27/01/2014,Restaurants and Bars               ,CATCH CORNER             STAFFORD  ,9.78
27/01/2014,Restaurants and Bars               ,CHIQUITO                 BASILDON  ,28.40
27/01/2014,Hotels and Accommodation           ,BURNHAM BEECHES HOTEL    SLOUGH    ,25.00
27/01/2014,Hotels and Accommodation           ,HOLIDAYINN STOKE ON TRENT NEWCASTLE,14.80
27/01/2014,Travel - Air/Rail/Road             ,THE CHILTERN RAILW       SOLIHULL 4,6.90
27/01/2014,Restaurants and Bars               ,CATCH CORNER             STAFFORD  ,12.78
27/01/2014,Restaurants and Bars               ,THISTLE HAYDOCK FB      ST. HELENS,21.65
27/01/2014,Restaurants and Bars               ,THE CHAMBELI REST        LONDON  WC,26.83
27/01/2014,Travel - Air/Rail/Road             ,KINGS X N              KINGS X N,4.70
27/01/2014,Catering and Catering Supplies     ,MARKS  SPENCER SSP LT   BIRMINGHAM,7.55
27/01/2014,Travel - Air/Rail/Road             ,EC MAINLINE OTS          NEWCASTLE ,69.65
27/01/2014,Hotels and Accommodation           ,CAVENDISH HOTEL          EASTBOURNE,20.55
27/01/2014,Hotels and Accommodation           ,WHITES                   BOLTON    ,19.95
27/01/2014,Restaurants and Bars               ,HEES CHINESE RESTAURANT  HOUNSLOW  ,23.15
27/01/2014,Restaurants and Bars               ,CATCH CORNER             STAFFORD  ,10.14
27/01/2014,Hotels and Accommodation           ,ATLANTIC HOTEL           CHELMSFORD,29.90
27/01/2014,Automotive Fuel                    ,LONDON GATEWAY           LONDON    ,38.78
27/01/2014,Restaurants and Bars               ,MCDONALDS REST.          NEWTON AYC,4.99
27/01/2014,General Retail and Wholesale       ,NISA SUPERMARKET         WELWYN GAR,4.25
27/01/2014,Restaurants and Bars               ,BEEFEATER40017345        STANBOROUG,25.92
27/01/2014,Computer Equipment & Services      ,MSFT  AZURE              MSFT AZURE,68.72
27/01/2014,Travel - Air/Rail/Road             ,LONDON MIDLAND           METEOR PAR,6.50
27/01/2014,General Retail and Wholesale       ,TESCO STORE 2081         BARRY     ,15.76
27/01/2014,Hotels and Accommodation           ,HOLIDAY INN EXPRSS       WIMBLEDON ,10.00
27/01/2014,Restaurants and Bars               ,BEEFERATER40010330       ANCHOR    ,21.27
27/01/2014,Travel - Air/Rail/Road             ,EAST MIDLANDS TRAI       SHFFIELD 6,20.60
27/01/2014,Travel - Air/Rail/Road             ,Q PARK SHEFFIELD STATION SHEFFIELD ,14.00
27/01/2014,Restaurants and Bars               ,COSTA COFFEE             YORK      ,5.95
27/01/2014,Travel - Air/Rail/Road             ,NORTHERN RAIL LTD        BRAMHALL 2,4.10
27/01/2014,Restaurants and Bars               ,OSTERIA DELLANGOLO LT   LONDON SW1,40.00
27/01/2014,Restaurants and Bars               ,HIMALAYAN TRADING LTD    ST LEONARD,18.90
27/01/2014,Hotels and Accommodation           ,CAVENDISH HOTEL          EASTBOURNE,26.90
27/01/2014,Restaurants and Bars               ,NORWICH CATERING STORE   NORWICH   ,5.20
27/01/2014,Restaurants and Bars               ,CHINA CITY RESTAURANT    LONDON    ,25.25
27/01/2014,Travel - Air/Rail/Road             ,LONDON MIDLAND           METEOR PAR,9.00
27/01/2014,Automotive Fuel                    ,BP CRANFORD CONVENIENCE S HOUNSLOW ,4.20
27/01/2014,Hotels and Accommodation           ,ASHFORD INTERNATIONAL    ASHFORD   ,12.95
27/01/2014,Travel - Air/Rail/Road             ,WEST COAST TRAINS        LNDN NW1 9,34.00
27/01/2014,Restaurants and Bars               ,KAYAL RESTAURANT         LEICESTER ,25.20
27/01/2014,Automotive Fuel                    ,FERRIBY SERVICE STATION  HULL      ,6.44
27/01/2014,Travel - Air/Rail/Road             ,EC MAINLINE CO SST       NEWCASTLE ,40.50
27/01/2014,Travel - Air/Rail/Road             ,ECML NEWCASTLE PARKING   NEWCASTLE ,7.00
27/01/2014,General Retail and Wholesale       ,JOHN LEWIS               CHEADLE   ,29.95
27/01/2014,Travel - Air/Rail/Road             ,LONDON MIDLAND           METEOR PAR,7.00
27/01/2014,Automotive Fuel                    ,SHELL UK LTD             WETHERBY  ,24.49
27/01/2014,Travel - Air/Rail/Road             ,FLETCHERGATE CARPARK     NOTTINGHAM,6.40
27/01/2014,Hotels and Accommodation           ,HOLIDAY INN              BASILDON  ,23.20
